{"text_format":"1","workbook":"xlsx","n_sheets":21,"sheets":["Feuil1","استقبال","مسك السن- الجنس","مسك التفويج- اللغات","مسك التأخر- الحركية","مسك CPGE","مسك BTS ","مسك الداخلي","Page de Garde","Q 07 imp","Q 03 IMP","Q03-qualif imp","Q 14 IMP ","BTS","CPGE","Q 08 IMP","الموضفون","الأجانب","بطاقة المؤسسة","بطاقة إجمالية","TS Ens COl+Qualif+CPGE+BTS"],"not_rendered":{"charts":0,"images":1,"macros":0,"external_links":7,"defined_names":1434,"comments":0,"pivot_tables":0},"unopened":[],"bounds":{"document_bytes":16777216,"sheet_cells":100000,"rows_first":2000,"rows_last":500,"rows_between":2000,"halvings":0,"cell_chars":16384,"cell_head_chars":4096},"cells_cut":0,"cells_raw":0,"read":"whole","date_system":"1900"}

{"sheet":"Feuil1","index":0,"n_rows":79,"n_cols":106,"rows_kept":79,"cut":false,"hidden":true,"merged":[]}
[1,2,3,4,5,6,7,8,9,10,11,12,13,14,15,16,17,18]
["Expr1000","CD_ETAB","NOM_ETABL","NOM_ETABA","CD_ORGTUT","CD_REG","CD_PROV","CD_COM","Expr1008","CD_MIL","AdresseL","Expr1011","CP","VilleL","AdresseA","TEL_ETAB","FAX_ETAB","e-mail","CD_NETAB","CD_ETABR","INDHcom","INDHquart","Nbre_Satellites","Directeur","Directeur Adjoint","Secrétaire Général","Censeur","Directeur d'études","Chef de Travaux","Econome/Intendant","SurveillantGénInt","Nombre de SurvGenExt","CIN_Dir","PPR_Dir","NOM_PrenDirL","NOM_PrenDirA","Préscolaire Moderne","Primaire Général","Primaire Originel","Collégial Général","Collégial Originel","Qualifiant Général","Qualifiant Originel","Qualifiant Technique","CPGE","BTS","CFCCE","CPCA","CFCAFCA","FormInspecteurs","FormCOPE","FormBS","FP","ConsGestEtab","ConsPédag","ConsEnseig","ConsClas","AssParents","AssSportive","CoopScolaire","Partenariat","ClubSanté","CentreAppui","AssEcolReussite","ProgrammeTissir","ClubEnv","CD_Financ","DC_ETAB","DO_ETAB","DF_ETAB","CD_causesFerm","DistSatEcoM","DistUnitéCol","DistColLyc","Const_Dur","Const_Prefab","Const_Pise","Const_Autre","Eau_Source","Elec_Source","Ass_Source","Clo_Dur","Clo_partie","Clo_grillage","Clo_bois","Clo_autre","Clo_sans","Superf_etab","Superf_Cour","Superf_EspVert","Superf_Exten","Cantine","Cantine_Capacité","Cantine_DO","Cantine_DF","Restauration","Couvert_place","Internat","Internat_Capacité","Internat_DO","Internat_DF","Exist_Internet","upsize_ts","nomL","FP_Bac",1491625]
["50740B","50740B","Groupe Scolaire Victor Hugo","مجموعة مدارس فيكتور هيجو","01","06","142","1420181","1","1","N° 9, Rue Al Baria Eddabas - Méchouar de Casablanca","رقم 9، زنقة البارع الدباس - مشوار الدار البيضاء",20500,"Casablanca","رقم 9، زنقة البارع الدباس - مشوار الدار البيضاء","022-30-58-08","022-30-60-62","","200","",false,false,0,true,false,false,false,false,false,false,false,0,"b792181",391702," FAJR HAMID"," الفجر حميد",true,true,false,false,false,false,false,false,false,false,false,false,false,false,false,false,false,true,true,true,true,true,true,true,true,false,false,true,false,true,"01","1970-10-01","1972-10-01",null,"",0,900,0,true,false,false,false,1,1,1,true,false,false,false,false,false,3759,2086,850,0,true,0,"1972-10-01","1992-07-01",false,0,false,0,null,null,false,null,"",false]
["50741C","50741C","INSTITUTION LE CHEMIN VERT ","مؤسسة الطريق الأخضر ","01","06","142","1420181","1","1","N° 29, bd Omar El Idrissi - Méchouar de Casablanca","رقم 29، زنقة شارع عمر الإدريسي - مشوار الدار البيضاء",20500,"Casablanca","رقم 29، زنقة شارع عمر الإدريسي - مشوار الدار البيضاء","0522303372","0522444121","alaoui.fatima@menara.ma","200","",true,false,0,true,false,false,false,false,false,false,false,0,"x55618",316062," HAJJI ABDELOUAHED"," حاجي عبد الواحد",false,true,false,false,false,false,false,false,false,false,false,false,false,false,false,false,false,true,true,true,true,true,true,true,false,false,false,true,false,true,"01","1970-10-01","1990-09-01",null,"",0,1,1,true,false,false,false,1,1,1,true,false,false,false,false,false,4525,2400,950,0,false,0,null,null,false,0,false,0,null,null,false,null,"",false]
["50742D","50742D","ANNEXE Groupe Scolaire La Résidence 4","ملحقة مجموعة مدارس الإقامة 4","01","06","142","1420181","1","1","N° 3, Rue Eddabbas  -  Méchouar de Casablanca","رقم 3، زنقة الدباس - مشوار الدار البيضاء",20500,"Casablanca","رقم 3، زنقة الدباس - مشوار الدار البيضاء","0522451549","0522451549","gsr@gsr.ac.ma","200","",false,false,0,true,false,false,false,false,false,false,false,0,"B94732",646629,"SAID ABDELFETTAH","سعيد عبد الفتاح",false,true,false,false,false,false,false,false,false,false,false,false,false,false,false,false,false,true,true,true,true,true,true,true,false,false,false,true,false,false,"01","1968-10-01","1968-10-01",null,"",0,2,0,true,false,false,false,1,1,1,true,false,false,false,false,false,8400,1733,561,3438,false,0,null,null,false,0,false,0,null,null,false,null,"",false]
["50743E","50743E","Ecole Omar El Idrissi - Annexe","مدرسة عمر الإدريسي - ملحقة","01","06","142","1420181","1","1","N° 4, Rue Plateau Du Kliere - Méchouar De Casablanca","رقم 4، زنقة بلاطو دي كليير - مشوار الدار البيضاء",20500,"Casablanca","رقم 4، زنقة بلاطو دي كليير - مشوار الدار البيضاء","0522302915","___-__-__-__","collegeomarelidrissi@gmail.com","200","",false,false,0,true,false,false,false,false,false,false,false,0," f274550",237851,"mohamed hseini "," محمد حسيني",false,true,false,false,false,false,false,false,false,false,false,false,false,false,false,false,false,true,true,true,true,true,true,true,false,false,false,true,false,false,"01","1960-10-01","1962-10-01",null,"",0,1,0,true,false,false,false,1,1,1,true,false,false,false,false,false,4090,1790,49,3084,true,0,"1962-09-01","1992-07-01",false,0,false,0,null,null,false,null,"",false]
["50744F","50744F","Lycée el Fadel","ثانوية الفاضل","01","06","142","1420181","1","1","N° 62 Bis, Rue Ahmed Figuigui - Méchouar de Casablanca","رقم 62 مكرر، زنقة أحمد الفيكيكي - مشوار الدار البضاء",20500,"Casablanca","رقم 62 مكرر، زنقة أحمد الفيكيكي - مشوار الدار البضاء","022-30-36-40","___-__-__-__","elfadelpriv@hotmail.com","200","",false,false,0,true,false,false,false,false,false,false,false,0,"b541176",355815,"SAMIH MUSTAPHA","ساميح المصطفى",true,true,false,false,false,false,false,false,false,false,false,false,false,false,false,true,false,true,true,true,true,true,true,true,false,false,false,true,false,false,"01","1973-10-01","1975-09-16",null,"",0,1,0,true,false,false,false,1,1,1,true,false,false,false,false,false,2110,1218,135,0,false,0,null,null,false,0,false,0,null,null,false,null,"",false]
["50745G","50745G","LYCEE Racine","مؤسسة راسين","01","06","142","1420181","1","1","Quartier Des Habous, Rue 15, N° 10 - Méchouar de Casablmanca","حي الإحباس، زنقة 15، رقم 10 - مشوار الدار البيضاء",20500,"Casablanca","حي الإحباس، زنقة 15، رقم 10 - مشوار الدار البيضاء","0626957899","___-__-__-__","oussama-riad1@hotmail.fr","200","",true,true,0,true,false,false,false,false,false,false,false,0," i125383",165546," FAROUKI AHMED","أحمد فروقي",false,true,false,false,false,false,false,false,false,false,false,false,false,false,false,false,false,true,true,true,true,true,true,true,false,false,false,true,false,true,"01","1950-10-01","1952-10-01",null,"",0,0,0,true,false,false,false,1,1,2,true,false,false,false,false,false,4406,1620,160,522,true,0,"1952-10-01","1992-07-01",false,0,false,0,null,null,false,null,"",false]
["51200B","51200B","INSTITUTION Al Ibtikar","مؤسسة الإبتكار","01","06","142","1420113","1","1","N° 13, Rue Abou Ali Al Farissi - C. Mers Sultan","رقم 13، زنقة أبو علي الفارسي - ج. مرس السلطان",20500,"Casablanca","رقم 13، زنقة أبو علي الفارسي - ج. مرس السلطان","0522289644","___-__-__-__","alibtikar1@gmail.com","200","",true,true,0,true,false,false,false,false,false,false,false,0,"B 647694",882428,"LAGRAOUI    bahia","بهية لكراوي",true,true,false,false,false,false,false,false,false,false,false,false,false,false,false,false,false,true,true,true,true,true,true,true,false,true,false,true,false,true,"01","1950-10-01","1952-10-01",null,"",0,1,0,true,false,false,false,1,1,1,true,false,false,false,false,false,3824,567,427,863,true,0,"1952-10-01","1992-07-01",false,0,false,0,null,null,true,null,"",false]
["51937C","51937C","INSTITUTION Le Tremplin","مؤسسة القفزة","01","06","142","1420111","1","1","27, RUE 3 , QUARTIER ELOUROUD , BVD NADOR","رقم 27 ، زنقة 3 ، حي الورود ، شارع الناظور",20500,"Casablanca","رقم 27 ، زنقة 3 ، حي الورود ، شارع الناظور","0522827719","0522827782","","200","",false,false,0,false,false,false,false,false,false,false,false,0," ",0," "," ",false,true,false,false,false,false,false,false,false,false,false,false,false,false,false,false,false,true,true,true,true,false,true,true,false,false,false,true,false,false,"01","1976-09-16","1978-09-16","2009-09-01","1",0,2,0,true,false,false,false,1,1,1,true,false,false,false,false,false,4778,1050,286,1799,false,0,null,null,false,0,false,0,null,null,false,null,"",false]
["52556A","52556A","lycée Omar El Idrissi","ثانوية عمر الإدريسي","","06","142","1420113","1","1","25, rue constantinople","25 زنقة القسطنطينية",20006,"casablanca","25 زنقة القسطنطينية","0522448188","0522448188","M.ELMANSOURI.MED@gmail.com","200","",false,false,0,true,false,false,false,false,false,false,false,0,"b 258900",175037,"RAFIK AHMED","رفيق أحمد",true,true,false,false,false,false,false,false,false,false,false,false,false,false,false,true,false,true,true,true,true,true,true,true,true,true,false,true,false,true,"01","1976-09-16","1978-09-16",null,"",0,2,2,true,false,false,false,1,1,1,true,false,false,false,false,false,6635,1020,530,3677,false,0,null,null,false,0,false,0,null,null,false,null,"",false]
["52656J","52656J","INSTITUTION LES CRETES"," مؤسسة لكريط","","06","142","1420111","1","1","573 BD MODIBO KEITA, LES CRETES, CASA","شارع موديبوكيتا ، 573 الفداء ",20550,"CASABLANCA","شارع موديبوكيتا ، 573 الفداء ","0522817891","0522829707","groupe.lescretes@yahoo.fr","200","",false,false,0,true,false,false,false,false,false,false,false,0,"BE 92793",774093,"ABDESSAMAD MATAOUI","عبدالصمد معطاوي",true,true,false,false,false,false,false,false,false,false,false,false,false,false,false,false,false,true,true,true,true,false,true,true,true,false,false,true,false,false,"01","1974-10-10","1976-09-16",null,"",0,0,0,true,false,false,false,1,1,1,true,false,false,false,false,false,5425,4123,181,0,false,0,null,null,false,0,false,0,null,null,false,null,"",false]
["54599W","54599W","LA RESIDENCE 2 PRIVEE","الإقامة 2 الخصوصية","","06","142","1420113","1","1","","شارع 2 مارس رقم 85",0,"CASABLANCA","شارع 2 مارس رقم 85","0522820683","","GSR@GSR.MA","200","",false,false,0,true,false,false,false,false,false,false,false,null,"B761941",334563,"FASSIH FATIHA","فتيحة فصيح",true,true,false,false,false,false,false,false,false,false,false,false,false,false,false,false,false,true,true,true,true,true,true,true,false,false,false,true,false,false,"01","1965-10-01","1967-10-01",null,"",0,0,0,true,false,false,false,1,1,2,true,false,false,false,false,false,3170,1863,383,0,false,0,null,null,false,0,false,0,null,null,false,null,"",false]
["50705N","50705N","Institut Ouadi Ennil","معهد وادي النيل","01","06","142","1420111","1","1","N° 505, Bd. Mohammed VI (ex. Route Mediouna) - Al Idrissia","رقم 505، شارع محمد السادس (طريق مديونة) - الإدريسية",20550,"Casablanca","رقم 505، شارع محمد السادس (طريق مديونة) - الإدريسية","022-28-18-68","___-__-__-__","","200","",false,false,0,true,false,false,false,false,false,false,false,0," b454772",315872,"ICHOU HASSAN","حسن إيشو",true,true,false,false,false,false,false,false,false,false,false,false,false,false,false,false,false,true,true,true,true,true,true,true,true,true,false,true,false,true,"01","1981-09-16","1983-09-16",null,"",0,0,0.1,true,false,false,false,1,1,1,true,false,false,false,false,false,8400,1800,120,1800,false,0,null,null,false,0,false,0,null,null,false,null,"",false]
["50706P","50706P","INSTITUTION Ennasr","مؤسسة النصر","01","06","142","1420111","1","1","Bd. Grande Ceinture, Rue 17, cite Omar Ibn El Khattab","شارع الحزام الكبير، زاوية زنقة 17، حي عمر بن الخطاب - الإدريسية",20550,"Casablanca","شارع الحزام الكبير، زاوية زنقة 17، حي عمر بن الخطاب - الإدريسية","0522803582","___-__-__-__","ets.ennasr1@menara.ma","200","",true,true,0,true,false,false,false,false,false,false,false,0,"T 44213",639966,"ABDELAZIZ EL MOSTAKIM","عبد العزيز المستقيم",false,true,false,false,false,false,false,false,false,false,false,false,false,false,false,true,false,true,true,true,true,false,true,true,true,false,false,true,false,true,"01","1982-09-16","1984-09-16",null,"",0,1,0,true,false,false,false,1,1,1,true,false,false,false,false,false,4403,1790,710,703,false,0,null,null,false,0,false,0,null,null,false,null,"",false]
["50707R","50707R","Ecole Attawfiq","مدرسة التوفيق","01","06","142","1420111","1","1","Cité Omar Ibn El Khattab, Rue 6 N° 8 -  Al Idrissia","حي عمر بن الخطاب، زنقة 6 رقم 8 - الإدريسية",20550,"Casablanca","حي عمر بن الخطاب، زنقة 6 رقم 8 - الإدريسية","0522824902","0522805430","","200","",false,false,null,false,false,false,false,false,false,false,false,0," ",0," "," ",false,false,false,false,false,false,false,false,false,false,false,false,false,false,false,false,false,true,true,true,true,true,true,true,false,false,false,false,false,false,"01","1950-10-01","1952-10-01","2008-09-01","1",0,0,0,true,false,false,false,1,1,1,true,false,false,false,false,false,4144,2576,0,0,false,0,null,null,false,0,false,0,null,null,false,null,"",false]
["50708S","50708S","Lycée Al Farah ","ثانوية الفرح","01","06","142","1420111","1","1","Amal II, Rue 68, N° 3- Al Idrissia","الأمل 2، زنقة 68، رقم 3- الإدريسية",20550,"Casablanca","الأمل 2، زنقة 68، رقم 3- الإدريسية","0522283699","0522283699","farahinfopriv@yahoo.fr","200","",false,false,0,true,false,false,false,false,false,false,false,0,"B 592009",354849,"BYA   ABDELKRIM","عبد الكريم   بيا",true,true,false,false,false,false,false,false,false,false,false,false,false,false,false,false,false,true,true,true,true,true,true,true,false,false,false,true,false,false,"01","1962-10-01","1964-10-01",null,"",0,0.5,0,true,false,false,false,1,1,1,true,false,false,false,false,false,3473,1700,49,240,false,0,null,null,false,0,false,0,null,null,false,null,"",false]
["50709T","50709T","LYCEE Anwal ","ثانوية أنوال","01","06","142","1420111","1","1","N° 1270, Avenue Al Fida, Ain Chiffa III - AL Idrissia","رقم 1270، شارع الفداء، عين الشفاء 3 - الإدريسية",20550,"Casablanca","رقم 1270، شارع الفداء، عين الشفاء 3 - الإدريسية","0522823126","0522823125","anwal.ecole@gmail.com","200","",true,true,0,true,false,false,false,false,false,false,false,0," b691573",378597," ouardi jamila"," وردي جميلة",false,true,false,false,false,false,false,false,false,false,false,false,false,false,false,false,false,true,true,true,true,true,true,true,true,true,false,true,false,true,"01","1970-10-01","1972-10-01",null,"",0,0,0,true,false,false,false,1,1,1,true,false,false,false,false,false,4278,2877,784,617,false,0,null,null,false,0,false,0,null,null,false,null,"",false]
["50710U","50710U","Ecole Al Hayat El Islamia","مدرسة الحياة الإسلامية","01","06","142","1420111","1","1","Cité Korea, Rue 28, N° 47 - Al Fida","حي القريعة، زنقة 28، رقم 47 - الفداء",20550,"Casablanca","حي القريعة، زنقة 28، رقم 47 - الفداء","0522280672","","elhayat_elislamiya@live.fr","200","",true,true,0,true,false,false,false,false,false,false,false,0,"w53979",240776,"SAAD BRAHIM","سعد ابراهيم",false,true,false,false,false,false,false,false,false,false,false,false,false,false,false,true,false,true,true,true,true,true,true,true,false,false,false,true,false,false,"01","1973-10-01","1975-09-16",null,"",0,0,0,true,false,false,false,1,1,1,true,false,false,false,false,false,180,1000,217,0,false,0,null,null,false,0,false,0,null,null,false,null,"",false]
["50711V","50711V","Ecole Ibnou El AtlaS","مدرسة ابن الأطلس","01","06","142","1420111","1","1","Bd. El Fida, Derb Chorfa Et Tolba, Rue 18 , N° 4 - Al Fida","شارع الفداء، درب الشرفاء و الطلبة، زنقة 18، رقم 4 - الفداء",20550,"Casablanca","شارع الفداء، درب الشرفاء و الطلبة، زنقة 18، رقم 4 - الفداء","0522283656","___-__-__-__","ibnoalatlas@gmail.com","200","",true,true,0,true,false,false,false,false,false,false,false,0,"B239904",698478,"AKIFI ABDELMAJID","عاكفى عبد المجيد",false,true,false,false,false,false,false,false,false,false,false,false,false,false,false,false,false,true,true,true,true,true,true,true,false,false,false,true,false,false,"01","1970-10-01","1973-10-01",null,"",0,50,100,true,false,false,false,1,1,1,true,false,false,false,false,false,1192,787,409,200,false,0,null,null,false,0,false,0,null,null,false,null,"",false]
["50712W","50712W","ECOLE Al Wahda Al Arabia","مدرسة الوحدة العربية","01","06","142","1420111","1","1","N° 71, Bd. Capitaine Idriss Mesfioui -  Al Fida","رقم 71، شارع القبطان إدريس المسفيوي - الفداء",20550,"Casablanca","رقم 71، شارع القبطان إدريس المسفيوي - الفداء","0522811776","___-__-__-__","elwahdaelarabia@gmail.com","200","",false,false,0,true,false,false,false,false,false,false,false,0,"B 599625",334535,"SAYAN ABDELAZIZ","صيان عبد العزيز",false,true,false,false,false,false,false,false,false,false,false,false,false,false,false,false,false,true,true,true,true,false,true,true,false,false,false,true,false,false,"01","1959-10-01","1961-10-01",null,"",0,1,0,true,false,false,false,1,1,1,true,false,false,false,false,false,3647,1401,0,0,false,0,null,null,false,0,false,0,null,null,false,null,"",false]
["50713X","50713X","ETABLISSEMENT Ahmed Chawqui","مؤسسة أحمد شوقي","01","06","142","1420111","1","1","N° 73, Avenue Nador - Al Fida","رقم 73، شارع الناظور - الفداء",20550,"Casablanca","رقم 73، شارع الناظور - الفداء","0522806492","___-__-__-__","gs_ahmed_chaouki@hotmail.FR","200","",false,false,0,true,false,false,false,false,false,false,false,0," I54514",315662,"ABDERRAHIM RHARIBI"," عبد الرحيم غريبي",false,true,false,false,false,false,false,false,false,false,false,false,false,false,false,true,false,true,true,true,true,true,true,true,true,true,false,true,false,true,"01","1959-10-01","1961-10-01",null,"",0,1,0.5,true,false,false,false,1,1,1,true,false,false,false,false,false,2712,760,100,785,false,0,null,null,false,0,false,0,null,null,false,null,"",false]
["50714Y","50714Y"," Assounna"," السنة","01","06","142","1420113","1","1","Hay Es-smara, Rue 8, N° 4 - Bouchentouf","حي السمارة، زنقة 8، رقم 4 - بوشنتوف",20500,"Casablanca","حي السمارة، زنقة 8، رقم 4 - بوشنتوف","022-28-69-05","___-__-__-__","","200","",false,false,0,true,false,false,false,false,false,false,false,0,"b571455",317742,"aBDELKHALEK ABDELILAH","عبد الخالق عبد الإله",false,true,false,false,false,false,false,false,false,false,false,false,false,false,false,false,false,true,true,true,true,false,true,true,false,false,false,true,false,true,"01","1938-10-01","1947-10-01",null,"",0,1,0,true,false,false,false,1,1,1,true,false,false,false,false,false,4518,1510,268,0,false,0,null,null,false,0,false,0,null,null,false,null,"",false]
["50715Z","50715Z","Sidi Mohamed Ben Youssef","سيدي محمد بن يوسف","01","06","142","1420113","1","1","N° 63, Rue Mounaster - Bouchentouf","رقم 63، زنقة موناستير - بوشنتوف",20500,"Casablanca","رقم 63، زنقة موناستير - بوشنتوف","022-28-12-94","___-__-__-__","ECOLE1946@hotmail.FR","200","",false,false,0,true,false,false,false,false,false,false,false,0,"B 424579",887129,"MITARI NOUFISSA","ميطاري نفيسة",false,true,false,false,false,false,false,false,false,false,false,false,false,false,false,false,false,true,true,true,true,true,true,true,false,true,false,true,false,true,"01","1947-01-01","1947-01-01",null,"",0,1,1,true,false,false,false,1,1,1,true,false,false,false,false,false,2000,500,0,0,false,0,null,null,false,0,false,0,null,null,false,null,"",false]
["50716A","50716A","Ecole Echaâb El Mohammadi","مدرسة الشعب المحمدي","01","06","142","1420113","1","1","Hay Laâyoune, Rue 47, N° 28 - Bouchentouf","حي العيون، زنقة 47، رقم 28 - بوشنتوف",20500,"Casablanca","حي العيون، زنقة 47، رقم 28 - بوشنتوف","022-28-19-16","___-__-__-__","","200","",false,false,0,true,false,false,false,false,false,false,false,0,"B 512826",882614,"EJOUAHRI FATIHA","الجواهري فتيحة",false,true,false,false,false,false,false,false,false,false,false,false,false,false,false,false,false,true,true,true,true,true,true,true,false,false,false,true,false,false,"01","1964-10-01","1966-10-01",null,"",0,2,0,true,false,false,false,1,1,1,true,false,false,false,false,false,4954,1980,1112,0,false,0,null,null,false,0,false,0,null,null,false,null,"",false]
["50717B","50717B","Ecole El Ahrar","مدرسة الأحرار","01","06","142","1420113","1","1","N° 109, Boulevard El Gharb - Bouchentouf","رقم 109، شارع الغرب - بوشنتوف",20500,"Casablanca","رقم 109، شارع الغرب - بوشنتوف","0522830018","___-__-__-__","","200","",false,false,0,true,false,false,false,false,false,false,false,0,"w56715",240659,"KHADIRI MOHAMMED","محمد خديري",true,true,false,false,false,false,false,false,false,false,false,false,false,false,false,true,false,true,true,true,true,false,true,true,true,false,false,true,false,true,"01","1966-10-01","1968-10-01",null,"",0,2,1,true,false,false,false,1,1,1,true,false,false,false,false,false,10300.549999999999,3938,1953,519,true,0,"1968-10-01","1992-07-01",false,0,false,0,null,null,false,null,"",false]
["50718C","50718C","Ecole Al Anouar","مدرسة الأنوار","01","06","142","1420113","1","1","Rue 39, NO 274 - Bouchentouf","زنقة 39، رقم 274 - بوشنتوف",20500,"Casablanca","زنقة 39، رقم 274 - بوشنتوف","022-28-05-72","___-__-__-__","","200","",false,false,0,true,false,false,false,false,false,false,false,0," a545292",383087," wahi amina"," واحي أمينة",false,true,false,false,false,false,false,false,false,false,false,false,false,false,false,false,false,true,true,true,true,true,true,true,false,true,false,true,false,false,"01","1980-09-16","1982-09-16",null,"",0,0.8,0.5,true,false,false,false,1,1,1,true,false,false,false,false,false,8180,1873,2176,5860,false,0,null,null,false,0,false,0,null,null,false,null,"",false]
["50719D","50719D","Ecole Al Maârif","مدرسة المعارف","01","06","142","1420113","1","1","N° 7, Avenue Nador, l'Hermitage - Bouchentouf","رقم 7، شارع الناظور، لارميطاج - بوشنتوف",20500,"Casablanca","رقم 7، شارع الناظور، لارميطاج - بوشنتوف","022-28-89-13","___-__-__-__","","200","",true,true,0,true,false,false,false,false,false,false,false,0,"B 759655",379234,"TEMRAOUI AZZEDDINE","تمراوي عز الدين",false,true,false,false,false,false,false,false,false,false,false,false,false,false,false,true,false,true,true,true,true,false,true,true,false,false,false,true,false,false,"01","1960-10-01","1962-10-01",null,"",0,0.5,0.5,true,false,false,false,1,1,1,true,false,false,false,false,false,2511,737,267,150,true,0,"1962-10-01","1992-07-01",false,0,false,0,null,null,false,null,"",false]
["50720E","50720E","Institut rachad PRIVE","معهد الرشاد العلمي ","01","06","142","1420113","1","1","N° 1, Avenue Nador - Bouchentouf","رقم 1، نهج الناظور - بوشنتوف",20500,"Casablanca","رقم 1، نهج الناظور - بوشنتوف","022-28-62-74","","institut.rachad@gmail.com","200","",true,true,0,true,false,false,false,false,false,false,false,0," b448391",316053," elhokmi mohamed"," الحكمي محمد",false,true,false,false,false,false,false,false,false,false,false,false,false,false,false,false,false,true,true,true,true,true,true,true,false,false,false,true,false,false,"01","1969-10-01","1971-10-01",null,"",0,2,2,true,false,false,false,1,1,1,true,false,false,false,false,false,1105,723,0,0,false,0,null,null,false,0,false,0,null,null,false,null,"",false]
["50721F","50721F","Ecole El Idrissi Privée","مدرسة الإدريسي الخصوصية","01","06","142","1420113","1","1","Derb El Mitr, Rue 4, N° 26 - Bouchentouf","درب المتر، زنقة 4، رقم 26 - بوشنتوف",20500,"Casablanca","درب المتر، زنقة 4، رقم 26 - بوشنتوف","0522283449","___-__-__-__","ecoleelidrissi@outlook.fr","200","",true,true,0,true,false,false,false,false,false,false,false,0,"bh15184",355661,"belahmer samira","سميرة بلحمر",false,true,false,false,false,false,false,false,false,false,false,false,false,false,false,false,false,true,true,true,true,false,true,true,false,false,false,true,false,true,"01","1954-10-01","1956-10-01",null,"",0,1,0,true,false,false,false,1,1,1,true,false,false,false,false,false,2255,600,200,220,true,0,"1956-10-01","1992-07-01",false,0,false,0,null,null,false,null,"",false]
["50722G","50722G","Ecole El Houda","مدرسة الهدى","01","06","142","1420113","1","1","N° 3, Avenue Nador - Bouchentouf","رقم 3، نهج الناظور - بوشنتوف",20250,"Casablanca","رقم 3، نهج الناظور - بوشنتوف","022-28-12-68","___-__-__-__","alhoudainstitut@gmail.com","200","",true,true,0,true,false,false,false,false,false,false,false,0,"B500406",338164,"FOUZIA ELMOKHTARI","المختاري فوزية",false,true,false,false,false,false,false,false,false,false,false,false,false,false,false,false,false,true,true,true,true,true,true,true,false,false,false,true,false,false,"01","1954-10-01","1956-10-01",null,"",0,1,0,true,false,false,false,1,1,1,true,false,false,false,false,false,2000,770,530,0,true,0,"1956-10-01","1992-07-01",false,0,false,0,null,null,false,null,"",false]
["50723H","50723H","AJIAL AL FALAH","أجيال الفلاح","01","06","142","1420113","1","1","108 AVENUE Ahmed Sabague","شارع أحمد الصباغ، رقم 108",20500,"Casablanca","شارع أحمد الصباغ، رقم 108","0522837201","___-__-__-__","falah1991@hotmail.fr","200","",true,true,0,true,false,false,false,false,false,false,false,0,"B156178",110320,"ACHAKA MOHAMMED","عشاقة محمد",true,true,false,false,false,false,false,false,false,false,false,false,false,false,false,false,false,true,true,true,true,false,true,true,true,false,false,true,false,false,"01","1945-10-01","1947-10-01",null,"",0,1,0,true,false,false,false,1,1,1,true,false,false,false,false,false,3803,2048,157,0,true,0,"1947-10-01","1992-07-01",false,0,false,0,null,null,false,null,"",false]
["50724J","50724J","Ecole Abi Chouaib Al Azemmouri II","مدرسة أبي شعيب الأزموري 2","01","06","142","1420113","1","1","N° 51, Rue el khouzama La Gironde - ","رقم 51، زنقة الخزامى لاجيروند -",20500,"Casablanca","رقم 51، زنقة الخزامى لاجيروند -","0522-803125","0522-850134","ecoleazemmouri@yahoo.fr","200","",true,true,0,true,false,false,false,false,false,false,false,0,"B699842",317597,"CHERKI DEHLI","الشرقي دهلي",false,true,false,false,false,false,false,false,false,false,false,false,false,false,false,false,false,true,true,true,true,false,true,true,false,true,false,true,false,true,"01","1970-10-01","1972-10-01",null,"",0,1,0,true,false,false,false,1,1,1,true,false,false,false,false,false,1502,994,99,40,false,0,null,null,false,0,false,0,null,null,false,null,"",false]
["50725K","50725K","Institut Hatim","معهد حاتم","01","06","142","1420113","1","1","Bd. Mohamed VI Et Rue Lagaronne, N° 2 - Bouchentouf","شارع محمد السادس و زنقة لاكارون، رقم 2 -بوشنتوف",20500,"Casablanca","شارع محمد السادس و زنقة لاكارون، رقم 2 -بوشنتوف","022-80-70-06","___-__-__-__","institut.hatim1973@gmail.com","200","",true,true,0,true,false,false,false,false,false,false,false,0," B670685",356693," CHAHDALI AHMED"," شهداني أحمد",true,true,false,false,false,false,false,false,false,false,false,false,false,false,false,true,false,true,true,true,true,false,true,true,true,true,false,true,false,true,"01","1960-10-01","1962-10-01",null,"",0,1,0,true,false,false,false,1,1,1,true,false,false,false,false,false,3710,3200,510,0,false,0,null,null,false,0,false,0,null,null,false,null,"",false]
["50726L","50726L","Institution Maintenon","مؤسسة مانتونان","01","06","142","1420113","1","1","N° 17, Boulevard 2 Mars - Mers Sultan","رقم 17، شارع 2 مارس - مرس السلطان",20500,"Casablanca","رقم 17، شارع 2 مارس - مرس السلطان","022-22-15-43","","institution.maintenon17@gmail.com","200","",false,false,0,true,false,false,false,false,false,false,false,0,"B477697",338043,"ESSAWTI HABIBA","الصوتي حبيبة",false,true,false,false,false,false,false,false,false,false,false,false,false,false,false,false,false,true,true,true,true,false,false,true,false,false,false,true,false,false,"01","1969-10-01","1971-10-01",null,"",0,1,0,true,false,false,false,1,1,1,true,false,false,false,false,false,1789,1084,127,0,false,0,null,null,false,0,false,0,null,null,false,null,"",false]
["50727M","50727M","Ecole du Prince Moulay Hassan","مدرسة  الأمير مولاي الحسن","01","06","142","1420113","1","1","N° 32, Boulevard Moulay Idriss 1 er - Mers Sultan","رقم 32، شارع مولاي إدريس الأول - مرس السلطان",20500,"Casablanca","رقم 32، شارع مولاي إدريس الأول - مرس السلطان","022-28-56-38","022-28-56-38","","200","",false,false,0,true,false,false,false,false,false,false,false,0," BE 302351",355782,"EL KARD  ABDEL ILAH","عبدالاله  الكرد",true,true,false,false,false,false,false,false,false,false,false,false,false,false,false,false,false,true,true,true,true,true,true,true,false,false,false,true,false,false,"01","1959-10-01","1961-10-01",null,"",0,1,0,true,true,false,false,1,1,1,true,false,false,false,false,false,3245,1445,0,240,false,0,null,null,false,0,false,0,null,null,false,null,"",false]
["50728N","50728N","Institution Madania","مؤسسة المدنية","01","06","142","1420113","1","1","N° 29, Rue Ibn Toumert - Mers Sultan","رقم 29، زنقة ابن تومرت - مرس السلطان",20490,"Casablanca","رقم 29، زنقة ابن تومرت - مرس السلطان","0522301654","0522446587","contact@institution-madania.com","200","",true,true,0,true,false,false,false,false,false,false,false,0,"Q47837",172096,"simouh el mostafa","سموح المصطفى",true,true,false,false,false,false,false,false,false,false,false,false,false,false,false,false,false,true,true,true,true,true,true,true,true,false,false,true,false,true,"01","1950-10-01","1952-10-01",null,"",0,0,1.5,true,false,false,false,1,1,1,true,false,false,false,false,false,2599.7199999999998,968,16,0,true,0,"1952-10-01","1992-07-01",false,0,false,0,null,null,false,null,"",false]
["50729P","50729P","Ecole Bouâanania","مدرسة البوعنانية","01","06","142","1420113","1","1","N° 67, Boulevard Omar El Idrissi - Mers Sultan","رقم 67، شارع عمر الإدريسي - مرس السلطان",20500,"Casablanca","رقم 67، شارع عمر الإدريسي - مرس السلطان","022-22-70-80","","bouanania@hotmail.com","200","",true,true,0,true,false,false,false,false,false,false,false,0," be 47316",383669," fartout mohamed"," فرتوت محمد ",false,true,false,false,false,false,false,false,false,false,false,false,false,false,false,true,false,true,true,true,true,true,true,true,true,false,false,true,false,true,"01","1950-10-01","1952-10-01",null,"",0,0,1,true,false,false,false,1,1,1,true,false,false,false,false,false,2395,977,30,0,true,0,"1952-10-01","1992-07-01",false,0,false,0,null,null,false,null,"",false]
["50730R","50730R","Ecole Omar El Idrissi","مدرسة عمر الإدريسي","01","06","142","1420113","1","1","N° 28, Boulevard Omar El Idrissi - Mers Sultan","رقم 28، شارع عمر الإدريسي - مرس السلطان",20500,"Casablanca","رقم 28، شارع عمر الإدريسي - مرس السلطان","0522302359","0522314772","amirzahra70@gmail.com","200","",false,false,0,false,false,false,false,false,false,false,false,0," ",0," "," ",false,false,false,false,false,false,false,false,false,false,false,false,false,false,false,false,false,true,true,true,true,true,true,true,false,false,false,false,false,false,"01","1960-10-01","1962-10-01","2008-09-01","1",0,1,0,true,false,false,false,1,1,1,true,false,false,false,false,false,9619.6,1710,2134.75,4195.55,false,0,null,null,false,0,false,0,null,null,false,null,"",false]
["50731S","50731S","Groupe Scolaire La Résidence 1","مجموعة مدارس الإقامة 1","01","06","142","1420113","1","1","N° 157, Boulevard Lahcen Ouiddar - Mers Sultan","رقم 157، شارع لحسن وإيدار - مرس السلطان",20500,"Casablanca","رقم 157، شارع لحسن وإيدار - مرس السلطان","022-30-75-52","022-44-14-16","gsr@gsr.ac.ma","200","",true,true,0,true,false,false,false,false,false,false,false,0,"b463781",887127,"laasli fatima","فاطمة العسلي",false,true,false,false,false,false,false,false,false,false,false,false,false,false,false,false,false,true,true,true,true,true,true,true,false,false,false,true,false,false,"01","1960-10-01","1962-12-17",null,"",0,1,0,true,false,false,false,1,1,1,true,false,false,false,false,false,4943,1709,1711,73,false,0,null,null,false,0,false,0,null,null,false,null,"",false]
["50732T","50732T"," AL-AMANA"," الأمانة","01","06","142","1420113","1","1","N° 11, Rue Caid Ahmed - Mers Sultan","رقم 11 ، زنقة القائد أحمد - مرس السلطان",20500,"Casablanca","رقم 11 ، زنقة القائد أحمد - مرس السلطان","022-81-33-37","___-__-__-__","al-amana@menara.ma","200","",false,false,0,false,false,false,false,false,false,false,false,0," ",0," "," ",false,false,false,false,false,false,false,false,false,false,false,false,false,false,false,false,false,true,true,true,true,false,true,true,false,false,false,false,false,false,"01","1960-10-01","1962-10-01","2008-09-01","1",0,1,0,true,false,false,false,1,1,1,true,false,false,false,false,false,3366.85,487.78,558.4,951.67,false,0,null,null,false,0,false,0,null,null,false,null,"",false]
["50733U","50733U","Institut La Princesse LALA Aicha","معهد الأميرة للا عائشة","01","06","142","1420113","1","1","N° 1, Rue Al Masjid Houbous - Mers Sultan","رقم 1، زنقة المسجد الأحباس - مرس السلطان",20500,"Casablanca","رقم 1، زنقة المسجد الأحباس - مرس السلطان","0522309795","","","200","",false,false,0,false,false,false,false,false,false,false,false,0," ",0," "," ",false,false,false,false,false,false,false,false,false,false,false,false,false,false,false,false,false,true,true,true,true,true,true,true,false,false,false,false,false,false,"01","1960-10-01","1962-10-01","2008-09-01","1",0,1,0,true,false,false,false,1,1,1,true,false,false,false,false,false,3823.12,312,16,2303,true,0,"1962-10-01","1992-07-01",false,0,false,0,null,null,false,null,"",false]
["50734V","50734V","Lycée Al Maarifa","ثانوية المعرفة","01","06","142","1420113","1","1","N° 27, Rue Rome - Mers Sultan","رقم 27، زنقة روما - مرس السلطان",20500,"Casablanca","رقم 27، زنقة روما - مرس السلطان","0522287494","___-__-__-__","lyceealmaarifa@gmail.com","200","",true,true,0,true,false,false,false,false,false,false,false,0,"BH101243",377790,"JANAH SAIDA","جناح سعيدة",false,true,false,false,false,false,false,false,false,false,false,false,false,false,false,false,false,true,true,true,true,false,true,true,false,false,false,true,false,false,"99","1958-10-01","1960-10-01",null,"",0,1,1,true,false,false,false,1,1,1,true,false,false,false,false,false,421,609,21,0,false,0,null,null,false,0,false,0,null,null,false,null,"",false]
["50735W","50735W","Lycée Groupe Scolaire LA RESIDENCE","ثانوية مجموعة مدارس الإقامة","01","06","142","1420113","1","1","N° 89, Boulevard 2 Mars - Mers Sultan","رقم 89، شارع 2 مارس - مرس السلطان",20500,"Casablanca","رقم 89، شارع 2 مارس - مرس السلطان","0522809050","0522809052","gsr@gsr.ac.ma ","200","",false,false,0,true,false,false,false,false,false,false,false,0,"B573994",390990,"kssili mUSTAPHA","المصطفى اقصلي",false,true,false,false,false,false,false,false,false,false,false,false,false,false,false,false,false,true,true,true,true,true,true,true,false,false,false,true,false,true,"01","1922-10-01","1924-10-01",null,"",0,0.2,0.5,true,false,false,false,1,1,1,true,false,false,false,false,false,3281,880,817,803,false,0,null,null,false,0,false,0,null,null,false,null,"",false]
["50736X","50736X"," Jardin d enfants LE MANEGE"," روض الأطفال لومانيج","01","06","142","1420113","1","1","N° 19, Rue De Rome - Mers Sultan","رقم 19، زنقة روما - مرس السلطان",20500,"Casablanca","رقم 19، زنقة روما - مرس السلطان","0522273260","0522273262"," ecolelemanege@menara.ma","801","18235V",false,false,0,false,false,false,false,false,false,false,false,0," ",0," "," ",false,false,false,false,false,false,false,false,false,false,false,false,false,false,false,false,false,false,false,false,false,false,false,false,false,false,false,false,false,false,"01","1959-10-01","1961-10-01",null,"1",0,0,0,true,false,false,false,1,1,1,true,false,false,false,false,false,3200,1860,240,0,false,0,null,null,false,0,false,0,null,null,false,null,"",false]
["50737Y","50737Y","Maternelle du Groupe Scolaire de la Résidence 3","3روض مجموعة مدارس الإقامة ","01","06","142","1420113","1","1","N° 32, Rue Omar El Idrissi - Mers Sultan","رقم 32، زنقة عمر الإدريسي - مرس السلطان",20500,"Casablanca","رقم 32، زنقة عمر الإدريسي - مرس السلطان","0522450592","0522450593","gsr@ac.ma","200","",true,true,0,true,false,false,false,false,false,false,false,0," B723501",774371," kadrou abdelhak"," قادرو عبد الحق",true,true,false,false,false,false,false,false,false,false,false,false,false,false,false,false,false,true,true,true,true,false,true,true,false,false,false,true,false,false,"01","1945-10-01","1947-10-01",null,"",0,0,0,true,false,false,false,1,1,1,true,false,false,false,false,false,2496,2209,0,0,false,0,null,null,false,0,false,0,null,null,false,null,"",false]
["50738Z","50738Z","Groupe Scolaire La Résidence II","مجموعة مدارس الإقامة 2","01","06","142","1420181","1","1","N° 36, Rue Ibn Toumert - Mers Sultan","رقم 36، زنقة ابن تومرت - مرس السلطان",20500,"Casablanca","رقم 36، زنقة ابن تومرت - مرس السلطان","0522442660","0522305909","gsr@gsr.ac.ma","200","",true,true,0,false,false,false,false,false,false,false,false,0," ",0," "," ",false,true,false,false,false,false,false,false,false,false,false,false,false,false,false,false,false,true,true,true,true,true,true,true,false,false,false,true,false,false,"01","1940-10-01","1942-10-01",null,"",0,0,0,true,false,false,false,1,1,1,true,false,false,false,false,false,2903,2399,50,0,false,0,null,null,false,0,false,0,null,null,false,null,"",false]
["50739A","50739A","Erable-Institut My Idriss Al Azhar","إيرابل - معهد مولاي إدريس الأزهر","01","06","142","1420181","1","1","N° 8-12, Avenue Ahmed Figuigui -  Méchouar de Casablanca","رقم 8-12، شارع أحمد الفكيكي - مشوار الدار البيضاء",20500,"Casablanca","رقم 8-12، شارع أحمد الفكيكي - مشوار الدار البيضاء","0522309609","0522447287","","200","",false,false,0,true,false,false,false,false,false,false,false,0,"j224730",173252,"MOHAMED KANDY","محمد كندي",false,true,false,false,false,false,false,false,false,false,false,false,false,false,false,false,false,true,true,true,true,false,true,true,false,true,false,true,false,true,"01","1953-10-01","1955-10-01",null,"",0,1,0,true,false,false,false,1,1,1,true,false,false,false,false,false,4086,1661,60,0,true,0,"1956-10-01","1992-07-01",false,0,false,0,null,null,false,null,"",false]
["01541Z","82020P07","ECOLE PRIMAIRE LALA ASMAA ","مدرسة للا أسماء الابتدائية","01","06","142","1420113","1","","6 RUE LYSER","6 زنقة ليزير","20500","Al Fida Derb Sultan","الفداء مرس السلطان","022-28-54-94","-  -  -","mounir7@gmail.com","200","",false,false,0,false,false,false,false,false,false,false,false,0," ",0," "," ",false,false,false,false,false,false,false,false,false,false,false,false,false,false,false,false,false,true,true,true,true,true,true,true,false,false,false,false,false,false,"01","1957-10-01","1959-10-01","2008-09-01","1",0,1,0,true,false,false,false,1,1,1,true,false,false,false,false,false,4560,1190,1200,0,true,0,"1959-10-01","1992-07-01",false,0,false,0,null,null,false,null,"",false]
["01542A","82000S13","COLLEGE ZINEB ANNAFZAOUIA","الثانوية الإعدادية زينب النفزاوية","01","06","142","1420111","1","","HAY MIMOUNA IDRISSIA 4","حي ميمونة الإدريسية 4","20550","al fida derb sultan","الفداء مرس السلطان","0522815165","-  -  -","ABCHIR2@HOTMAIL.fr","300","",false,false,0,true,false,false,false,false,false,true,false,1,"b243499",232344,"aamoum smail","أعموم اسماعيل",false,false,false,true,false,false,false,false,false,false,false,false,false,false,false,false,false,true,true,true,true,true,true,false,false,false,false,true,false,false,"01","1966-10-01","1968-10-01",null,"",0,0,1,true,false,false,false,1,1,1,true,false,false,false,false,false,13000,5831,642,200,false,0,null,null,false,0,false,0,null,null,false,null,"",false]
["01543B","82000S14","COLLEGE IBN MESKAOUAIH","الثانوية الإعدادية ابن مسكويه","01","06","142","1420111","1","","IDRISSIA 2 HAY MIMOUNA","حي ميمونة الإدريسية 2","20550","al fida derb sultan","الفداء مرس السلطان","0522815310","-  -  -","","300","",false,false,0,true,false,false,false,false,false,true,false,1," b156212",177981,"kammah larbi","العربي قماح",false,false,false,true,false,false,false,false,false,false,false,false,false,false,false,false,false,true,true,true,true,true,true,false,false,false,false,true,false,false,"01","1975-09-16","1977-09-16",null,"",0,0,1,true,false,false,false,1,1,1,true,false,false,false,false,false,12596,8818,1246,1063,false,0,null,null,false,0,false,0,null,null,false,null,"",false]
["01544C","82000S15","COLLEGE SMARA","الثانوية الإعدادية السمارة","01","06","142","1420111","1","","IDRISSIA 2 BOULEVARD B","الادريسية 2 شارع ب","20550","al fida mers sultan","الفداء مرس السلطان","0522815173","-  -  -","Smara.college@yahoo.fr","300","",false,false,0,true,false,false,false,false,false,true,false,1,"B 161526",310765,"megloud lhassan","الحسن مكلود",false,false,false,true,false,false,false,false,false,false,false,false,false,false,false,false,false,true,true,true,true,true,true,false,false,false,false,true,false,false,"01","1982-09-16","1986-09-05",null,"",0,0,1,true,false,false,false,1,1,1,true,false,false,false,false,false,17000,1200,700,500,false,0,null,null,false,0,false,0,null,null,false,null,"",false]
["01545D","82000S05","COLLEGE MARIAM AL FIHRIA","الثانوية الإعدادية مريم الفهرية","01","06","142","1420111","1","","angle rue SRAGHNA et driss el massfioui","زاوية زنقة السراغنة و ادريس المسفيوي","20550","al fida derb sultan","الفداء مرس السلطان","0522280850","-  -  -","college.Maryam@yahoo.fr.","300","",true,true,0,true,false,false,false,false,false,true,false,2," e11926",953023,"NAJJAR AMINA","أمينة نجار ",false,false,false,true,false,false,false,false,false,false,false,false,false,false,false,false,false,true,true,true,true,true,true,false,false,true,false,true,false,true,"01","1950-10-01","1952-10-01",null,"",0,0,1,true,false,false,false,1,1,1,true,false,false,false,true,false,6450,2093,452,995,false,0,null,null,false,0,false,0,null,null,false,null,"",false]
["01546E","82000S06","COLLEGE AL JAHID","الثانوية الإعدادية الجاحظ","01","06","142","1420111","1","","68 derb chorfa  tolba","درب الشرفاء و الطلبة الزنقة 68","20550","al fida derb sultan","الفداء مرس السلطان","0522281085","-  -  -","","300","",true,true,0,true,false,false,false,false,false,true,false,3,"B 570873",886374,"gnaoui amina","كناوي أمينة",false,false,false,true,false,false,false,false,false,false,false,false,false,false,false,false,false,true,true,true,true,true,true,false,false,false,false,true,false,true,"01","1966-10-01","1968-10-01",null,"",0,-1,-1,true,false,false,false,1,1,1,true,false,false,false,false,false,3940,1340,0,600,false,0,null,null,false,0,false,0,null,null,false,null,"",false]
["01547F","82000S07","COLLEGE MOHAMED VI","الثانوية الإعدادية محمد السادس","01","06","142","1420111","1","","7 RUE TRIPOLI","زنقة 7 حي طرابلس","20550","Al Fida Derb Sultan","الفداء مرس السلطان","022282204","-  -  -","","300","",false,false,0,false,false,false,false,false,false,true,false,3,"COL",0," "," ",false,false,false,false,false,false,false,false,false,false,false,false,false,false,false,false,false,true,true,true,true,true,true,false,false,false,false,false,false,false,"01","1961-10-01","1963-10-01","2009-07-31","5",0,0,0,true,false,false,false,1,1,1,true,false,false,false,false,false,8954,3860,0,0,false,0,null,null,false,0,false,0,null,null,false,null,"",false]
["01548G","82000S08","LYCEE MOHAMED VI"," الثانوية التأهيلية محمد السادس","01","06","142","1420111","1","","HAY TRIPOLI RUE 7","حي طرابلس زنقة 7","20550","Al Fida Derb Sultan","الفداء مرس السلطان","0522281800","-  -  -","lyceem6fida1414@gmail.com","400","",false,false,0,true,false,false,false,false,false,false,false,2,"b736730",395927,"brahim talib","إبراهيم طالب",false,false,false,false,false,true,false,false,false,false,false,false,false,false,false,false,false,true,true,true,true,true,true,false,false,true,true,true,false,true,"01","1961-10-01","2009-09-01",null,"",0,1,0.5,true,false,false,false,1,1,1,true,false,false,false,false,false,13854,4911,0,120,false,0,null,null,false,0,false,0,null,null,false,null,"",false]
["01549H","82000S09","COLLEGE AL IMAM ALI","الثانوية الإعدادية الإمام علي","01","06","142","1420111","1","","BD MOUDIBOU KEITA AIN ESSEK","شارع موديبوكيتا عين الصك","20520","AL FIDA DERB SULTAN","الفداء مرس السلطان","0522283938","-  -  -","alaouisma@hotmail.fr","300","",true,true,0,true,false,false,false,false,false,false,false,1,"b 580382",340262,"alaoui maach my smail","علوي معاش مولاي اسماعيل",false,false,false,true,false,false,false,false,false,false,false,false,false,false,false,false,false,true,true,true,true,true,true,false,false,true,false,true,false,true,"01","1982-09-16","1984-09-16",null,"",0,0,500,true,false,false,false,1,1,1,true,false,false,false,false,false,7032,250,145,0,false,0,null,null,false,0,false,0,null,null,false,null,"",false]
["01550J","82000S10","COLLEGE AL GHAZALI","الثانوية الإعدادية الغزالي","01","06","142","1420111","1","","SIDI MAAROUF 3  BD MOUDIBOU KEITA","سيدي معروف 3 شارع موديبوكيتا","20550","Al Fida Derb Sultan","الفداء مرس السلطان","0522280245","","college-alghazali-fida-merssultan@outlook.fr","300","",false,false,0,true,false,false,false,false,false,true,false,1,"b558418",306589,"belaassal azeddine","عزالدين بلعسل",false,false,false,true,false,false,false,false,false,false,false,false,false,false,false,false,false,true,true,true,true,true,true,false,false,true,false,true,false,true,"01","1967-10-10","1967-10-10",null,"",0,0,0.5,true,false,false,false,1,1,1,true,false,false,false,false,false,4350,700,105,0,false,0,null,null,false,0,false,0,null,null,false,null,"",false]
["01551K","82000S11","COLLEGE AL ANDALOUS","الثانوية الإعدادية الأندلس","01","06","142","1420111","1","","HAY EL MASJID RUE H","زنقة ه حي المسجد","20550","Al Fida Derb Sultan","الفداء مرس السلطان","0522280026","","andalous-fida-mersultan@outlook.fr","300","",false,false,0,false,false,false,false,false,false,true,true,1," ",0," "," ",false,false,false,true,false,false,false,false,false,false,false,false,false,false,false,false,false,true,true,true,true,true,true,false,false,true,true,true,false,true,"01","1976-09-16","1978-09-16",null,"",0,0,0,true,false,false,false,1,1,1,true,false,false,false,false,false,14613,400,2664,3776,true,240,"1977-09-05",null,true,0,true,240,"1977-09-05",null,false,null,"",false]
["01552L","82010S03","COLLEGE ATTAHADI","الثانوية الإعدادية التحدي","01","06","142","1420113","1","","DERB El mITRE 2  RUE 11  L ERMITAGE","درب المتر 2 زنقة 11 لارميطاج","20500","Al Fida mers Sultan","الفداء مرس السلطان","0522280297","","","300","",true,true,0,true,false,false,false,false,false,true,false,1,"b581132",398266,"bahjaji abdelfetah","بهجاجي عبد الفتاح",false,false,false,true,false,false,false,false,false,false,false,false,false,false,false,false,true,true,true,true,true,true,true,false,false,false,false,true,false,false,"01","1962-10-01","1964-10-01",null,"",0,0,0,true,false,false,false,1,1,1,true,false,false,false,false,false,16690,1295,555,0,false,0,null,null,false,0,false,0,null,null,false,null,"",false]
["01553M","82010S04","COLLEGE AL MANSOUR ADDAHBI","الثانوية الإعدادية المنصور الذهبي","01","06","142","1420113","1","","DERB EL KABIR RUE LA CROIX","درب الكبير شارع لاكروى","20500","Al Fida Derb Sultan","الفداء مرس السلطان","0522801043","-  -  -","amahran@hotmail.fr","300","",true,true,0,true,false,false,false,false,false,false,false,2,"bh84066",55230," AMAHRANE FATIHA","أمهران فتيحة  ",false,false,false,true,false,false,false,false,false,false,false,false,false,false,false,false,true,true,true,true,true,true,true,false,false,false,false,true,false,false,"01","1964-10-01","1966-10-01",null,"",0,0.08,0.45,true,false,false,false,1,1,1,true,false,false,false,false,false,7087.03,1048.5,171,4290.8,false,0,null,null,false,0,false,0,null,null,false,null,"",false]
["01554N","82010S05","COLLEGE MOHAMED CHIKH","الثانوية الإعدادية محمد الشيخ","01","06","142","1420113","1","","DERB EL KABIR  RUE almahatta","درب الكبير زنقة المحطة","20500","Al Fida Derb Sultan","الفداء مرس السلطان","0522832535","-  -  -","abdellatif.elbouhali@taalim.ma","300","",true,true,0,true,false,false,false,false,false,true,false,1,"be 674898",1052126,"el bouhali abdellatif","عبد اللطيف البهالي",false,false,false,true,false,false,false,false,false,false,false,false,false,false,false,false,true,true,true,true,true,true,true,false,false,true,true,true,false,true,"01","1964-10-01","1978-10-01",null,"",0,0,1.5,true,false,false,false,1,1,1,true,false,false,false,false,false,4725,2210,200,0,false,0,null,null,false,0,false,0,null,null,false,null,"",false]
["01555P","82000S12","COLLEGE LAAYOUNE","الثانوية الإعدادية العيون","01","06","142","1420113","1","","DERB EL KABIR  RUE LA CROIX","درب الكبير شارع لاكروى","20500","Al Fida Derb Sultan","الفداء مرس السلطان","0522812065","-  -  -","hamidbenazizi58@yahoo.ma","300","",true,true,0,true,false,false,false,false,false,true,false,1,"B 553168",178464,"abdelhamid boukhali","عبد الحميد بوخلي",false,false,false,true,false,false,false,false,false,false,false,false,false,false,false,false,true,true,true,true,true,true,true,false,true,false,true,true,false,true,"01","1980-09-16","1982-09-16",null,"",0,1.6,0.45,true,false,false,false,1,1,1,true,false,false,false,false,false,3456,700,896,160,false,0,null,null,false,0,false,0,null,null,false,null,"",false]
["01556R","82020S03","COLLEGE RABIAA AL ADAOUIA","الثانوية الإعدادية رابعة العدوية","01","06","142","1420113","1","","RUE ELMASJID N 2 al ahbas casablanca","  . الأحباس .2 .زنقة المسجد","20500","Al Fida Derb Sultan","الفداء مرس السلطان","0522305319","-  -  -","LCrabiaddawia@gmail.com","300","",true,true,0,true,false,false,false,false,false,true,false,2,"b599920",874279,"soumia chkhayess","سومية اشخايص",false,false,false,true,false,false,false,false,false,false,false,false,false,false,false,false,false,true,true,true,true,true,true,false,false,false,false,true,false,false,"01","1940-10-01","1942-10-01",null,"",0,0,0,true,false,false,false,1,1,1,true,false,false,false,false,false,3034,450,144,450,false,0,null,null,false,0,false,0,null,null,false,null,"",false]
["01557S","82020S04","COLLEGE AL KASTALANI","الثانوية الإعدادية القسطلاني","01","06","142","1420113","1","","182 RUE AL IMAM AL KASTALANI","182 شارع القسطلاني حي الداخلة رقم ","20500","Al Fida Mers Sultan","الفداء مرس السلطان","0522304539","-  -  -","massitahmed@live.com","300","",true,true,0,true,false,false,false,false,false,true,false,1,"d111713",684250,"massit ahmed","احمد مسيط",false,false,false,true,false,false,false,false,false,false,false,false,false,false,false,false,false,true,true,true,true,true,true,false,false,false,false,true,false,false,"01","1924-10-01","1926-10-01",null,"",0,0,1,true,false,false,false,1,1,1,true,false,false,false,false,false,3494,1672,0,0,false,0,null,null,false,0,false,0,null,null,true,null,"",false]
["01558T","82020S05","COLLEGE IBN TACHFINE","الثانوية الإعدادية ابن تاشفين","01","06","142","1420113","1","","153 RUE LAHCEN OUIDDER","153 زنقة لحسن اويدار","20500","Al Fida Derb Sultan","الفداء مرس السلطان","0522306886","-  -  -","fouadrachida63@gmail.com","300","",false,false,0,true,false,false,false,false,false,true,false,1,"b599351",888005,"rachida fouad","رشيدة فؤاد",false,false,false,true,false,false,false,false,false,false,false,false,false,false,false,false,false,true,true,true,true,true,true,false,false,false,false,true,false,false,"01","1949-10-01","1951-10-01",null,"",0,0,1,true,false,false,false,1,1,1,true,false,false,false,false,false,3545,2100,1,0,false,0,null,null,false,0,false,0,null,null,true,null,"",false]
["01559U","82020S06","COLLEGE KHNATA BENT BEKKAR","الثانوية الإعدادية اخناثة بنت بكار","01","06","142","1420113","1","","174 RUE EL HADJ OMAR RIFFI","174  زنقة الحاج عمر الريفي","20490","Al Fida Mers Sultan","الفداء مرس السلطان","0522301215","-  -  -","collegekhnata@yahoo.fr","300","",false,false,0,true,false,false,false,false,false,true,false,1,"B94601",217787," MEGLOUD MOHAMED","مكلود محمد",false,false,false,true,false,false,false,false,false,false,false,false,false,false,false,false,false,true,true,true,true,true,true,false,false,false,true,true,false,true,"01","1959-10-01","1961-10-01",null,"",0,0,1,true,false,false,false,4,4,1,true,true,true,false,false,false,33077,13978,4112,15987,false,0,null,null,false,0,false,0,null,null,true,null,"",false]
["01560V","82000S02","LYCEE JAMAL EDDINe ALMAHIAOUI","الثانوية التأهيلية جمال الدين المهياوي","01","06","142","1420111","1","","EL AMAL 2  PROLONGEMENT BD AL FIDA","شارع الفداء الممتد حي الامل 2","20550","Al Fida Derb Sultan","الفداء مرس السلطان","0522288268","-  -  -","youssef.baassou602@gmail.com","400","",false,false,0,true,false,false,false,false,false,true,false,3,"d 208316",682786,"YOUSSEF BAASSOU","يوسف باعسو",false,false,false,false,false,true,true,false,false,false,false,false,false,false,false,false,false,true,true,true,true,true,true,false,true,false,true,true,false,true,"01","1968-10-01","1970-09-16",null,"",0,0,0,true,false,false,false,1,3,2,true,false,false,false,false,false,29339,18089,11250,600,false,0,null,null,false,0,false,0,null,null,false,null,"",false]
["01561W","82000S03","LYCEE SALAHEDDINE AL AYOUBI","الثانوية التأهيلية صلاح الدين الايوبي","01","06","142","1420111","1","","AMAL 2 PROLONGEMENT BD ALFIDA","أمل 2 امتداد شارع الفداء","20550","Al Fida Derb Sultan","الفداء مرس السلطان","0522284898","-  -  -","lycee.salah@yahoo.fr","400","",false,false,0,true,false,false,true,false,false,false,false,1,"B 366014",175865,"ahmed moukhliss","أحمد  مخليص",false,false,false,false,false,true,false,false,false,false,false,false,false,false,false,false,false,true,true,true,true,true,true,false,false,false,true,true,false,false,"01","1982-09-16","1984-09-16",null,"",0,0,0,true,false,false,false,1,1,1,true,false,false,false,false,false,2230,200,701,0,false,0,null,null,false,0,false,0,null,null,false,null,"",false]
["01562X","82000S04","LYCEE TAHA HOUSSEIN","الثانوية التأهيلية طه حسين","01","06","142","1420111","1","","IDRISSIA 2","حي الإدريسية 2","20550","Al Fida Derb Sultan","الفداء مرس السلطان","0522815237","-  -  -","daif.khalid@yahoo.fr","400","",false,false,0,true,false,false,true,false,false,true,false,3,"QUAL",154104,"mohammed waaziz","محمد وعزيز ",false,false,false,false,false,true,false,false,false,false,false,false,false,false,false,false,false,true,true,true,true,true,true,false,false,false,false,true,false,true,"01","1974-09-16","1976-09-16",null,"",0,0,0,true,false,false,false,1,1,1,true,false,false,false,false,false,30898,2100,1376,16561,false,0,null,null,false,0,false,0,null,null,true,null,"",false]
["01563Y","82000S01","LYCEE OUM AL BANINE","الثانوية التأهيلية أم البنين","01","06","142","1420111","1","","HAY EL MASJID RUE iii","حي المسجد زنقة 3","20550","Al Fida Derb Sultan","الفداء مرس السلطان","0522281115","-  -  -","","400","",false,false,0,true,false,false,false,false,false,true,false,2," a147856",214475,"KASSEM DAIFI","قاسم ديفي",false,false,false,false,false,true,false,false,false,false,false,false,false,false,false,false,false,true,true,true,true,true,true,false,false,false,true,true,false,false,"01","1974-09-16","1976-09-16",null,"",0,0,0,true,false,false,false,1,1,1,true,false,false,false,false,false,12486,9627,1109,0,false,0,null,null,false,0,false,0,null,null,false,null,"",false]
["01564Z","82010S01","LYCEE AL KHAOUARIZMI","الثانوية التأهيلية الخوارزمي","01","06","142","1420113","1","","BD LA GIRONDE","شارع لاجيروند","20500","Al Fida Derb Sultan","الفداء مرس السلطان","0522808332","0522-80-83-35","","404","",false,false,0,true,false,false,true,true,true,true,true,2," B562001",143850,"KOTNI MADANI","قطني المدني",false,false,false,false,false,true,false,true,false,true,false,false,false,false,false,false,false,true,true,true,true,true,true,false,true,true,true,true,false,true,"01","1919-10-01","1921-10-01",null,"",0,0,0,true,false,false,false,1,1,1,true,false,false,false,false,false,57357,13479,3300,24596,false,0,null,null,false,0,true,340,"1921-10-02",null,false,null,"",true]
["01565A","82010S02","LYCEE BIR ANZARANE","الثانوية التأهيلية بئرانزران","01","06","142","1420113","1","","BD LA GIRONDE  RUE LA DORDOGNE","زنقة لادوردون شارع لاجيروند","20500","Al Fida Derb Sultan","الفداء مرس السلطان","0522812917"," -","mouloudlak@hotmail.fr","400","",false,false,0,true,false,false,false,false,false,true,false,1,"X43646",177724,"azzouzi mouloud","مولود عزوزي",false,false,false,false,false,true,false,false,false,false,false,false,false,false,false,false,false,true,true,true,true,true,true,false,false,false,false,true,false,true,"01","1979-09-16","1981-09-16",null,"",0,0,0,true,false,false,false,1,1,1,true,false,false,false,false,false,11505,1800,208,814,false,0,null,null,false,0,false,0,null,null,false,null,"",false]
["01566B","82020S01","LYCEE MOHAMED V","الثانوية التأهيلية محمد الخامس","01","06","142","1420113","1","","BD 2 MARS","شارع 2 مارس","20500","Al Fida Derb Sultan","الفداء مرس السلطان","0522286002","0522-28-60-01","H.ELMOSTAFA@HOTmail.com","404","",false,false,0,true,false,false,true,true,false,false,true,3,"I 50644",175540,"HACHIMI EL MOSTAFA","هاشمي المصطفى",false,false,false,false,false,true,false,true,true,false,false,false,false,false,false,false,false,true,true,true,true,true,true,false,false,true,false,true,false,true,"01","1919-10-01","1921-10-01",null,"",0,0,0,true,false,false,false,1,1,1,true,false,false,false,false,false,43750,11000,2700,7873,false,0,null,null,false,0,true,400,"1987-09-16",null,true,null,"",false]
["01567C","82000S16","LYCEE AL BAKILLANI","الثانوية التأهيلية الباقلاني","01","06","142","1420111","1","","SIDI MAAROUF 4  RUE 50","سيدي معروف 4 زنقة 50","20550","Al Fida Derb Sultan","الفداء مرس السلطان","0522288678","0522288678   ","lahfidi@gmail.com","400","",false,false,0,true,false,false,false,false,false,true,false,2,"iB 6542",339611,"lahfidi bouabid","بوعبيد لحفيظي",false,false,false,false,false,true,false,false,false,false,false,false,false,false,false,false,false,true,true,true,true,true,true,false,true,true,true,true,false,true,"01","1993-09-16","1995-09-16",null,"",0,0.1,2,true,false,false,false,1,1,1,true,false,false,false,false,false,8119,1700,518,0,false,0,null,null,false,0,false,0,null,null,false,null,"",true]
["01568D","82020S02","LYCEE FATIMA AZZAHRA","الثانوية التأهيلية فاطمة الزهراء","01","06","142","1420181","1","","83 BD VICTOR HUGO   EL MECHOUAR","زاوية شارع فيكتور هيغو والامام القسطلاني","20500","Casablanca","الدار البيضاء","022303911","","maoujoud.abderrahim@taalim.ma","404","",false,false,0,true,false,false,true,false,false,false,false,2,"B234569",182247,"maoujoud abderrahim","موجود عبد الرحيم",false,false,false,false,false,true,false,true,false,false,false,false,false,false,false,false,false,true,true,true,true,true,true,false,true,true,false,true,false,true,"01","1964-10-01","1966-10-01",null,"",0,0,0,true,false,false,false,1,1,1,true,false,false,false,false,false,10000,1206.01,86.2,0,false,0,null,null,false,0,false,0,null,null,false,null,"",false]
["18235V","82000A01","LA DIRECTION PROVINCIALE AL FIDA MERS SULTAN","المديرية الإقليمية الفداء مرس السلطان","01","06","142","1420113","1","","24 RUE DE ROME","24 زنقة روما","20550","AL FIDA MERS SULTAN","الفداء مرس السلطان","0522283825","0522283825","DELEG.ALFIDA@YAHOO.FR","800","01537v",false,false,1,true,false,false,false,false,false,false,false,0," jc155479",1116293," SAAYDI ABDELALI","عبد العالي اسعيدي",false,false,false,false,false,false,false,false,false,false,false,false,false,false,false,false,false,false,false,false,false,false,false,false,false,false,false,false,false,false,"01","1986-02-01","1988-04-01",null,"",0,0,0,true,false,false,false,1,1,1,true,false,false,false,false,false,0,0,0,0,false,0,null,null,false,0,false,0,null,null,true,null,"",false]
["18588D","82000S17","COLLEGE PRINCE MOULAY RACHID","الثانوية الإعدادية الأمير مولاي رشيد","01","06","142","1420111","1","","EL AMAL 2 PROLONGEMENT BD EL FIDA","شارع الفداء الممتد","20550","al fida derb sultan","الفداء مرس السلطان","0522815102","-  -  -","lcpmyrachid@gmail.com","300","",false,false,0,true,false,false,false,false,false,true,false,2,"B576660",363617,"ABDELILAH  LFATH","عبدالإله الفتح",false,false,false,true,false,false,false,false,false,false,false,false,false,false,false,false,true,true,true,true,true,true,true,false,false,false,true,true,false,false,"01","1997-04-07","1997-04-07",null,"",0,0,0,true,false,false,false,1,1,2,true,false,false,false,false,false,12683,10100,750,0,false,0,null,null,false,0,false,0,null,null,false,null,"",false]
["25958P","","Anx provinciale des Métiers de lEducation et de la Formation"," الفرع الإقليمي للمركز الجهوي لمهن التربية والتكوين","","06","142","1420113","1","","avenue 2 mars ","شارع 2 مارس ","","casablanca","البيضاء","","","crmeffida@yagoo.fr","519","18374w",false,false,0,false,false,false,false,false,false,false,false,0," ",0," "," ",false,false,false,false,false,false,false,false,false,false,true,false,false,false,false,false,false,false,false,false,false,false,false,false,false,false,false,false,false,false,"01","2012-11-09","2012-11-09",null,"",0,0,0,false,false,false,false,null,null,null,false,false,false,false,false,false,null,null,null,null,false,null,null,null,false,null,false,null,null,null,false,null,"",false]

{"sheet":"استقبال","index":1,"n_rows":121,"n_cols":16,"rows_kept":121,"cut":false,"hidden":false,"merged":[[11,4,11,6],[11,7,11,8],[2,4,2,6],[2,7,2,8],[5,4,5,6],[5,7,5,8],[8,4,8,6],[8,7,8,8]]}
[]
[]
[null,null,null,null,"2017-2016",null,null,"السنة الدراسية"]
[]
[]
[null,null,null,null,"مؤسسة راسين",null,null,"إسم المؤسسة "]
[]
[]
[null,null,null,null,{"$f":"IF(E6=\"\",\"\",VLOOKUP(E6,$G$99:$H$110,2,0))","v":"50745G"},null,null,"رمزها"]
[]
[]
[null,null,null,null,{"$f":"IF(E6=\"\",\"\",VLOOKUP(E9,$H$99:$I$110,2,0))","v":"مشور الدار البيضاء"},null,null,"المقاطعة"]
[]
[]
[]
[]
[]
[]
[]
[]
[]
[]
[]
[]
[]
[]
[]
[]
[]
[]
[]
[]
[]
[]
[]
[]
[]
[]
[]
[]
[]
[]
[]
[]
[]
[]
[]
[]
[]
[]
[]
[]
[]
[]
[]
[]
[]
[]
[]
[]
[]
[]
[]
[]
[]
[]
[]
[]
[]
[]
[]
[]
[]
[]
[]
[]
[]
[]
[]
[]
[]
[]
[]
[]
[]
[]
[]
[]
[]
[]
[]
[]
[]
[]
[]
[]
[]
[]
[null,null,null,null,null,null,"معهد وادي النيل","50705N","مقاطعة الفداء",400,null,"NOM_ETABA","CD_ETAB","CD_COM","Qualifiant général","Qualifiant technique"]
[null,null,null,null,null,null,"مؤسسة النصر","50706P","مقاطعة الفداء",400,null,"معهد وادي النيل","50705N","1420111",true,false]
[null,null,null,null,null,null,"ثانوية الفرح","50708S","مقاطعة الفداء",400,null,"مؤسسة النصر","50706P","1420111",true,false]
[null,null,null,null,null,null,"ثانوية أنوال","50709T","مقاطعة الفداء",400,null,"ثانوية الفرح","50708S","1420111",true,false]
[null,null,null,null,null,null," مؤسسة لكريط","52656J","مقاطعة الفداء",404,null,"ثانوية أنوال","50709T","1420111",true,false]
[null,null,null,null,null,null,"معهد الرشاد العلمي ","50720E","مقاطعة مرس السلطان",400,null," مؤسسة لكريط","52656J","1420111",true,true]
[null,null,null,null,null,null,"معهد حاتم","50725K","مقاطعة مرس السلطان",404,null,"معهد الرشاد العلمي ","50720E","1420113",true,true]
[null,null,null,null,null,null,"ثانوية المعرفة","50734V","مقاطعة مرس السلطان",400,null,"معهد حاتم","50725K","1420113",true,true]
[null,null,null,null,null,null,"ثانوية مجموعة مدارس الإقامة","50735W","مقاطعة مرس السلطان",404,null,"ثانوية المعرفة","50734V","1420113",true,false]
[null,null,null,null,null,null,"ثانوية عمر الإدريسي","52556A","مقاطعة مرس السلطان",404,null,"ثانوية مجموعة مدارس الإقامة","50735W","1420113",true,true]
[null,null,null,null,null,null,"إيرابل - معهد مولاي إدريس الأزهر","50739A","مشور الدار البيضاء",400,null,"ثانوية عمر الإدريسي","52556A","1420113",true,true]
[null,null,null,null,null,null,"مؤسسة راسين","50745G","مشور الدار البيضاء",400,null,"إيرابل - معهد مولاي إدريس الأزهر","50739A","1420181",true,false]
[null,null,null,null,null,null,"NOM_ETABA","CD_ETAB","CD_COM","Qualifiant Général","Qualifiant Originel","مؤسسة راسين","50745G","1420181",true,false]
[null,null,null,null,null,null," الثانوية التأهيلية محمد السادس","01548G","1420111",true,false,false]
[null,null,null,null,null,null,"الثانوية التأهيلية جمال الدين المهياوي","01560V","1420111",true,true,false]
[null,null,null,null,null,null,"الثانوية التأهيلية صلاح الدين الايوبي","01561W","1420111",true,false,false]
[null,null,null,null,null,null,"الثانوية التأهيلية طه حسين","01562X","1420111",true,false,false]
[null,null,null,null,null,null,"الثانوية التأهيلية أم البنين","01563Y","1420111",true,false,false]
[null,null,null,null,null,null,"الثانوية التأهيلية الخوارزمي","01564Z","1420113",true,false,true]
[null,null,null,null,null,null,"الثانوية التأهيلية بئرانزران","01565A","1420113",true,false,false]
[null,null,null,null,null,null,"الثانوية التأهيلية محمد الخامس","01566B","1420113",true,false,true]
[null,null,null,null,null,null,"الثانوية التأهيلية الباقلاني","01567C","1420111",true,false,false]
[null,null,null,null,null,null,"الثانوية التأهيلية فاطمة الزهراء","01568D","1420181",true,false,true]

{"sheet":"مسك السن- الجنس","index":2,"n_rows":46,"n_cols":39,"rows_kept":46,"cut":false,"hidden":false,"merged":[[3,0,5,0],[3,1,3,2],[4,2,5,2],[4,1,5,1],[3,19,3,22],[4,21,4,22],[1,1,1,3],[1,4,1,9],[1,11,1,15],[1,16,1,21],[3,3,3,6],[3,7,3,10],[3,11,3,14],[3,15,3,18],[4,13,4,14],[4,15,4,16],[4,17,4,18],[4,27,4,28],[4,29,4,30],[4,19,4,20],[4,23,4,24],[4,25,4,26],[4,3,4,4],[4,5,4,6],[4,7,4,8],[4,9,4,10],[4,11,4,12],[4,35,4,36],[4,37,4,38],[3,23,3,26],[3,27,3,30],[3,31,3,34],[4,33,4,34],[4,31,4,32]]}
[]
[null,"المؤسسة :",null,null,{"$f":"استقبال!E6","v":"مؤسسة راسين"},null,null,null,null,null,null,"الرمز الإحصائي:",null,null,null,null,{"$f":"استقبال!E9","v":"50745G"}]
[]
["المستوى","المسجون الجددبالجذوع المشتركة  الوافدون من الوسط القروي",null,"أقل من 15 سنة",null,null,null,"15 سنة",null,null,null,"16 سنة",null,null,null,"17 سنة",null,null,null,"18 سنة",null,null,null,"19 سنة",null,null,null,"20 سنة",null,null,null,"21 سنة"]
[null,"ذ","إ","جدد",null,"مكررون",null,"جدد",null,"مكررون",null,"جدد",null,"مكررون",null,"جدد",null,"مكررون",null,"جدد",null,"مكررون",null,"جدد",null,"مكررون",null,"جدد",null,"مكررون",null,"جدد",null,"مكررون",null,"جدد",null,"مكررون"]
[null,null,null,"ذ","إ","ذ","إ","ذ","إ","ذ","إ","ذ","إ","ذ","إ","ذ","إ","ذ","إ","ذ","إ","ذ","إ","ذ","إ","ذ","إ","ذ","إ","ذ","إ","ذ","إ","ذ","إ","مجموع","إ","مجموع","إ"]
["code","elvcg","elvcf","nvg14","nvf14","rdg14","rdf14","nvg15","nvf15","rdg15","rdf15","nvg16","nvf16","rdg16","rdf16","nvg17","nvf17","rdg17","rdf17","nvg18","nvf18","rdg18","rdf18","nvg19","nvf19","rdg19","rdf19","nvg20","nvf20","rdg20","rdf20","nvg21","nvf21","rdg21","rdf21"]
["ج م الأدبي",null,null,null,null,null,null,null,null,null,null,null,null,null,null,null,null,null,null,null,null,null,null,null,null,null,null,null,null,null,null,null,null,null,null,{"$f":"SUM(D8:E8,H8:I8,L8:M8,P8:Q8,T8:U8,X8:Y8,AB8:AC8,AF8:AG8)","v":0},{"$f":"SUM(AG8,AC8,Y8,U8,Q8,M8,I8,E8)","v":0},{"$f":"SUM(F8:G8,J8:K8,N8:O8,R8:S8,V8:W8,Z8:AA8,AD8:AE8,AH8:AI8)","v":0},{"$f":"SUM(AI8,AE8,AA8,W8,S8,O8,K8,G8)","v":0}]
["ج م العلمي",null,null,null,null,null,null,null,null,null,null,null,null,null,null,null,null,null,null,null,null,null,null,null,null,null,null,null,null,null,null,null,null,null,null,{"$f":"SUM(D9:E9,H9:I9,L9:M9,P9:Q9,T9:U9,X9:Y9,AB9:AC9,AF9:AG9)","v":0},{"$f":"SUM(AG9,AC9,Y9,U9,Q9,M9,I9,E9)","v":0},{"$f":"SUM(F9:G9,J9:K9,N9:O9,R9:S9,V9:W9,Z9:AA9,AD9:AE9,AH9:AI9)","v":0},{"$f":"SUM(AI9,AE9,AA9,W9,S9,O9,K9,G9)","v":0}]
["ج م العلمي خيار فرنسية",null,null,null,null,null,null,null,null,null,null,null,null,null,null,null,null,null,null,null,null,null,null,null,null,null,null,null,null,null,null,null,null,null,null,0,0,0,0]
["ج م التكنولوجي",null,null,null,null,null,null,null,null,null,null,null,null,null,null,null,null,null,null,null,null,null,null,null,null,null,null,null,null,null,null,null,null,null,null,0,0,0,0]
["ج م أصيل",null,null,null,null,null,null,null,null,null,null,null,null,null,null,null,null,null,null,null,null,null,null,null,null,null,null,null,null,null,null,null,null,null,null,0,0,0,0]
["ج م صناعي",null,null,null,null,null,null,null,null,null,null,null,null,null,null,null,null,null,null,null,null,null,null,null,null,null,null,null,null,null,null,null,null,null,null,0,0,0,0]
["ج م خدماتي",null,null,null,null,null,null,null,null,null,null,null,null,null,null,null,null,null,null,null,null,null,null,null,null,null,null,null,null,null,null,null,null,null,null,0,0,0,0]
["مجموع الجذوع المشتركة",{"$f":"SUM(B8:B14)","v":0},{"$f":"SUM(C8:C14)","v":0},0,0,0,0,0,0,0,0,0,0,0,0,0,0,0,0,0,0,0,0,0,0,0,0,0,0,0,0,0,0,0,0,0,0,0,0]
["س 1 الآداب و العلوم الإنسانية",null,null,null,null,null,null,null,null,null,null,null,null,null,null,null,null,null,null,null,null,null,null,null,null,null,null,null,null,null,null,null,null,null,null,0,0,0,0]
["س 1 العلوم التجريبية",null,null,null,null,null,null,null,null,null,null,null,null,null,null,null,null,null,null,null,null,null,null,null,null,null,null,null,null,null,null,null,null,null,null,0,0,0,0]
["س 1 العلوم الرياضية",null,null,null,null,null,null,null,null,null,null,null,null,null,null,null,null,null,null,null,null,null,null,null,null,null,null,null,null,null,null,null,null,null,null,0,0,0,0]
["س 1 العلوم التجريبية خ فرنسية",null,null,null,null,null,null,null,null,null,null,null,null,null,null,null,null,null,null,null,null,null,null,null,null,null,null,null,null,null,null,null,null,null,null,0,0,0,0]
["س 1 العلوم الرياضية خ فرنسية",null,null,null,null,null,null,null,null,null,null,null,null,null,null,null,null,null,null,null,null,null,null,null,null,null,null,null,null,null,null,null,null,null,null,0,0,0,0]
["س 1 العلوم الإقتصادية و التدبير",null,null,null,null,null,null,null,null,null,null,null,null,null,null,null,null,null,null,null,null,null,null,null,null,null,null,null,null,null,null,null,null,null,null,0,0,0,0]
["س 1 العلوم و التكنولوجيات الكهربائية",null,null,null,null,null,null,null,null,null,null,null,null,null,null,null,null,null,null,null,null,null,null,null,null,null,null,null,null,null,null,null,null,null,null,0,0,0,0]
["س 1 العلوم و التكنولوجيات الميكانيكية",null,null,null,null,null,null,null,null,null,null,null,null,null,null,null,null,null,null,null,null,null,null,null,null,null,null,null,null,null,null,null,null,null,null,0,0,0,0]
["س 1 اللغة العربية",null,null,null,null,null,null,null,null,null,null,null,null,null,null,null,null,null,null,null,null,null,null,null,null,null,null,null,null,null,null,null,null,null,null,0,0,0,0]
["س 1 مهنية - صيانة المركبات المتحركة-السيارات-",null,null,null,null,null,null,null,null,null,null,null,null,null,null,null,null,null,null,null,null,null,null,null,null,null,null,null,null,null,null,null,null,null,null,0,0,0,0]
["س 1 مهنية - فنون الطبخ",null,null,null,null,null,null,null,null,null,null,null,null,null,null,null,null,null,null,null,null,null,null,null,null,null,null,null,null,null,null,null,null,null,null,0,0,0,0]
["س 1 مهنية - تجارة",null,null,null,null,null,null,null,null,null,null,null,null,null,null,null,null,null,null,null,null,null,null,null,null,null,null,null,null,null,null,null,null,null,null,0,0,0,0]
["مجموع السنة الأولى",null,null,{"$f":"SUM(D16:D27)","v":0},{"$f":"SUM(E16:E27)","v":0},0,0,0,0,0,0,0,0,0,0,0,0,0,0,0,0,0,0,0,0,0,0,0,0,0,0,0,0,0,0,0,0,0,0]
["س 2 الآداب ",null,null,null,null,null,null,null,null,null,null,null,null,null,null,null,null,null,null,null,null,null,null,null,null,null,null,null,null,null,null,null,null,null,null,0,0,0,0]
["س 2 الآداب خيار فرنسية",null,null,null,null,null,null,null,null,null,null,null,null,null,null,null,null,null,null,null,null,null,null,null,null,null,null,null,null,null,null,null,null,null,null,0,0,0,0]
["س 2 العلوم الإنسانية",null,null,null,null,null,null,null,null,null,null,null,null,null,null,null,null,null,null,null,null,null,null,null,null,null,null,null,null,null,null,null,null,null,null,0,0,0,0]
["س 2 علوم الحياة والأرض",null,null,null,null,null,null,null,null,null,null,null,null,null,null,null,null,null,null,null,null,null,null,null,null,null,null,null,null,null,null,null,null,null,null,0,0,0,0]
["س 2 العلوم الفيزيائية",null,null,null,null,null,null,null,null,null,null,null,null,null,null,null,null,null,null,null,null,null,null,null,null,null,null,null,null,null,null,null,null,null,null,0,0,0,0]
["س 2 علوم الحياة والأرض خ فرنسية",null,null,null,null,null,null,null,null,null,null,null,null,null,null,null,null,null,null,null,null,null,null,null,null,null,null,null,null,null,null,null,null,null,null,0,0,0,0]
["س 2 العلوم الفيزيائية خ فرنسية",null,null,null,null,null,null,null,null,null,null,null,null,null,null,null,null,null,null,null,null,null,null,null,null,null,null,null,null,null,null,null,null,null,null,0,0,0,0]
["س 2علوم التدبير المحاسباتي",null,null,null,null,null,null,null,null,null,null,null,null,null,null,null,null,null,null,null,null,null,null,null,null,null,null,null,null,null,null,null,null,null,null,0,0,0,0]
["س 2 العلوم الإقتصادية",null,null,null,null,null,null,null,null,null,null,null,null,null,null,null,null,null,null,null,null,null,null,null,null,null,null,null,null,null,null,null,null,null,null,0,0,0,0]
["س 2علوم رياضية ا",null,null,null,null,null,null,null,null,null,null,null,null,null,null,null,null,null,null,null,null,null,null,null,null,null,null,null,null,null,null,null,null,null,null,0,0,0,0]
["س 2 علوم رياضية ب",null,null,null,null,null,null,null,null,null,null,null,null,null,null,null,null,null,null,null,null,null,null,null,null,null,null,null,null,null,null,null,null,null,null,0,0,0,0]
["س 2علوم رياضية ا خ فرنسية",null,null,null,null,null,null,null,null,null,null,null,null,null,null,null,null,null,null,null,null,null,null,null,null,null,null,null,null,null,null,null,null,null,null,0,0,0,0]
["س 2 علوم رياضية ب خ فرنسية",null,null,null,null,null,null,null,null,null,null,null,null,null,null,null,null,null,null,null,null,null,null,null,null,null,null,null,null,null,null,null,null,null,null,0,0,0,0]
["س 2 العلوم و التكنولوجيات الكهربائية",null,null,null,null,null,null,null,null,null,null,null,null,null,null,null,null,null,null,null,null,null,null,null,null,null,null,null,null,null,null,null,null,null,null,0,0,0,0]
["س 2 العلوم و التكنولوجيات الميكانيكية",null,null,null,null,null,null,null,null,null,null,null,null,null,null,null,null,null,null,null,null,null,null,null,null,null,null,null,null,null,null,null,null,null,null,0,0,0,0]
["س 2 اللغة العربية",null,null,null,null,null,null,null,null,null,null,null,null,null,null,null,null,null,null,null,null,null,null,null,null,null,null,null,null,null,null,null,null,null,null,0,0,0,0]
["مجموع السنة الثانية",null,null,{"$f":"SUM(D29:D44)","v":0},{"$f":"SUM(E29:E44)","v":0},0,0,0,0,0,0,0,0,0,0,0,0,0,0,0,0,0,0,0,0,0,0,0,0,0,0,0,0,0,0,0,0,0,0]
["مجموع تلاميذ المؤسسة",{"$f":"B15+B28+B45","v":0},0,0,0,0,0,0,0,0,0,0,0,0,0,0,0,0,0,0,0,0,0,0,0,0,0,0,0,0,0,0,0,0,0,0,0,0,0]

{"sheet":"مسك التفويج- اللغات","index":3,"n_rows":43,"n_cols":25,"rows_kept":43,"cut":false,"hidden":false,"merged":[[0,2,0,9],[0,1,2,1],[0,0,2,0],[1,13,1,15],[1,10,1,12],[0,10,0,24],[1,16,1,18],[1,22,1,24],[1,2,1,3],[1,4,1,5],[1,6,1,7],[1,8,1,9],[1,19,1,21]]}
["المستوى","عدد\n الأقسام","التفويج",null,null,null,null,null,null,null,"للغات والمواد الاختيارية"]
[null,null,"علوم الحياة و الأرض",null,"فزياء وكيمياء",null,"علوم المهندس",null,"إعلاميات التسيير",null,"Anglais\nانجليزية",null,null,"Espagnol  \n  اسبانية",null,null,"Allemand   \n المانية",null,null,"Italien   \n إيطالية",null,null,"Informatique   \n   إعلاميات"]
[null,null,"عدد الأفواج","عدد التلاميذ","عدد الأفواج","عدد التلاميذ","عدد الأفواج","عدد التلاميذ","عدد الأفواج","عدد التلاميذ","أفسام","ذ","إ","أفسام","ذ","إ","أفسام","ذ","إ","أفسام","ذ","إ","أفسام","ذ","إ"]
["code","class","grsvt","elgsvt","grph","elgpht","ging","eling","gges","elggs","clan","ang","anf","cles","esg","esf","clall","allg","allf","clall","allg","allf","clinf","infg","inff"]
["ج م الأدبي"]
["ج م العلمي"]
["ج م العلمي خيار فرنسية"]
["ج م التكنولوجي"]
["ج م أصيل"]
["ج م صناعي"]
["ج م خدماتي"]
["مجموع الجذوع المشتركة",{"$f":"SUM(B5:B11)","v":0},{"$f":"SUM(C5:C11)","v":0},0,0,0,0,0,0,0,0,0,0,0,0,0,0,0,0,{"$f":"SUM(T5:T11)","v":0},{"$f":"SUM(U5:U11)","v":0},{"$f":"SUM(V5:V11)","v":0},0,0,0]
["س 1 الآداب و العلوم الإنسانية"]
["س 1 العلوم التجريبية"]
["س 1 العلوم الرياضية"]
["س 1 العلوم التجريبية خ فرنسية"]
["س 1 العلوم الرياضية خ فرنسية"]
["س 1 العلوم الإقتصادية و التدبير"]
["س 1 العلوم و التكنولوجيات الكهربائية"]
["س 1 العلوم و التكنولوجيات الميكانيكية"]
["س 1 اللغة العربية"]
["س 1 مهنية - صيانة المركبات المتحركة-السيارات-"]
["س 1 مهنية - فنون الطبخ"]
["س 1 مهنية - تجارة"]
["مجموع السنة الأولى",{"$f":"SUM(B13:B24)","v":0},{"$f":"SUM(C13:C24)","v":0},0,0,0,0,0,0,0,0,0,0,0,0,0,0,0,0,{"$f":"SUM(T13:T24)","v":0},{"$f":"SUM(U13:U24)","v":0},{"$f":"SUM(V13:V24)","v":0},0,0,0]
["س 2 الآداب "]
["س 2 الآداب خيار فرنسية"]
["س 2 العلوم الإنسانية"]
["س 2 علوم الحياة والأرض"]
["س 2 العلوم الفيزيائية"]
["س 2 علوم الحياة والأرض خ فرنسية"]
["س 2 العلوم الفيزيائية خ فرنسية"]
["س 2علوم التدبير المحاسباتي"]
["س 2 العلوم الإقتصادية"]
["س 2علوم رياضية ا"]
["س 2 علوم رياضية ب"]
["س 2علوم رياضية ا خ فرنسية"]
["س 2 علوم رياضية ب خ فرنسية"]
["س 2 العلوم و التكنولوجيات الكهربائية"]
["س 2 العلوم و التكنولوجيات الميكانيكية"]
["س 2 اللغة العربية"]
["مجموع السنة الثانية",{"$f":"SUM(B26:B41)","v":0},{"$f":"SUM(C26:C41)","v":0},0,0,0,0,0,0,0,0,0,0,0,0,0,0,0,0,0,0,0,0,0,0]
["مجموع تلاميذ المؤسسة",{"$f":"B12+B25+B42","v":0},0,0,0,0,0,0,0,0,0,0,0,0,0,0,0,0,0,0,0,0,0,0,0]

{"sheet":"مسك التأخر- الحركية","index":4,"n_rows":45,"n_cols":25,"rows_kept":45,"cut":false,"hidden":false,"merged":[[0,0,4,0],[2,23,3,24],[2,15,3,16],[2,17,3,18],[2,19,2,22],[3,19,3,20],[3,21,3,22],[0,1,1,10],[0,11,1,24],[2,1,3,2],[2,11,3,12],[2,13,3,14],[2,3,3,4],[2,5,3,6],[2,7,3,8],[2,9,3,10]]}
["الشعب والمسالك","التأخر المدرسي",null,null,null,null,null,null,null,null,null," حركــية التلاميذ   "]
[]
[null,"تلاميذ كرروا \nسنة واحدة",null,"تلاميذ كرروا سنين",null,"تلاميذ كرروا ثلاث سنوات",null,"تلاميذ كرروا أربع سنوات",null,"تلاميذ كرروا خمس سنوات وأكثر",null,"الوافدون من التعليم العمومي",null,"الوافدون من التعليم الخصوصي",null,"الوافدون من الخارج",null,"المغادرون",null,"غير الملتحقين",null,null,null,"المدمجون"]
[null,null,null,null,null,null,null,null,null,null,null,null,null,null,null,null,null,null,null,"جدد",null,"مكررون"]
[null,"ذ","إ","ذ","إ","ذ","إ","ذ","إ","ذ","إ","ذ","إ","ذ","إ","ذ","إ","ذ","إ","ذ","إ","ذ","إ","ذ","إ"]
["code","dbg1","dbf1","dbg2","dbf2","dbg3","dbf3","dbg4","dbf4","dbg5","dbf5","arvgpb","arvfpb","arvgpv","arvfpv","arvget","arvfet","depg","depf","nsnvg","nsnvf","nsdbg","nsdbf","intg","intf"]
["ج م الأدبي"]
["ج م العلمي"]
["ج م العلمي خيار فرنسية"]
["ج م التكنولوجي"]
["ج م أصيل"]
["ج م صناعي"]
["ج م خدماتي"]
["مجموع الجذوع المشتركة",{"$f":"SUM(B7:B13)","v":0},{"$f":"SUM(C7:C13)","v":0},0,0,0,0,0,0,0,0,0,0,0,0,0,0,0,0,{"$f":"SUM(T7:T13)","v":0},{"$f":"SUM(U7:U13)","v":0},{"$f":"SUM(V7:V13)","v":0},0,0,0]
["س 1 الآداب و العلوم الإنسانية"]
["س 1 العلوم التجريبية"]
["س 1 العلوم الرياضية"]
["س 1 العلوم التجريبية خ فرنسية"]
["س 1 العلوم الرياضية خ فرنسية"]
["س 1 العلوم الإقتصادية و التدبير"]
["س 1 العلوم و التكنولوجيات الكهربائية"]
["س 1 العلوم و التكنولوجيات الميكانيكية"]
["س 1 اللغة العربية"]
["س 1 مهنية - صيانة المركبات المتحركة-السيارات-"]
["س 1 مهنية - فنون الطبخ"]
["س 1 مهنية - تجارة"]
["مجموع السنة الأولى",{"$f":"SUM(B15:B26)","v":0},{"$f":"SUM(C15:C26)","v":0},0,0,0,0,0,0,0,0,0,0,0,0,0,0,0,0,{"$f":"SUM(T15:T26)","v":0},{"$f":"SUM(U15:U26)","v":0},{"$f":"SUM(V15:V26)","v":0},0,0,0]
["س 2 الآداب "]
["س 2 الآداب خيار فرنسية"]
["س 2 العلوم الإنسانية"]
["س 2 علوم الحياة والأرض"]
["س 2 العلوم الفيزيائية"]
["س 2 علوم الحياة والأرض خ فرنسية"]
["س 2 العلوم الفيزيائية خ فرنسية"]
["س 2علوم التدبير المحاسباتي"]
["س 2 العلوم الإقتصادية"]
["س 2علوم رياضية ا"]
["س 2 علوم رياضية ب"]
["س 2علوم رياضية ا خ فرنسية"]
["س 2 علوم رياضية ب خ فرنسية"]
["س 2 العلوم و التكنولوجيات الكهربائية"]
["س 2 العلوم و التكنولوجيات الميكانيكية"]
["س 2 اللغة العربية"]
["مجموع السنة الثانية",{"$f":"SUM(B28:B43)","v":0},{"$f":"SUM(C28:C43)","v":0},0,0,0,0,0,0,0,0,0,0,0,0,0,0,0,0,0,0,0,0,0,0]
["مجموع تلاميذ المؤسسة",{"$f":"B14+B27+B44","v":0},0,0,0,0,0,0,0,0,0,0,0,0,0,0,0,0,0,0,0,0,0,0,0]

{"sheet":"مسك CPGE","index":5,"n_rows":32,"n_cols":51,"rows_kept":32,"cut":false,"hidden":false,"merged":[[9,47,9,48],[9,49,10,49],[9,50,10,50],[9,23,9,24],[9,25,9,26],[9,27,9,28],[9,29,9,30],[9,31,9,32],[9,33,9,34],[9,35,9,36],[9,43,9,44],[9,45,9,46],[21,0,30,0],[11,0,20,0],[8,41,8,44],[8,45,8,48],[8,49,8,50],[9,3,9,4],[9,5,9,6],[9,7,9,8],[9,9,9,10],[9,11,9,12],[9,13,9,14],[9,15,9,16],[9,17,9,18],[9,37,9,38],[9,39,9,40],[9,41,9,42],[8,33,8,36],[8,37,8,40],[8,1,10,1],[8,2,10,2],[8,3,8,12],[8,13,8,16],[8,17,8,20],[9,19,9,20],[9,21,9,22],[8,21,8,24],[8,25,8,28],[8,29,8,32],[0,4,3,14],[0,15,3,25],[0,35,3,45],[6,2,6,13],[6,14,6,19],[6,21,6,25],[6,26,6,31]]}
[null,null,null,null,"CPGE",null,null,null,null,null,null,null,null,null,null,"CPGE",null,null,null,null,null,null,null,null,null,null,null,null,null,null,null,null,null,null,null,"CPGE"]
[]
[]
[]
[]
[]
[null,null,"المؤسسة :",null,null,null,null,null,null,null,null,null,null,null,{"$f":"استقبال!E6","v":"مؤسسة راسين"},null,null,null,null,null,null,"الرمز الإحصائي:",null,null,null,null,{"$f":"استقبال!E9","v":"50745G"}]
[]
[null,"المستوى","أقسام","توزيع الطلبة حسب الجنس و نوع الباكالوريا",null,null,null,null,null,null,null,null,null,"16 سنة",null,null,null,"17 سنة",null,null,null,"18 سنة",null,null,null,"19 سنة",null,null,null,"20 سنة",null,null,null,"21 سنة",null,null,null,"22 سنة",null,null,null,"23 سنة",null,null,null,"مجموع الطلبة",null,null,null,"المجموع"]
[null,null,null,"آداب و ع. إنسانية",null,"ع. رياضية أ",null,"ع. رياضية ب",null,"ع. تجريبية",null,"تقني",null,"جدد",null,"مكررون",null,"جدد",null,"مكررون",null,"جدد",null,"مكررون",null,"جدد",null,"مكررون",null,"جدد",null,"مكررون",null,"جدد",null,"مكررون",null,"جدد",null,"مكررون",null,"جدد",null,"مكررون",null,"جدد",null,"مكررون",null,"مج","إناث"]
[null,null,null,"ذ","إ","ذ","إ","ذ","إ","ذ","إ","ذ","إ","ذ","إ","ذ","إ","ذ","إ","ذ","إ","ذ","إ","ذ","إ","ذ","إ","ذ","إ","ذ","إ","ذ","إ","ذ","إ","ذ","إ","ذ","إ","ذ","إ","ذ","إ","ذ","إ","ذ","إ","ذ","إ"]
["السنة الأولى","Mathématiques",null,null,null,null,null,null,null,null,null,null,null,null,null,null,null,null,null,null,null,null,null,null,null,null,null,null,null,null,null,null,null,null,null,null,null,null,null,null,null,null,null,null,null,{"$f":"AP12+AL12+AH12+AD12+Z12+V12+R12+N12","v":0},{"$f":"AQ12+AM12+AI12+AE12+AA12+W12+S12+O12","v":0},{"$f":"AR12+AN12+AJ12+AF12+AB12+X12+T12+P12","v":0},{"$f":"AS12+AO12+AK12+AG12+AC12+Y12+U12+Q12","v":0},{"$f":"SUM(AT12:AW12)","v":0},{"$f":"AU12+AW12","v":0}]
[null,"Biologie",null,null,null,null,null,null,null,null,null,null,null,null,null,null,null,null,null,null,null,null,null,null,null,null,null,null,null,null,null,null,null,null,null,null,null,null,null,null,null,null,null,null,null,0,0,0,0,0,0]
[null,"Géologie",null,null,null,null,null,null,null,null,null,null,null,null,null,null,null,null,null,null,null,null,null,null,null,null,null,null,null,null,null,null,null,null,null,null,null,null,null,null,null,null,null,null,null,0,0,0,0,0,0]
[null,"Sciences de l'ingenieur ",null,null,null,null,null,null,null,null,null,null,null,null,null,null,null,null,null,null,null,null,null,null,null,null,null,null,null,null,null,null,null,null,null,null,null,null,null,null,null,null,null,null,null,0,0,0,0,0,0]
[null," Economie et commerce",null,null,null,null,null,null,null,null,null,null,null,null,null,null,null,null,null,null,null,null,null,null,null,null,null,null,null,null,null,null,null,null,null,null,null,null,null,null,null,null,null,null,null,0,0,0,0,0,0]
[null,"Technique et sciences industrielles",null,null,null,null,null,null,null,null,null,null,null,null,null,null,null,null,null,null,null,null,null,null,null,null,null,null,null,null,null,null,null,null,null,null,null,null,null,null,null,null,null,null,null,0,0,0,0,0,0]
[null,"Biologie, physique, chimie et sc. De l'ingenieur",null,null,null,null,null,null,null,null,null,null,null,null,null,null,null,null,null,null,null,null,null,null,null,null,null,null,null,null,null,null,null,null,null,null,null,null,null,null,null,null,null,null,null,0,0,0,0,0,0]
[null,"Mathématiques et physique ",null,null,null,null,null,null,null,null,null,null,null,null,null,null,null,null,null,null,null,null,null,null,null,null,null,null,null,null,null,null,null,null,null,null,null,null,null,null,null,null,null,null,null,0,0,0,0,0,0]
[null,"Physique et sc. De l'ingenieur",null,null,null,null,null,null,null,null,null,null,null,null,null,null,null,null,null,null,null,null,null,null,null,null,null,null,null,null,null,null,null,null,null,null,null,null,null,null,null,null,null,null,null,0,0,0,0,0,0]
[null,"مجموع السنة الأولى",{"$f":"SUM(C12:C20)","v":0},0,0,0,0,0,0,0,0,0,0,0,0,0,0,0,0,0,0,0,0,0,0,0,0,0,0,0,0,0,0,0,0,0,0,0,0,0,0,0,0,0,0,0,0,0,0,0,0]
["السنة الثانية","Mathématiques",null,null,null,null,null,null,null,null,null,null,null,null,null,null,null,null,null,null,null,null,null,null,null,null,null,null,null,null,null,null,null,null,null,null,null,null,null,null,null,null,null,null,null,{"$f":"AP22+AL22+AH22+AD22+Z22+V22+R22+N22","v":0},{"$f":"AQ22+AM22+AI22+AE22+AA22+W22+S22+O22","v":0},{"$f":"AR22+AN22+AJ22+AF22+AB22+X22+T22+P22","v":0},{"$f":"AS22+AO22+AK22+AG22+AC22+Y22+U22+Q22","v":0},0,0]
[null,"Biologie",null,null,null,null,null,null,null,null,null,null,null,null,null,null,null,null,null,null,null,null,null,null,null,null,null,null,null,null,null,null,null,null,null,null,null,null,null,null,null,null,null,null,null,0,0,0,0,0,0]
[null,"Géologie",null,null,null,null,null,null,null,null,null,null,null,null,null,null,null,null,null,null,null,null,null,null,null,null,null,null,null,null,null,null,null,null,null,null,null,null,null,null,null,null,null,null,null,0,0,0,0,0,0]
[null,"Sciences de l'ingenieur ",null,null,null,null,null,null,null,null,null,null,null,null,null,null,null,null,null,null,null,null,null,null,null,null,null,null,null,null,null,null,null,null,null,null,null,null,null,null,null,null,null,null,null,0,0,0,0,0,0]
[null," Economie et commerce",null,null,null,null,null,null,null,null,null,null,null,null,null,null,null,null,null,null,null,null,null,null,null,null,null,null,null,null,null,null,null,null,null,null,null,null,null,null,null,null,null,null,null,0,0,0,0,0,0]
[null,"Technique et sciences industrielles",null,null,null,null,null,null,null,null,null,null,null,null,null,null,null,null,null,null,null,null,null,null,null,null,null,null,null,null,null,null,null,null,null,null,null,null,null,null,null,null,null,null,null,0,0,0,0,0,0]
[null,"Biologie, physique, chimie et sc. De l'ingenieur",null,null,null,null,null,null,null,null,null,null,null,null,null,null,null,null,null,null,null,null,null,null,null,null,null,null,null,null,null,null,null,null,null,null,null,null,null,null,null,null,null,null,null,0,0,0,0,0,0]
[null,"Mathématiques et physique ",null,null,null,null,null,null,null,null,null,null,null,null,null,null,null,null,null,null,null,null,null,null,null,null,null,null,null,null,null,null,null,null,null,null,null,null,null,null,null,null,null,null,null,0,0,0,0,0,0]
[null,"Physique et sc. De l'ingenieur",null,null,null,null,null,null,null,null,null,null,null,null,null,null,null,null,null,null,null,null,null,null,null,null,null,null,null,null,null,null,null,null,null,null,null,null,null,null,null,null,null,null,null,0,0,0,0,0,0]
[null,"مجموع السنة الثانية ",{"$f":"SUM(C22:C30)","v":0},{"$f":"SUM(D22:D30)","v":0},0,0,0,0,0,0,0,0,0,0,0,0,0,0,0,0,0,0,0,0,0,0,0,0,0,0,0,0,0,0,0,0,0,0,0,0,0,0,0,0,0,0,0,0,0,0,0]
[null,"مجموع تلاميذ المؤسسة",{"$f":"C21+C31","v":0},{"$f":"D21+D31","v":0},0,0,0,0,0,0,0,0,0,0,0,0,0,0,0,0,0,0,0,0,0,0,0,0,0,0,0,0,0,0,0,0,0,0,0,0,0,0,0,0,0,0,0,0,0,0,0]

{"sheet":"مسك BTS ","index":6,"n_rows":33,"n_cols":51,"rows_kept":33,"cut":false,"hidden":true,"merged":[[10,25,10,26],[7,2,7,13],[7,14,7,19],[7,21,7,25],[7,26,7,31],[10,15,10,16],[10,17,10,18],[9,21,9,24],[9,25,9,28],[9,29,9,32],[9,3,9,12],[9,13,9,16],[9,17,9,20],[10,27,10,28],[10,29,10,30],[9,45,9,48],[10,41,10,42],[10,19,10,20],[9,49,9,50],[10,3,10,4],[10,5,10,6],[10,7,10,8],[10,9,10,10],[10,11,10,12],[10,13,10,14],[10,49,11,49],[10,50,11,50],[9,41,9,44],[9,37,9,40],[9,33,9,36],[10,23,10,24],[22,0,31,0],[1,4,4,18],[1,19,4,33],[1,34,4,48],[10,43,10,44],[10,45,10,46],[10,47,10,48],[10,21,10,22],[12,0,21,0],[10,31,10,32],[10,33,10,34],[10,35,10,36],[10,37,10,38],[10,39,10,40],[9,1,11,1],[9,2,11,2]]}
[]
[null,null,null,null,"BTS",null,null,null,null,null,null,null,null,null,null,null,null,null,null,"BTS",null,null,null,null,null,null,null,null,null,null,null,null,null,null,"BTS"]
[]
[]
[]
[]
[]
[null,null,"المؤسسة :",null,null,null,null,null,null,null,null,null,null,null,{"$f":"استقبال!E6","v":"مؤسسة راسين"},null,null,null,null,null,null,"الرمز الإحصائي:",null,null,null,null,{"$f":"استقبال!E9","v":"50745G"}]
[]
[null,"المستوى","أقسام","توزيع الطلبة حسب الجنس و نوع الباكالوريا",null,null,null,null,null,null,null,null,null,"16 سنة",null,null,null,"17 سنة",null,null,null,"18 سنة",null,null,null,"19 سنة",null,null,null,"20 سنة",null,null,null,"21 سنة",null,null,null,"22 سنة",null,null,null,"23 سنة",null,null,null,"مجموع الطلبة",null,null,null,"المجموع"]
[null,null,null,"آداب و ع. إنسانية",null,"ع. رياضية أ",null,"ع. رياضية ب",null,"ع. تجريبية",null,"تقني",null,"جدد",null,"مكررون",null,"جدد",null,"مكررون",null,"جدد",null,"مكررون",null,"جدد",null,"مكررون",null,"جدد",null,"مكررون",null,"جدد",null,"مكررون",null,"جدد",null,"مكررون",null,"جدد",null,"مكررون",null,"جدد",null,"مكررون",null,"مج","إناث"]
[null,null,null,"ذ","إ","ذ","إ","ذ","إ","ذ","إ","ذ","إ","ذ","إ","ذ","إ","ذ","إ","ذ","إ","ذ","إ","ذ","إ","ذ","إ","ذ","إ","ذ","إ","ذ","إ","ذ","إ","ذ","إ","ذ","إ","ذ","إ","ذ","إ","ذ","إ","ذ","إ","ذ","إ"]
["السنة الأولى","البناء Bâtiment   ",null,null,null,null,null,null,null,null,null,null,null,null,null,null,null,null,null,null,null,null,null,null,null,null,null,null,null,null,null,null,null,null,null,null,null,null,null,null,null,null,null,null,null,{"$f":"AP13+AL13+AH13+AD13+Z13+V13+R13+N13","v":0},{"$f":"AQ13+AM13+AI13+AE13+AA13+W13+S13+O13","v":0},{"$f":"AR13+AN13+AJ13+AF13+AB13+X13+T13+P13","v":0},{"$f":"AS13+AO13+AK13+AG13+AC13+Y13+U13+Q13","v":0},{"$f":"SUM(AT13:AW13)","v":0},{"$f":"AU13+AW13","v":0}]
[null,"القالبية Mouliste   ",null,null,null,null,null,null,null,null,null,null,null,null,null,null,null,null,null,null,null,null,null,null,null,null,null,null,null,null,null,null,null,null,null,null,null,null,null,null,null,null,null,null,null,0,0,0,0,0,0]
[null,"الكهرباء بالتناوب Eléctrotechnique  ",null,null,null,null,null,null,null,null,null,null,null,null,null,null,null,null,null,null,null,null,null,null,null,null,null,null,null,null,null,null,null,null,null,null,null,null,null,null,null,null,null,null,null,0,0,0,0,0,0]
[null,"الإنتاجاتية  Productique   ",null,null,null,null,null,null,null,null,null,null,null,null,null,null,null,null,null,null,null,null,null,null,null,null,null,null,null,null,null,null,null,null,null,null,null,null,null,null,null,null,null,null,null,0,0,0,0,0,0]
[null,"الكهروحيليات و النظم الآلية   Electromécanique (sys. Automatisé)",null,null,null,null,null,null,null,null,null,null,null,null,null,null,null,null,null,null,null,null,null,null,null,null,null,null,null,null,null,null,null,null,null,null,null,null,null,null,null,null,null,null,null,0,0,0,0,0,0]
[null,"الكهروبيات الصناعية Electronique indistruelle ",null,null,null,null,null,null,null,null,null,null,null,null,null,null,null,null,null,null,null,null,null,null,null,null,null,null,null,null,null,null,null,null,null,null,null,null,null,null,null,null,null,null,null,0,0,0,0,0,0]
[null,"النظم و الشبكات المعلوماتية Réseaux et Télécommunication    ",null,null,null,null,null,null,null,null,null,null,null,null,null,null,null,null,null,null,null,null,null,null,null,null,null,null,null,null,null,null,null,null,null,null,null,null,null,null,null,null,null,null,null,0,0,0,0,0,0]
[null,"المواد اللدنية و المركبة    Matières plastiques et composites",null,null,null,null,null,null,null,null,null,null,null,null,null,null,null,null,null,null,null,null,null,null,null,null,null,null,null,null,null,null,null,null,null,null,null,null,null,null,null,null,null,null,null,0,0,0,0,0,0]
[null,"تقنو-تجاري  technico- commercial ",null,null,null,null,null,null,null,null,null,null,null,null,null,null,null,null,null,null,null,null,null,null,null,null,null,null,null,null,null,null,null,null,null,null,null,null,null,null,null,null,null,null,null,0,0,0,0,0,0]
[null,"مجموع السنة الأولى",{"$f":"SUM(C13:C21)","v":0},0,0,0,0,0,0,0,0,0,0,0,0,0,0,0,0,0,0,0,0,0,0,0,0,0,0,0,0,0,0,0,0,0,0,0,0,0,0,0,0,0,0,0,0,0,0,0,0]
["السنة الثانية","البناء Bâtiment   ",null,null,null,null,null,null,null,null,null,null,null,null,null,null,null,null,null,null,null,null,null,null,null,null,null,null,null,null,null,null,null,null,null,null,null,null,null,null,null,null,null,null,null,{"$f":"AP23+AL23+AH23+AD23+Z23+V23+R23+N23","v":0},{"$f":"AQ23+AM23+AI23+AE23+AA23+W23+S23+O23","v":0},{"$f":"AR23+AN23+AJ23+AF23+AB23+X23+T23+P23","v":0},{"$f":"AS23+AO23+AK23+AG23+AC23+Y23+U23+Q23","v":0},0,0]
[null,"القالبية Mouliste   ",null,null,null,null,null,null,null,null,null,null,null,null,null,null,null,null,null,null,null,null,null,null,null,null,null,null,null,null,null,null,null,null,null,null,null,null,null,null,null,null,null,null,null,0,0,0,0,0,0]
[null,"الكهرباء بالتناوب Eléctrotechnique  ",null,null,null,null,null,null,null,null,null,null,null,null,null,null,null,null,null,null,null,null,null,null,null,null,null,null,null,null,null,null,null,null,null,null,null,null,null,null,null,null,null,null,null,0,0,0,0,0,0]
[null,"الإنتاجاتية  Productique   ",null,null,null,null,null,null,null,null,null,null,null,null,null,null,null,null,null,null,null,null,null,null,null,null,null,null,null,null,null,null,null,null,null,null,null,null,null,null,null,null,null,null,null,0,0,0,0,0,0]
[null,"الكهروحيليات و النظم الآلية   Electromécanique (sys. Automatisé)",null,null,null,null,null,null,null,null,null,null,null,null,null,null,null,null,null,null,null,null,null,null,null,null,null,null,null,null,null,null,null,null,null,null,null,null,null,null,null,null,null,null,null,0,0,0,0,0,0]
[null,"الكهروبيات الصناعية Electronique indistruelle ",null,null,null,null,null,null,null,null,null,null,null,null,null,null,null,null,null,null,null,null,null,null,null,null,null,null,null,null,null,null,null,null,null,null,null,null,null,null,null,null,null,null,null,0,0,0,0,0,0]
[null,"النظم و الشبكات المعلوماتية Réseaux et Télécommunication    ",null,null,null,null,null,null,null,null,null,null,null,null,null,null,null,null,null,null,null,null,null,null,null,null,null,null,null,null,null,null,null,null,null,null,null,null,null,null,null,null,null,null,null,0,0,0,0,0,0]
[null,"المواد اللدنية و المركبة    Matières plastiques et composites",null,null,null,null,null,null,null,null,null,null,null,null,null,null,null,null,null,null,null,null,null,null,null,null,null,null,null,null,null,null,null,null,null,null,null,null,null,null,null,null,null,null,null,0,0,0,0,0,0]
[null,"تقنو-تجاري  technico- commercial ",null,null,null,null,null,null,null,null,null,null,null,null,null,null,null,null,null,null,null,null,null,null,null,null,null,null,null,null,null,null,null,null,null,null,null,null,null,null,null,null,null,null,null,0,0,0,0,0,0]
[null,"مجموع السنة الثانية ",{"$f":"SUM(C23:C31)","v":0},{"$f":"SUM(D23:D31)","v":0},0,0,0,0,0,0,0,0,0,0,0,0,0,0,0,0,0,0,0,0,0,0,0,0,0,0,0,0,0,0,0,0,0,0,0,0,0,0,0,0,0,0,0,0,0,0,0]
[null,"مجموع تلاميذ المؤسسة",{"$f":"C22+C32","v":0},{"$f":"D22+D32","v":0},0,0,0,0,0,0,0,0,0,0,0,0,0,0,0,0,0,0,0,0,0,0,0,0,0,0,0,0,0,0,0,0,0,0,0,0,0,0,0,0,0,0,0,0,0,0,0]

{"sheet":"مسك الداخلي","index":7,"n_rows":32,"n_cols":30,"rows_kept":32,"cut":false,"hidden":true,"merged":[[1,1,3,1],[1,2,1,5],[1,6,1,9],[1,10,1,13],[1,14,1,17],[2,12,2,13],[2,2,2,3],[2,4,2,5],[2,6,2,7],[2,8,2,9],[2,10,2,11],[1,18,1,21],[2,18,2,19],[2,20,2,21],[2,14,2,15],[2,16,2,17],[2,22,2,23],[2,24,2,25],[2,26,2,27],[2,28,2,29],[1,22,1,25],[1,26,1,29]]}
[null,1,2,3,4,5,6,7,8,9,10,11,12,13,14,15,16,17,18,19,20,21,22,23,24,25,26,27,28,29]
[null,"المستوى","الإطعام",null,null,null,"الداخليون",null,null,null,"الممنوحون",null,null,null,"الممنوحون الجدد",null,null,null,"الممنوحون الجدد الوافدون\nمن الوسط القروي ",null,null,null,"نصف الممنوحين",null,null,null,"المؤدون"]
[null,null,"مجموع المستفيدين",null,"منهم المستفيدين المنتمون\n إلى  مؤسسات أخرى ",null,"مجموع المستفيدين",null,"منهم المستفيدين المنتمون\n إلى  مؤسسات أخرى ",null,"مجموع المستفيدين",null,"منهم المستفيدين المنتمون\n إلى  مؤسسات أخرى ",null,"مجموع المستفيدين",null,"منهم المستفيدين المنتمون\n إلى  مؤسسات أخرى ",null,"مجموع المستفيدين",null,"منهم المستفيدين المنتمون\n إلى  مؤسسات أخرى ",null,"مجموع المستفيدين",null,"منهم المستفيدين المنتمون\n إلى  مؤسسات أخرى ",null,"مجموع المستفيدين",null,"منهم المستفيدين المنتمون\n إلى  مؤسسات أخرى "]
[null,null,"ذكور","إناث","ذكور","إناث","ذكور","إناث","ذكور","إناث","ذكور","إناث","ذكور","إناث","ذكور","إناث","ذكور","إناث","ذكور","إناث","ذكور","إناث","ذكور","إناث","ذكور","إناث","ذكور","إناث","ذكور","إناث"]
[null,"code","grsvt","elgsvt","grph","elgpht","grsvt","elgsvt","grph","elgpht","grsvt","elgsvt","grph","elgpht","grsvt","elgsvt","grph","elgpht","grsvt","elgsvt","grph","elgpht","grsvt","elgsvt","grph","elgpht","grsvt","elgsvt","grph","elgpht"]
[null,"السنة الأولى ث. إعدادي"]
[null,"السنة الثانية ث. إعدادي"]
[null,"السنة الثالثة ث. إعدادي"]
[null,"ج م الأدبي"]
[null,"ج م العلمي"]
[null,"ج م التكنولوجي"]
[null,"ج م أصيل"]
[null,"س 1 الآداب و العلوم الإنسانية"]
[null,"س 1 العلوم التجريبية"]
[null,"س 1 العلوم الرياضية"]
[null,"س 1 العلوم الإقتصادية و التدبير"]
[null,"س 1 العلوم و التكنولوجيات الكهربائية"]
[null,"س 1 العلوم و التكنولوجيات الميكانيكية"]
[null,"س 1 اللغة العربية"]
[null,"س 2 الآداب "]
[null,"س 2 العلوم الإنسانية"]
[null,"س 2 علوم الحياة والأرض"]
[null,"س 2 العلوم الفيزيائية"]
[null,"مجموع س2 علوم تجريبية"]
[null,"س 2علوم التدبير المحاسباتي"]
[null,"س 2 العلوم الإقتصادية"]
[null,"س 2علوم رياضية ا"]
[null,"س 2 علوم رياضية ب"]
[null,"س 2 العلوم و التكنولوجيات الكهربائية"]
[null,"س 2 العلوم و التكنولوجيات الميكانيكية"]
[null,"س 2 اللغة العربية"]
[null,"المجموع العام",{"$f":"SUM(C6:C31)","v":0},{"$f":"SUM(D6:D31)","v":0},0,0,0,0,0,0,0,0,0,0,0,0,0,0,0,0,0,0,0,0,0,0,0,0,0,0]

{"sheet":"Page de Garde","index":8,"n_rows":119,"n_cols":34,"rows_kept":119,"cut":false,"hidden":false,"merged":[[0,12,0,25],[1,12,1,25],[1,29,1,37],[7,8,7,16],[7,17,7,23],[7,24,7,32],[10,0,10,20],[10,23,10,42],[13,2,13,40],[15,3,15,40],[18,5,18,18],[18,19,18,21],[18,24,18,37],[20,5,20,18],[20,19,20,21],[20,24,20,37],[22,5,22,18],[22,19,22,21],[22,24,22,37],[32,5,32,8],[32,9,32,15],[32,27,32,30],[32,31,32,37],[24,5,24,18],[24,19,24,21],[24,24,24,37],[26,5,26,18],[26,19,26,21],[26,24,26,37],[28,5,28,37],[29,5,30,7],[29,8,29,27],[29,28,30,30],[29,31,29,37],[41,2,41,15],[42,2,42,15],[34,5,36,9],[34,27,34,30],[34,11,34,23],[38,23,38,39],[39,23,39,37],[39,38,39,39],[40,23,40,37],[40,38,40,39],[34,31,34,37],[40,2,40,4],[40,5,40,11],[40,12,40,14],[41,23,41,37],[41,38,41,39],[45,23,45,37],[45,38,45,39],[46,23,46,37],[46,38,46,39],[42,23,42,37],[42,38,42,39],[43,23,43,37],[43,38,43,39],[44,23,44,37],[44,38,44,39]]}
[]
[]
[]
[]
[]
[]
[]
[null,null,null,null,null,null,null,null,"Année scolaire :",null,null,null,null,null,null,null,null,{"$f":"استقبال!E3","v":"2017-2016"},null,null,null,null,null,null,"السنة الدراسية :"]
[]
[]
[]
[]
[]
[null,null,"IDENTIFICATION ET LOCALISATION DE L'ÉTABLISSEMENT"]
[]
[null,null,null,"تعــريـف وموقع المـؤسـســــــــة"]
[]
[]
[null,null,null,null,null,"Nom de l'établissement     اسم المؤسسة",null,null,null,null,null,null,null,null,null,null,null,null,null,{"$f":"استقبال!E9","v":"50745G"},null,null,null,null,{"$f":"استقبال!E6","v":"مؤسسة راسين"}]
[]
[null,null,null,null,null,"Nature de l'établissement  طبيعة المؤسسة",null,null,null,null,null,null,null,null,null,null,null,null,null,{"$f":"VLOOKUP(T19,استقبال!$H$99:$J$110,3,0)","v":400},null,null,null,null,{"$f":"VLOOKUP(T21,$AG$117:$AH$119,2,0)","v":"ثانوية للتعليم العام"}]
[]
[null,null,null,null,null,"Région                                                             الجهة",null,null,null,null,null,null,null,null,null,null,null,null,null,"06",null,null,null,null,"الدار البيضاء سطات"]
[]
[null,null,null,null,null,"Province                                                          الإقليم ",null,null,null,null,null,null,null,null,null,null,null,null,null,142,null,null,null,null,"عمالة مقاطعات الفداء مرس السلطان"]
[]
[null,null,null,null,null,"Commune                                   الجماعة /المقاطعة",null,null,null,null,null,null,null,null,null,null,null,null,null,{"$f":"IF(Y27=\"\",\"\",VLOOKUP(Y27,$AG$111:$AH$113,2,0))","v":1420181},null,null,null,null,{"$f":"استقبال!E12","v":"مشور الدار البيضاء"}]
[]
[null,null,null,null,null,"Coordonnées de l'établissement    عنوان المؤسسة"]
[null,null,null,null,null,"Adresse\nالعنوان",null,null,{"$f":"VLOOKUP($T$19,Feuil1!$A$3:$R$79,12,0)","v":"حي الإحباس، زنقة 15، رقم 10 - مشوار الدار البيضاء"},null,null,null,null,null,null,null,null,null,null,null,null,null,null,null,null,null,null,null,"  Ville\nالمدينة",null,null,"الدار البيضاء"]
[]
[]
[null,null,null,null,null,"Code postal\nالرمز البريدي",null,null,null,{"$f":"VLOOKUP($T$19,Feuil1!$A$3:$R$79,13,0)","v":20500},null,null,null,null,null,null,null,null,null,null,null,null,null,null,null,null,null,"Téléphone :\nالهاتف",null,null,null,{"$f":"VLOOKUP($T$19,Feuil1!$A$3:$R$79,16,0)","v":"0626957899"}]
[]
[null,null,null,null,null,"E.Mail\nالعنوان الإلكتروني",null,null,null,null,null,{"$f":"VLOOKUP($T$19,Feuil1!$A$3:$R$79,18,0)","v":"oussama-riad1@hotmail.fr"},null,null,null,null,null,null,null,null,null,null,null,null,null,null,null,"Fax:\nالفاكس",null,null,null,{"$f":"VLOOKUP($T$19,Feuil1!$A$3:$R$79,17,0)","v":"___-__-__-__"}]
[]
[]
[]
[null,null,null,null,null,null,null,null,null,null,null,null,null,null,null,null,null,null,null,null,null,null,null,"وثائق الملف :"]
[null,null,null,null,null,null,null,null,null,null,null,null,null,null,null,null,null,null,null,null,null,null,null,"التمدرس :  الجذوع - الاوليات - الثانيات -  المجموع "]
[null,null,"Date :",null,null,{"$f":"TODAY()","v":"2016-11-29"},null,null,null,null,null,null,"التاريخ :",null,null,null,null,null,null,null,null,null,null,"مدرسون - حجرات "]
[null,null,"Signature du responsable de l'établissement",null,null,null,null,null,null,null,null,null,null,null,null,null,null,null,null,null,null,null,null,"فضاءات الاستقبال "]
[null,null,"توقيع السيد (ة) المسؤول (ة) عن المؤسسة",null,null,null,null,null,null,null,null,null,null,null,null,null,null,null,null,null,null,null,null,"الدعم المدرسي "]
[null,null,null,null,null,null,null,null,null,null,null,null,null,null,null,null,null,null,null,null,null,null,null,"الداخليات"]
[null,null,null,null,null,null,null,null,null,null,null,null,null,null,null,null,null,null,null,null,null,null,null,"تقني عالي / أقسام تحضيرية "]
[null,null,null,null,null,null,null,null,null,null,null,null,null,null,null,null,null,null,null,null,null,null,null,"بطاقة المؤسسة"]
[null,null,null,null,null,null,null,null,null,null,null,null,null,null,null,null,null,null,null,null,null,null,null,"لائحة التلاميذ الأجانب "]
[]
[]
[]
[]
[]
[]
[]
[]
[]
[]
[]
[]
[]
[]
[]
[]
[]
[]
[]
[]
[]
[]
[]
[]
[]
[]
[]
[]
[]
[]
[]
[]
[]
[]
[]
[]
[]
[]
[]
[]
[]
[]
[]
[]
[]
[]
[]
[]
[]
[]
[]
[]
[]
[]
[]
[]
[]
[]
[]
[]
[]
[]
[]
[null,null,null,null,null,null,null,null,null,null,null,null,null,null,null,null,null,null,null,null,null,null,null,null,null,null,null,null,null,null,null,null,"مقاطعة الفداء",1420111]
[null,null,null,null,null,null,null,null,null,null,null,null,null,null,null,null,null,null,null,null,null,null,null,null,null,null,null,null,null,null,null,null,"مقاطعة مرس السلطان",1420113]
[null,null,null,null,null,null,null,null,null,null,null,null,null,null,null,null,null,null,null,null,null,null,null,null,null,null,null,null,null,null,null,null,"مشور الدار البيضاء",1420181]
[]
[]
[]
[null,null,null,null,null,null,null,null,null,null,null,null,null,null,null,null,null,null,null,null,null,null,null,null,null,null,null,null,null,null,null,null,400,"ثانوية للتعليم العام"]
[null,null,null,null,null,null,null,null,null,null,null,null,null,null,null,null,null,null,null,null,null,null,null,null,null,null,null,null,null,null,null,null,404,"ثانوية للتعليم العام و التقني"]
[null,null,null,null,null,null,null,null,null,null,null,null,null,null,null,null,null,null,null,null,null,null,null,null,null,null,null,null,null,null,null,null,402,"ثانوية للتعليم العام و الأصيل"]

{"sheet":"Q 07 imp","index":9,"n_rows":132,"n_cols":13,"rows_kept":132,"cut":false,"hidden":false,"merged":[[59,1,59,2],[59,3,60,3],[59,4,60,4],[59,5,60,5],[60,1,60,2],[57,10,58,10],[61,11,62,11],[61,12,62,12],[62,7,62,9],[59,8,59,9],[60,8,60,9],[61,7,61,9],[61,10,62,10],[57,11,58,11],[57,12,58,12],[58,7,58,9],[57,7,57,9],[57,1,57,2],[57,3,58,3],[57,4,58,4],[57,5,58,5],[58,1,58,2],[61,4,62,5],[55,10,56,10],[55,11,56,11],[55,12,56,12],[56,7,56,9],[55,1,55,2],[55,3,56,3],[55,4,56,4],[55,5,56,5],[56,1,56,2],[55,7,55,9],[67,1,67,2],[51,7,51,9],[51,3,52,3],[42,1,42,2],[43,1,43,2],[51,1,51,2],[52,1,52,2],[52,7,52,9],[51,5,52,5],[54,7,54,9],[40,9,45,12],[53,11,54,11],[53,12,54,12],[51,11,52,11],[51,12,52,12],[44,1,44,2],[45,1,45,2],[51,4,52,4],[48,7,48,12],[51,10,52,10],[54,1,54,2],[53,1,53,2],[53,3,54,3],[53,4,54,4],[41,1,41,2],[0,6,0,7],[13,2,13,3],[13,4,13,5],[11,1,11,12],[9,2,9,5],[0,9,0,10],[0,0,0,5],[1,0,1,13],[13,6,13,7],[6,3,6,5],[6,1,6,2],[6,7,6,12],[8,1,8,2],[9,6,9,12],[16,1,16,12],[18,1,21,1],[20,10,21,10],[26,11,27,12],[20,5,21,5],[28,11,28,12],[19,3,21,3],[19,2,21,2],[20,11,21,11],[36,11,36,12],[19,6,19,7],[41,7,44,7],[29,11,29,12],[20,8,21,8],[20,9,21,9],[19,10,19,11],[20,6,21,6],[18,4,18,11],[53,5,54,5],[53,7,53,9],[53,10,54,10],[48,1,48,5],[14,4,14,5],[26,5,26,7],[26,8,26,10],[20,4,21,4],[34,11,34,12],[38,1,38,6],[14,2,14,3],[19,4,19,5],[19,8,19,9],[14,6,14,7],[26,2,26,4],[26,1,27,1],[18,2,18,3],[24,1,24,12],[20,7,21,7],[30,11,30,12],[31,11,31,12],[35,11,35,12],[33,11,33,12],[32,11,32,12]]}
["Questionnaire  Q07    استمــــــارة",null,null,null,null,null,"Public عمومي",null,null,"Privé خصوصي"]
["Scolarité des élèves de l'enseignement secondaire qualifiant     تمدرس تلاميذ التعليم الثانوي التأهيلي "]
[]
[]
[]
["I/."," IDENTIFICATION DE L'ÉTABLISSEMENT   تعريف المؤسسة"]
[null,"1.1  Etablissement    المؤسسة",null,{"$f":"'مسك السن- الجنس'!Q2","v":"50745G"},null,null,null,{"$f":"'مسك السن- الجنس'!E2","v":"مؤسسة راسين"}]
[]
["II/.","Statistiques    إحصائيات"]
[null,"2.1  Formation   التكوين",null,null,null,null,"مجموع تلاميذ المؤسسة"]
[]
[null,"2.2  Nouveaux inscrits en tronc commun issus du milieu rural           المسجلون الجدد بالجذوع المشتركة الوافدون من الوسط القروي"]
[]
[null,null,"Garçons   ذكـــــور",null,"Filles    إنـــاث",null,"Total    مجمــــوع"]
[null,null,{"$f":"INDEX(elvcg,MATCH(lookupvalue,code,0))","v":0},{"$f":"INDEX(_nvg11,MATCH(lookupvalue,code,0))","v":{"$error":"#REF!"}},{"$f":"INDEX(elvcf,MATCH(lookupvalue,code,0))","v":0},{"$f":"INDEX(_nvg11,MATCH(lookupvalue,code,0))","v":{"$error":"#REF!"}},{"$f":"C15+E15","v":0}]
[]
[null,"2.3  Elèves, classes et dédoublement     التلاميذ والأقسام والتفويج"]
[]
[null,"Nbre de classes\nعدد الأقسام","Elèves التلاميذ",null,"dédoublement     التفــــــويج"]
[null,null,"Total\nمجموع ","Filles\nإناث","SVT \n  علوم الحياة و الأرض",null,"PC  \nفزياء وكيمياء",null,"Sc.de l'ing. \nعلوم المهندس",null,"Informat. de gestion\nإعلاميات التسيير"]
[null,null,null,null,"Nb groupe\nعدد الأفواج"," Nb élève\nعدد التلاميذ","Nb groupe\nعدد الأفواج"," Nb élève\nعدد التلاميذ","Nb groupe\nعدد الأفواج"," Nb élève\nعدد التلاميذ","Nb groupe\nعدد الأفواج"," Nb élève\nعدد التلاميذ"]
[]
[null,{"$f":"INDEX(class,MATCH(lookupvalue,code,0))","v":0},{"$f":"K37","v":0},{"$f":"J37","v":0},{"$f":"INDEX(grsvt,MATCH(lookupvalue,code,0))","v":0},{"$f":"INDEX(elgsvt,MATCH(lookupvalue,code,0))","v":0},{"$f":"INDEX(grph,MATCH(lookupvalue,code,0))","v":0},{"$f":"INDEX(elgpht,MATCH(lookupvalue,code,0))","v":0},{"$f":"INDEX(ging,MATCH(lookupvalue,code,0))","v":0},{"$f":"INDEX(eling,MATCH(lookupvalue,code,0))","v":0},{"$f":"INDEX(gges,MATCH(lookupvalue,code,0))","v":0},{"$f":"INDEX(elggs,MATCH(lookupvalue,code,0))","v":0}]
[]
[null,"2.4  Répartition des élèves par état de scolarité, âge et sexe          توزيع التلاميذ حسب حالة التمدرس والجنس والســن"]
[]
[null,"Age","Nouveaux    الجدد",null,null,"Redoublants    المكررون",null,null,"Ensemble    المجموع",null,null,"السن"]
[null,null,"Garçons\nذكــــور","Filles\nإناث","Total\nمجموع","Garçons\nذكــــور","Filles\nإناث","Total\nمجموع","Garçons\nذكــــور","Filles\nإناث","Total\nمجموع"]
[null,"moins de 15 ans",{"$f":"INDEX(_nvg14,MATCH(lookupvalue,code,0))","v":0},{"$f":"INDEX(_nvf14,MATCH(lookupvalue,code,0))","v":0},{"$f":"SUM(C29:D29)","v":0},{"$f":"INDEX(_rdg14,MATCH(lookupvalue,code,0))","v":0},{"$f":"INDEX(_rdf14,MATCH(lookupvalue,code,0))","v":0},{"$f":"SUM(F29:G29)","v":0},{"$f":"C29+F29","v":0},{"$f":"D29+G29","v":0},{"$f":"E29+H29","v":0},"أقل من 15 سنة"]
[null,"15 ans",{"$f":"INDEX(_nvg15,MATCH(lookupvalue,code,0))","v":0},{"$f":"INDEX(_nvf15,MATCH(lookupvalue,code,0))","v":0},{"$f":"SUM(C30:D30)","v":0},{"$f":"INDEX(_rdg15,MATCH(lookupvalue,code,0))","v":0},{"$f":"INDEX(_rdf15,MATCH(lookupvalue,code,0))","v":0},{"$f":"SUM(F30:G30)","v":0},{"$f":"C30+F30","v":0},{"$f":"D30+G30","v":0},{"$f":"E30+H30","v":0},"15 سنة"]
[null,"16 ans",{"$f":"INDEX(_nvg16,MATCH(lookupvalue,code,0))","v":0},{"$f":"INDEX(_nvf16,MATCH(lookupvalue,code,0))","v":0},0,{"$f":"INDEX(_rdg16,MATCH(lookupvalue,code,0))","v":0},{"$f":"INDEX(_rdf16,MATCH(lookupvalue,code,0))","v":0},0,0,0,0,"16 سنة"]
[null,"17 ans",{"$f":"INDEX(_nvg17,MATCH(lookupvalue,code,0))","v":0},{"$f":"INDEX(_nvf17,MATCH(lookupvalue,code,0))","v":0},0,{"$f":"INDEX(_rdg17,MATCH(lookupvalue,code,0))","v":0},{"$f":"INDEX(_rdf17,MATCH(lookupvalue,code,0))","v":0},0,0,0,0,"17 سنة"]
[null,"18 ans",{"$f":"INDEX(_nvg18,MATCH(lookupvalue,code,0))","v":0},{"$f":"INDEX(_nvf18,MATCH(lookupvalue,code,0))","v":0},0,{"$f":"INDEX(_rdg18,MATCH(lookupvalue,code,0))","v":0},{"$f":"INDEX(_rdf18,MATCH(lookupvalue,code,0))","v":0},0,0,0,0,"18 سنة"]
[null,"19 ans",{"$f":"INDEX(_nvg19,MATCH(lookupvalue,code,0))","v":0},{"$f":"INDEX(_nvf19,MATCH(lookupvalue,code,0))","v":0},0,{"$f":"INDEX(_rdg19,MATCH(lookupvalue,code,0))","v":0},{"$f":"INDEX(_rdf19,MATCH(lookupvalue,code,0))","v":0},0,0,0,0,"19 سنة"]
[null,"20 ans",{"$f":"INDEX(_nvg20,MATCH(lookupvalue,code,0))","v":0},{"$f":"INDEX(_nvf20,MATCH(lookupvalue,code,0))","v":0},0,{"$f":"INDEX(_rdg20,MATCH(lookupvalue,code,0))","v":0},{"$f":"INDEX(_rdf20,MATCH(lookupvalue,code,0))","v":0},0,0,0,0,"20 سنة"]
[null,"plus de 20 ans",{"$f":"INDEX(_nvg21,MATCH(lookupvalue,code,0))","v":0},{"$f":"INDEX(_nvf21,MATCH(lookupvalue,code,0))","v":0},0,{"$f":"INDEX(_rdg21,MATCH(lookupvalue,code,0))","v":0},{"$f":"INDEX(_rdf21,MATCH(lookupvalue,code,0))","v":0},0,0,0,0,"أكثر من 20 سنة"]
[null,"Total",{"$f":"SUM(C29:C36)","v":0},{"$f":"SUM(D29:D36)","v":0},0,0,0,0,0,0,0,"المجموع"]
[]
[null,"2.5  Langues et matières optionnelles            اللغات والمواد المختارة"]
[]
[null,null,null,"Classes\nالأقسام","Garçons\nذكور","Filles\nإناث","Total\nمجموع",null,null,"توقيع السيد المدير"]
[null,"Anglais                          انجليزية",null,{"$f":"INDEX(clan,MATCH(lookupvalue,code,0))","v":0},{"$f":"INDEX(ang,MATCH(lookupvalue,code,0))","v":0},{"$f":"INDEX(anf,MATCH(lookupvalue,code,0))","v":0},{"$f":"E42+F42","v":0},{"$f":"IF(AND(SUM(D42:D45)=B23,SUM(E42:E45)=I37,SUM(F42:F45)=J37,SUM(G42:G45)=K37),\"OK\",\"ERREUR\")","v":"OK"}]
[null,"Espagnol                        اسبانية",null,{"$f":"INDEX(cles,MATCH(lookupvalue,code,0))","v":0},{"$f":"INDEX(esg,MATCH(lookupvalue,code,0))","v":0},{"$f":"INDEX(esf,MATCH(lookupvalue,code,0))","v":0},{"$f":"E43+F43","v":0}]
[null,"Allemand                         المانية",null,{"$f":"INDEX(clall,MATCH(lookupvalue,code,0))","v":0},{"$f":"INDEX(allg,MATCH(lookupvalue,code,0))","v":0},{"$f":"INDEX(allf,MATCH(lookupvalue,code,0))","v":0},{"$f":"E44+F44","v":0}]
[null,"Italien                             ايطالية",null,{"$f":"INDEX(clit,MATCH(lookupvalue,code,0))","v":0},{"$f":"INDEX(itg,MATCH(lookupvalue,code,0))","v":0},{"$f":"INDEX(itf,MATCH(lookupvalue,code,0))","v":0},{"$f":"E45+F45","v":0}]
[null,"Informatique                 إعلاميات",null,{"$f":"INDEX(clinf,MATCH(lookupvalue,code,0))","v":0},{"$f":"INDEX(infg,MATCH(lookupvalue,code,0))","v":0},{"$f":"INDEX(inff,MATCH(lookupvalue,code,0))","v":0},{"$f":"E46+F46","v":0},{"$f":"IF(AND(D46=B23,E46=I37,J37=F46),\"OK\",\"ERREUR\")","v":"OK"}]
[]
[]
[null,"2.6  Retard scolaire              التأخـــر المدرسي",null,null,null,null,null,"2.7  Mouvement des élèves                   حركــية التلاميذ"]
[]
[null,null,null,"Garçons\nذكور","Filles\nإناث","Total\nمجموع",null,null,null,null,"Garçons\nذكور","Filles\nإناث","Total\nمجموع"]
[null,"Elèves ayant doublé une année",null,{"$f":"INDEX(_dbg1,MATCH(lookupvalue,code,0))","v":0},{"$f":"INDEX(_dbf1,MATCH(lookupvalue,code,0))","v":0},{"$f":"D52+E52","v":0},null,"Arrivées du public ",null,null,{"$f":"INDEX(arvgpb,MATCH(lookupvalue,code,0))","v":0},{"$f":"INDEX(arvfpb,MATCH(lookupvalue,code,0))","v":0},{"$f":"K52+L52","v":0}]
[null,"تلاميذ كرروا سنة واحدة",null,{"$f":"INDEX(_nvg11,MATCH(lookupvalue,code,0))","v":{"$error":"#REF!"}},{"$f":"INDEX(_nvg11,MATCH(lookupvalue,code,0))","v":{"$error":"#REF!"}},null,null,"الوافدون من التعليم العمومي",null,null,{"$f":"INDEX(_nvg11,MATCH(lookupvalue,code,0))","v":{"$error":"#REF!"}},{"$f":"INDEX(_nvg11,MATCH(lookupvalue,code,0))","v":{"$error":"#REF!"}}]
[null,"Elèves ayant doublé deux années",null,{"$f":"INDEX(_dbg2,MATCH(lookupvalue,code,0))","v":0},{"$f":"INDEX(_dbf2,MATCH(lookupvalue,code,0))","v":0},{"$f":"D54+E54","v":0},null,"Arrivées du privé",null,null,{"$f":"INDEX(arvgpv,MATCH(lookupvalue,code,0))","v":0},{"$f":"INDEX(arvfpv,MATCH(lookupvalue,code,0))","v":0},{"$f":"K54+L54","v":0}]
[null,"تلاميذ كرروا سنتين",null,{"$f":"INDEX(_nvg11,MATCH(lookupvalue,code,0))","v":{"$error":"#REF!"}},{"$f":"INDEX(_nvg11,MATCH(lookupvalue,code,0))","v":{"$error":"#REF!"}},null,null,"الوافدون من التعليم الخصوصي",null,null,{"$f":"INDEX(_nvg11,MATCH(lookupvalue,code,0))","v":{"$error":"#REF!"}},{"$f":"INDEX(_nvg11,MATCH(lookupvalue,code,0))","v":{"$error":"#REF!"}}]
[null,"Elèves ayant doublé trois années",null,{"$f":"INDEX(_dbg3,MATCH(lookupvalue,code,0))","v":0},{"$f":"INDEX(_dbf3,MATCH(lookupvalue,code,0))","v":0},{"$f":"D56+E56","v":0},null,"Arrivées de l'étranger",null,null,{"$f":"INDEX(arvget,MATCH(lookupvalue,code,0))","v":0},{"$f":"INDEX(arvfet,MATCH(lookupvalue,code,0))","v":0},{"$f":"K56+L56","v":0}]
[null,"تلاميذ كرروا ثلاث سنوات",null,{"$f":"INDEX(_nvg11,MATCH(lookupvalue,code,0))","v":{"$error":"#REF!"}},{"$f":"INDEX(_nvg11,MATCH(lookupvalue,code,0))","v":{"$error":"#REF!"}},null,null,"الوافدون من الخارج",null,null,{"$f":"INDEX(_nvg11,MATCH(lookupvalue,code,0))","v":{"$error":"#REF!"}},{"$f":"INDEX(_nvg11,MATCH(lookupvalue,code,0))","v":{"$error":"#REF!"}}]
[null,"Elèves ayant doublé quatre années",null,{"$f":"INDEX(_dbg4,MATCH(lookupvalue,code,0))","v":0},{"$f":"INDEX(_dbf4,MATCH(lookupvalue,code,0))","v":0},{"$f":"D58+E58","v":0},null,"Départs de l'établissement",null,null,{"$f":"INDEX(depg,MATCH(lookupvalue,code,0))","v":0},{"$f":"INDEX(depf,MATCH(lookupvalue,code,0))","v":0},{"$f":"K58+L58","v":0}]
[null,"تلاميذ كرروا أربع سنوات",null,{"$f":"INDEX(_nvg11,MATCH(lookupvalue,code,0))","v":{"$error":"#REF!"}},{"$f":"INDEX(_nvg11,MATCH(lookupvalue,code,0))","v":{"$error":"#REF!"}},null,null,"المغادرون",null,null,{"$f":"INDEX(_nvg11,MATCH(lookupvalue,code,0))","v":{"$error":"#REF!"}},{"$f":"INDEX(_nvg11,MATCH(lookupvalue,code,0))","v":{"$error":"#REF!"}}]
[null,"Elèves ayant doublé cinq années et +",null,{"$f":"INDEX(_dbg5,MATCH(lookupvalue,code,0))","v":0},{"$f":"INDEX(_dbf5,MATCH(lookupvalue,code,0))","v":0},{"$f":"D60+E60","v":0},null,"Non \nréinscrits","Nouveaux         جدد",null,{"$f":"INDEX(nsnvg,MATCH(lookupvalue,code,0))","v":0},{"$f":"INDEX(nsnvf,MATCH(lookupvalue,code,0))","v":0},{"$f":"K60+L60","v":0}]
[null,"تلاميذ كرروا خمس سنوات وأكثر",null,{"$f":"INDEX(_nvg11,MATCH(lookupvalue,code,0))","v":{"$error":"#REF!"}},{"$f":"INDEX(_nvg11,MATCH(lookupvalue,code,0))","v":{"$error":"#REF!"}},null,null,"غير الملتحقين","Redoublants   مكررون",null,{"$f":"INDEX(nsdbg,MATCH(lookupvalue,code,0))","v":0},{"$f":"INDEX(nsdbf,MATCH(lookupvalue,code,0))","v":0},{"$f":"K61+L61","v":0}]
[null,null,null,null,{"$f":"IF(AND(SUM(F52,F54,F56,F58,F60)>=H37,SUM(E52,E54,E56,E58,E60)>=G37),\"OK\",\"Erreur\")","v":"OK"},null,null,"Réintégrés",null,null,{"$f":"INDEX(intg,MATCH(lookupvalue,code,0))","v":0},{"$f":"INDEX(intf,MATCH(lookupvalue,code,0))","v":0},{"$f":"K62+L62","v":0}]
[null,null,null,null,null,null,null,"المدمجون",null,null,{"$f":"INDEX(_nvg11,MATCH(lookupvalue,code,0))","v":{"$error":"#REF!"}},{"$f":"INDEX(_nvg11,MATCH(lookupvalue,code,0))","v":{"$error":"#REF!"}}]
[]
[]
[]
[]
[]
[]
[]
[]
[]
[]
[null,"ج م الأدبي"]
[null,"ج م العلمي"]
[null,"ج م العلمي خيار فرنسية"]
[null,"ج م التكنولوجي"]
[null,"ج م أصيل"]
[null,"ج م صناعي"]
[null,"ج م خدماتي"]
[null,"مجموع الجذوع المشتركة"]
[null,"س 1 الآداب و العلوم الإنسانية"]
[null,"س 1 العلوم التجريبية"]
[null,"س 1 العلوم الرياضية"]
[null,"س 1 العلوم التجريبية خ فرنسية"]
[null,"س 1 العلوم الرياضية خ فرنسية"]
[null,"س 1 العلوم الإقتصادية و التدبير"]
[null,"س 1 العلوم و التكنولوجيات الكهربائية"]
[null,"س 1 العلوم و التكنولوجيات الميكانيكية"]
[null,"س 1 اللغة العربية"]
[null,"س 1 مهنية - صيانة المركبات المتحركة-السيارات-"]
[null,"س 1 مهنية - فنون الطبخ"]
[null,"س 1 مهنية - تجارة"]
[null,"مجموع السنة الأولى"]
[null,"س 2 الآداب "]
[null,"س 2 الآداب خيار فرنسية"]
[null,"س 2 العلوم الإنسانية"]
[null,"س 2 علوم الحياة والأرض"]
[null,"س 2 العلوم الفيزيائية"]
[null,"س 2 علوم الحياة والأرض خ فرنسية"]
[null,"س 2 العلوم الفيزيائية خ فرنسية"]
[null,"س 2علوم التدبير المحاسباتي"]
[null,"س 2 العلوم الإقتصادية"]
[null,"س 2علوم رياضية ا"]
[null,"س 2 علوم رياضية ب"]
[null,"س 2علوم رياضية ا خ فرنسية"]
[null,"س 2 علوم رياضية ب خ فرنسية"]
[null,"س 2 العلوم و التكنولوجيات الكهربائية"]
[null,"س 2 العلوم و التكنولوجيات الميكانيكية"]
[null,"س 2 اللغة العربية"]
[null,"مجموع السنة الثانية"]
[null,"مجموع تلاميذ المؤسسة"]
[]
[]
[]
[]
[]
[]
[]
[]
[]
[]
[]
[]
[]
[]
[]
[]
[null,null,null,null,null,"العلوم الرياضية ا"]
[]
[]
[null,null,null,null,null,"العلوم الإقتصادية والتدبير"]

{"sheet":"Q 03 IMP","index":10,"n_rows":71,"n_cols":13,"rows_kept":71,"cut":false,"hidden":false,"merged":[[0,0,0,5],[2,0,2,12],[4,0,4,12],[6,1,6,2],[6,4,6,5],[6,7,6,11],[8,0,8,12],[10,0,20,0],[10,1,11,1],[12,1,12,2],[13,1,14,1],[15,1,16,1],[17,1,18,1],[19,1,20,1],[21,0,21,2],[24,0,24,12],[25,9,37,12],[26,0,36,0],[26,1,27,1],[28,1,28,2],[29,1,30,1],[31,1,32,1],[33,1,34,1],[35,1,36,1],[37,0,37,2],[40,0,40,12],[42,0,52,0],[42,1,43,1],[44,1,44,2],[45,1,46,1],[47,1,48,1],[49,1,50,1],[51,1,52,1],[69,0,69,2],[53,0,53,2],[56,0,56,12],[58,0,68,0],[58,1,59,1],[60,1,60,2],[61,1,62,1],[63,1,64,1],[65,1,66,1],[67,1,68,1]]}
["Questionnaire  Q03   استمــــارة ",null,null,null,null,null,"Public عمومي",null,null,"Privé خصوصي"]
[]
["Espace d'accueil : Bloc administratif et sanitaire, Hebergement et Restauration, Sportif et Logement     "]
[]
["فضاءات الاستقبال : المرافق الإدارية  و الصحية و الإطعام والإيواء و الملاعب الرياضية والسكنيات"]
[]
[null,"Etablissement  المؤسسة",null,null,{"$f":"+استقبال!E9","v":"50745G"},null,null,{"$f":"+استقبال!E6","v":"مؤسسة راسين"}]
[]
["BLOC ADMINISTRATIF ET SANITAIRE    المرافق الإدارية  و الصحية"]
[null,null,null,"Bureaux Administratifs\nمكاتب إدارية\n2000","Salle des enseignants\nقاعة الاساتذة\n2005","Entrepot\nمستودع\n\n2007","Salle d'Archives \nقاعة الأرشيف\n2009","Salle de conférence\nقاعة المحاضرات\n2011","Infirmerie\nالمصحة\n\n2013","Salle de prière\nالمسجد\n2015","Salle de permanence\nقاعة المداومة\n2017","Bibliothèque\nمكتبة\n\n2021","Latrines\nالمرافق الصحية\n\n2023"]
[" disponibles","Nombre","Bon Etat"]
[null,null,"Défectueux"]
[null,"dont Nouvelles créations"]
[null,"dont utilisées ","Bon Etat"]
[null,null,"Défectueux"]
[null,"dont utilisées pour autre fin","Bon Etat"]
[null,null,"Défectueux"]
[null,"dont prêtés ","Bon Etat"]
[null,null,"Défectueux"]
[null,"dont fermés ","Bon Etat"]
[null,null,"Défectueux"]
["Empruntés "]
[null,null,null,{"$f":"IF(AND(D11+D12=D14+D15+D16+D17+D18+D19+D20+D21,D12=D15+D17+D19+D21,D11=D14+D16+D18+D20),\"OK\",\"ERREUR\")","v":"OK"},"OK","OK","OK","OK","OK","OK","OK","OK","OK"]
[]
["BLOC RESTAURATION ET HEBERGEMENT    مرافق الإطعام والإيواء"]
[null,null,null,"Refectoir Cantine scolaire\nقاعة الاطعام\n4001","Cuisine Cantine scolaire\nالمطبخ\n4003","Dortoir\nمراقد\n\n\n4101","Pioles\nغرف النوم\n\n\n4103","Foyer\nمأوى\n\n\n4105","Refectoir Inernat\n قاعة الإطعام للداخلية\n4107","\nتوقيع السيد(ة) المدير(ة):"]
[" disponibles","Nombre","Bon Etat"]
[null,null,"Défectueux"]
[null,"dont Nouvelles créations"]
[null,"dont utilisées ","Bon Etat"]
[null,null,"Défectueux"]
[null,"dont utilisées pour autre fin","Bon Etat"]
[null,null,"Défectueux"]
[null,"dont prêtés ","Bon Etat"]
[null,null,"Défectueux"]
[null,"dont fermés ","Bon Etat"]
[null,null,"Défectueux"]
["Empruntés "]
[null,null,null,{"$f":"IF(AND(D27+D28=D30+D31+D32+D33+D34+D35+D36+D37,D28=D31+D33+D35+D37,D27=D30+D32+D34+D36),\"OK\",\"ERREUR\")","v":"OK"},"OK","OK","OK","OK","OK"]
[]
["BLOC SPORTIF    المرافق الرياضية"]
[null,null,null,"Terrain de Foot-ball\nملعب كرة القدم\n\n5003","Terrain de Hand-Ball\nملعب كرة اليد\n\n5005","Terrain de Volly-Ball\n ملعب الكرة الطائرة\n5007","Terrain de Basket-Ball \n ملعب كرة السلة\n\n5009","Piste \nحلبة\n\n\n5015","Salle de gymnastique\nقاعة الجمباز\n\n5017","Vestiaire pour Garçons\n  مستودع للذكور \n\n5019","Vestiaire pour Filles\nمستودع للإناث \n\n5021"]
[" disponibles","Nombre","Bon Etat"]
[null,null,"Défectueux"]
[null,"dont Nouvelles créations"]
[null,"dont utilisées ","Bon Etat"]
[null,null,"Défectueux"]
[null,"dont utilisées pour autre fin","Bon Etat"]
[null,null,"Défectueux"]
[null,"dont prêtés ","Bon Etat"]
[null,null,"Défectueux"]
[null,"dont fermés ","Bon Etat"]
[null,null,"Défectueux"]
["Empruntés "]
[null,null,null,{"$f":"IF(AND(D43+D44=D46+D47+D48+D49+D50+D51+D52+D53,D44=D47+D49+D51+D53,D43=D46+D48+D50+D52),\"OK\",\"ERREUR\")","v":"OK"},"OK","OK","OK","OK","OK","OK","OK"]
[]
["BLOC LOGEMENTS    السكنيات"]
[null,null,null,"Logement pour Directeur\nسكن المدير\n\n\n\n6001","Logement pour Censeur\nسكن الناظر \n\n\n\n\n6005","Logement pour surveillants généraux d'externat\nسكن الحراس العامين للخارجية\n6007","Logement pour surveillants généraux d'internat\nسكن حارس عام الداخلية\n6009","Logement pour Econome / intendant\nسكن المقتصد \\ الممون\n\n6011","Logement pour enseignants\nسكن المدرسين\n\n\n\n6013","Logement pour le concièrge\nسكن الحارس\n\n\n\n6015","Autre Logement \nسكن آخر\n\n\n\n\n6099"]
[" disponibles","Nombre","Bon Etat"]
[null,null,"Défectueux"]
[null,"dont Nouvelles créations"]
[null,"dont utilisées ","Bon Etat"]
[null,null,"Défectueux"]
[null,"dont utilisées pour autre fin","Bon Etat"]
[null,null,"Défectueux"]
[null,"dont prêtés ","Bon Etat"]
[null,null,"Défectueux"]
[null,"dont fermés ","Bon Etat"]
[null,null,"Défectueux"]
["Empruntés "]
[null,null,null,{"$f":"IF(AND(D59+D60=D62+D63+D64+D65+D66+D67+D68+D69,D60=D63+D65+D67+D69,D59=D62+D64+D66+D68),\"OK\",\"ERREUR\")","v":"OK"},"OK","OK","OK","OK","OK","OK","OK"]

{"sheet":"Q03-qualif imp","index":11,"n_rows":53,"n_cols":17,"rows_kept":53,"cut":false,"hidden":false,"merged":[[0,0,0,6],[2,0,2,16],[4,1,4,2],[6,1,6,2],[6,8,6,10],[6,13,6,15],[4,4,4,5],[4,7,4,11],[22,16,23,16],[7,1,7,2],[7,8,7,10],[8,1,8,2],[8,8,9,10],[8,11,9,11],[9,1,9,2],[11,4,11,12],[11,13,11,14],[22,13,23,13],[22,14,23,14],[22,15,23,15],[30,16,31,16],[34,1,34,3],[34,12,35,12],[35,1,35,3],[24,13,25,13],[24,14,25,14],[24,15,25,15],[24,16,25,16],[26,13,27,13],[26,14,27,14],[26,15,27,15],[26,16,27,16],[30,13,31,13],[30,14,31,14],[30,15,31,15],[48,2,48,3],[49,2,49,3],[50,0,50,3],[36,1,36,3],[37,0,49,0],[37,1,47,1],[37,2,38,2],[39,2,39,3],[40,2,41,2],[42,2,43,2],[44,2,45,2],[46,2,47,2],[48,1,49,1]]}
["Questionnaire  Q03/ Secondaire Qualifiant    استمارة الثانوي التأهيلي  ",null,null,null,null,null,null,"Public عمومي",null,null,"Privé خصوصي"]
[]
["Espace d'accueil : Bloc pédagogique  فضاءات الاستقبال : المرافق التربوية"]
[]
[null,"Etablissement  المؤسسة",null,null,{"$f":"'مسك السن- الجنس'!Q2","v":"50745G"},null,null,{"$f":"'مسك السن- الجنس'!E2","v":"مؤسسة راسين"}]
[]
[null,"Niveaux     المستويات ",null,"TC\nالجدع المشترك","1ère année bac\nالسنة أولى باكالوريا","2ème année bac\nالسنة ثانية باكالوريا","Total\nالمجموع",null,"Jour par semaine (4)\nعدد أيام الدراسة في الأسبوع\n",null,null,6,null,"Heures / Enseignant / semaine (7)\nعدد الساعات للأستاذ في الأسبوع",null,null,21]
[null,"Nombre de classes  عدد الأقسام   (1)",null,{"$f":"+'بطاقة المؤسسة'!J26","v":0},{"$f":"+'بطاقة المؤسسة'!J39","v":0},{"$f":"+'بطاقة المؤسسة'!J56","v":0},{"$f":"SUM(D8:F8)","v":0},null,"Horaires par jour  عدد الساعات في اليوم (5)",null,null,8]
[null,"Effectifs des élèves عدد التلاميذ (2)",null,{"$f":"+'بطاقة المؤسسة'!H26","v":0},{"$f":"+'بطاقة المؤسسة'!H39","v":0},{"$f":"+'بطاقة المؤسسة'!H56","v":0},{"$f":"SUM(D9:F9)","v":0},null,"Horaires par semaine (6)\nعدد الساعات في الأسبوع",null,null,{"$f":"L7*L8","v":48}]
[null,"Ratio Elèves/Classe معدل التلاميذ بالقسم (3)",null,{"$f":"IF(D8=0,\"\",ROUND(D9/D8,0))","v":""},{"$f":"IF(E8=0,\"\",ROUND(E9/E8,0))","v":""},{"$f":"IF(F8=0,\"\",ROUND(F9/F8,0))","v":""},{"$f":"IF(G8=0,\"\",ROUND(G9/G8,0))","v":""}]
[]
[null,null,null,null,"Nombre de cours par type de local",null,null,null,null,null,null,null,null,"Besoins en enseignants"]
[null,"Code\nالرمز","Matières enseignées\nالمواد المدرسة","(8)\nNombre global de cours par semaine\nعدد الإجمالي للحصص الأسبوعية","(9)\nSalle d'Enseignement Général\nحجرة التعليم العام\n\n 3001","(10)\nSalle de cours Physique-chimie \nقاعة الفيزياء والكيمياء\n\n\n3201","(11)\nSalle de cours SVT \nقاعة علوم الحياة والارض\n\n3203","(12)\nSalle de cours des sciences agricoles\nقاعة العلوم الزراعية\n\n3205","(13)\nLabo des sciences TP \nمختبر العلوم\n\n3301","(14)\nSalle d'informatique/ multimédia \nقاعة الإعلاميات ومتعددة الوسائط \n3105","(15)\nSalle des arts plastiques\nقاعة الفنون التشكيلية\n3113","(16)\nSalle de sciences de l'ingénieur \nقاعة علوم المهندس\n3121","(20)\nExtérieur","(30)\nRatios cours/ horaire hebdo des enseignants","(31)\nEffectif d'enseignants à prévoir","(32)\nEffectif d'enseignants disponible","(33)\nE CARTS"]
[null,"Q01","Langue /littérature arabe",null,{"$f":"D14","v":0},null,null,null,null,null,null,null,null,{"$f":"D14/$Q$7","v":0},{"$f":"ROUNDUP(N14,0)","v":0},null,{"$f":"P14-O14","v":0}]
[null,"Q02","Langue française",null,{"$f":"D15","v":0},null,null,null,null,null,null,null,null,{"$f":"D15/$Q$7","v":0},{"$f":"ROUNDUP(N15,0)","v":0},null,{"$f":"P15-O15","v":0}]
[null,"Q03","2ème langue étrangère",null,0,null,null,null,null,null,null,null,null,0,0,null,0]
[null,"Q04","Histoire / géographie",null,0,null,null,null,null,null,null,null,null,0,0,null,0]
[null,"Q05","Philosophie",null,0,null,null,null,null,null,null,null,null,0,0,null,0]
[null,"Q06","Instruction / matières islamique",null,0,null,null,null,null,null,null,null,null,0,0,null,0]
[null,"Q07","Mathématiques",null,0,null,null,null,null,null,null,null,null,0,0,null,0]
[null,"Q08","Traduction",null,0,null,null,null,null,null,null,null,null,0,0,null,0]
[null,"Q09","documentation",null,0,null,null,null,null,null,null,null,null,0,0,null,0]
[null,"Q10","Physique chime (cours)",null,null,{"$f":"D23","v":0},null,null,null,null,null,null,null,{"$f":"(D23+D24)/$Q$7","v":0},0,null,0]
[null,"Q11","Physique chimie (TP)",null,null,null,null,null,{"$f":"D24","v":0},null,null,null,null,0,0,null,0]
[null,"Q12","Sciences de la vie et de la terre (cours)",null,null,null,{"$f":"D25","v":0},null,null,null,null,null,null,{"$f":"(D25+D26)/$Q$7","v":0},0,null,0]
[null,"Q13","Sciences de la vie et de la terre (TP)",null,null,null,null,null,{"$f":"D26","v":0},null,null,null,null,0,0,null,0]
[null,"Q14","Sciences végétales et animales(cours)",null,null,null,null,{"$f":"D27","v":0},null,null,null,null,null,{"$f":"(D27+D28)/$Q$7","v":0},0,null,0]
[null,"Q15","Sciences végétales et animales(TP)",null,null,null,null,null,{"$f":"D28","v":0},null,null,null,null,0,0,null,0]
[null,"Q16","sciences de l'ingénieur (TP)",null,null,null,null,null,null,null,null,{"$f":"D29","v":0},null,0,0,null,0]
[null,"Q17","Economie et gestion",null,{"$f":"D30","v":0},null,null,null,null,null,null,null,null,0,0,null,0]
[null,"Q18","Culture/Matières Artistiques (cours)",null,{"$f":"D31","v":0},null,null,null,null,null,{"$f":"D31","v":0},null,null,{"$f":"(D31+D32)/$Q$7","v":0},0,null,0]
[null,"Q19","Culture/Matières Artistiques (TP)",null,null,null,null,null,null,null,{"$f":"D32","v":0},null,null,0,0,null,0]
[null,"Q20","Informatique",null,null,null,null,null,null,{"$f":"D33","v":0},null,null,null,0,0,null,0]
[null,"Q30","Education physique",null,null,null,null,null,null,null,null,null,{"$f":"D34","v":0},0,0,null,0]
[null,"Nombre total de cours par type de local (40)",null,null,{"$f":"SUM(E14:E34)","v":0},{"$f":"SUM(F14:F34)","v":0},0,0,0,0,0,0,"TOTAL(51)",null,{"$f":"SUM(O14:O34)","v":0},{"$f":"SUM(P14:P34)","v":0},{"$f":"SUM(Q14:Q34)","v":0}]
[null,"Ratios cours/horaire hebdomadaire (41)",null,null,{"$f":"E35/$L$9","v":0},{"$f":"F35/$L$9","v":0},0,0,0,0,0,0]
[null,"Locaux requis (42)",null,null,{"$f":"ROUNDUP(E36,0)","v":0},{"$f":"ROUNDUP(F36,0)","v":0},0,0,0,0,0,0,{"$f":"SUM(E37:L37)","v":0}]
["Salles de classes "," disponibles","Nombre (43)","Bon Etat",null,null,null,null,null,null,null,null,{"$f":"SUM(E38:L38)","v":0}]
[null,null,null,"Défectueux",null,null,null,null,null,null,null,null,{"$f":"SUM(E39:L39)","v":0}]
[null,null,"dont Nouvelles créations (44)",null,null,null,null,null,null,null,null,null,{"$f":"SUM(E40:L40)","v":0}]
[null,null,"dont utilisées pour l'enseignement (45)","Bon Etat",null,null,null,null,null,null,null,null,0]
[null,null,null,"Défectueux",null,null,null,null,null,null,null,null,0]
[null,null,"dont utilisées pour autre fin (46)","Bon Etat",null,null,null,null,null,null,null,null,0]
[null,null,null,"Défectueux",null,null,null,null,null,null,null,null,0]
[null,null,"dont prêtés (47)","Bon Etat",null,null,null,null,null,null,null,null,0]
[null,null,null,"Défectueux",null,null,null,null,null,null,null,null,0]
[null,null,"dont fermés  (48)","Bon Etat",null,null,null,null,null,null,null,null,0]
[null,null,null,"Défectueux",null,null,null,null,null,null,null,null,0]
[null,"Autres salles ","Empruntés (49)",null,null,null,null,null,null,null,null,null,0]
[null,null,"Autre type de locaux   (50)",null,null,null,null,null,null,null,null,null,0]
["Total utilisées (52)",null,null,null,{"$f":"E41+E42+E49+E50","v":0},{"$f":"F41+F42+F49+F50","v":0},0,0,0,0,0,0,0]
[]
[null,null,null,null,{"$f":"IF(AND(E38=E41+E43+E45+E47,E39=E42+E44+E46+E48),\"OK\",\"ERREUR\")","v":"OK"},{"$f":"IF(AND(F38=F41+F43+F45+F47,F39=F42+F44+F46+F48),\"OK\",\"ERREUR\")","v":"OK"},"OK","OK","OK","OK","OK","OK","OK"]

{"sheet":"Q 14 IMP ","index":12,"n_rows":111,"n_cols":20,"rows_kept":111,"cut":false,"hidden":true,"merged":[[1,0,1,19],[2,0,2,19],[3,0,3,19],[5,1,5,19],[7,5,7,6],[7,8,7,19],[9,5,9,6],[9,8,9,19],[11,5,11,6],[11,8,11,19],[13,5,13,6],[13,8,13,19],[27,1,27,10],[15,5,15,6],[15,8,15,19],[16,1,16,19],[18,11,18,13],[20,11,20,13],[20,17,20,19],[22,6,22,7],[22,11,22,13],[22,17,22,19],[24,7,24,9],[25,7,25,9],[29,1,29,7],[29,9,29,11],[29,13,29,15],[29,17,29,19],[31,1,31,2],[31,4,31,7],[33,1,33,2],[33,4,33,7],[35,1,35,2],[35,4,35,7],[36,1,36,2],[36,4,36,7],[43,1,43,2],[43,4,43,7],[37,1,37,2],[37,4,37,7],[39,1,39,2],[39,4,39,7],[41,1,41,2],[41,4,41,7]]}
[]
["Questionnaire  Q14 استمــارة"]
["Fiche de distribution des manuels et fournitures scolaires à la rentrée scolaire"]
["بطاقة توزيع الكتب والأدوات المدرسية عند الدخول المدرسي"]
[]
["I/."," IDENTIFICATION DE L'ETABLISSEMENT            تعريف المؤسسة       "]
[]
[null,"  Etablissement       المؤسســـة",null,null,null,{"$f":"'مسك السن- الجنس'!Q2","v":"50745G"},null,null,{"$f":"'مسك السن- الجنس'!E2","v":"مؤسسة راسين"}]
[]
[null,"Région","الجهة",null,null,"06",null,null,"الدار البيضاء سطات"]
[]
[null,"Province","الإقليم",null,null,142,null,null,"عمالة مقاطعات الفداء مرس السلطان"]
[]
[null,"Commune","الجماعة",null,null,{"$f":"IF(I14=\"\",\"\",VLOOKUP(I14,$L$110:$M$111,2,0))","v":{"$error":"#N/A"}},null,null,{"$f":"استقبال!E12","v":"مشور الدار البيضاء"}]
[]
[null,"Milieu","الوسط",null,null,"U",null,null,"حضري"]
["II/."," DONNATEURS         المانحــون"]
[]
[null,null,null,null,null,null,"Etat\nالدولة",null,null,null,null,"Collectivités locales\nالجماعات المحلية",null,null,null,null,null,"Privé\nخاص"]
[]
[null,null,null,null,null,null,"Fondation\nمؤسسة",null,null,null,null,"ONG interne\nهيئة غير حكومية داخلية",null,null,null,null,null,"ONG externe\nهيئة غير حكومية خارجية"]
[]
[null,null,null,null,null,null,"Association interne\nجمعية داخلية",null,null,null,null,"Association externe\nجمعية خارجية",null,null,null,null,null,"Mecenats\nمحــســـنون"]
[]
[null,null,null,null,null,null,"Autre\nآخـــر"]
[]
["III/.","REPARTITION DES BENEFICIAIRES PAR TYPE D'APPUI, CYCLE ET SEXE"]
[null,"توزيع المستفيدين حسب نوع الدعم السلك والجنس"]
[]
[null," Type d'appui   نوع الدعــم",null,null,null,null,null,null,null,"Primaire\nالابتدائي",null,null,null,"Collégial\nالإعدادي",null,null,null,"Qualifiant\nالتأهيلي"]
[]
[null,"Code  الرمز\n  ",null,null," Type d'appui   نوع الدعــم",null,null,null,null,"Total\nمجموع",null,"Filles\nإناث",null,"Total\nمجموع",null,"Filles\nإناث",null,"Total\nمجموع",null,"Filles\nإناث"]
[]
[null,"I_2_I",null,null,"Kits complets"]
[]
[null,"I_3_I",null,null,"Manuels et fournitures"]
[null,"I_4_I",null,null,"Lunettes"]
[null,"I_5_I",null,null,"Vélos"]
[]
[null,"I_6_I",null,null,"Uniformes scolaires"]
[]
[null,"I_8_I",null,null,"Manuels"]
[]
[null,"I_7_I",null,null,"Autre"]
[]
[]
[]
[]
[]
[]
[]
[]
[]
[]
[]
[]
[]
[]
[]
[]
[]
[]
[]
[]
[]
[]
[]
[]
[]
[]
[]
[]
[]
[]
[]
[]
[]
[]
[]
[]
[]
[]
[]
[]
[]
[]
[]
[]
[]
[]
[]
[]
[]
[]
[]
[]
[]
[]
[]
[]
[]
[]
[]
[]
[]
[]
[]
[]
[]
[null,null,null,null,null,null,null,null,null,null,null,"مقاطعة الفداء",1420111]
[null,null,null,null,null,null,null,null,null,null,null,"مقاطعة مرس السلطان",1420113]

{"sheet":"BTS","index":13,"n_rows":114,"n_cols":12,"rows_kept":114,"cut":false,"hidden":true,"merged":[[0,10,0,11],[1,1,1,13],[0,0,0,6],[0,7,0,8],[37,1,37,2],[25,2,26,3],[36,1,36,2],[26,6,26,7],[36,6,36,7],[5,3,5,4],[37,10,37,11],[5,6,5,12],[10,4,10,12],[25,4,25,7],[26,4,26,5],[12,3,12,12],[39,1,39,2],[27,2,27,3],[9,6,9,7],[37,8,37,9],[86,1,86,2],[86,7,86,9],[65,2,66,3],[66,6,66,7],[65,4,65,7],[66,4,66,5],[38,1,38,2],[36,3,36,5],[38,6,38,7],[37,3,37,5],[37,6,37,7],[39,8,39,9],[41,10,41,11],[62,1,62,2],[50,1,50,12],[52,1,53,2],[40,1,40,2],[41,1,41,2],[40,6,40,7],[52,9,52,11],[40,10,40,11],[40,8,40,9],[41,3,41,5],[52,3,52,5],[52,6,52,8],[41,6,41,7],[41,8,41,9],[27,4,27,5],[27,6,27,7],[32,1,32,12],[14,3,14,12],[40,3,40,5],[38,3,38,5],[38,8,38,9],[39,10,39,11],[35,10,35,11],[36,10,36,11],[39,6,39,7],[38,10,38,11],[39,3,39,5],[36,8,36,9],[35,8,35,9],[35,6,35,7]]}
["Questionnaire  Q10   استمــــارة",null,null,null,null,null,null,"Public عمومي",null,null,"Privé خصوصي"]
[null,"Scolarité des étudiants du Post - Bac     تمدرس طلبة مابعد البكــالوريا "]
[]
[]
["I/."," IDENTIFICATION DE L'ÉTABLISSEMENT   تعريف المؤسســـة"]
[null,"1.1  Etablissement   المؤسســــة",null,{"$f":"استقبال!E9","v":"50745G"},null,null,{"$f":"استقبال!E6","v":"مؤسسة راسين"}]
[]
[]
[]
["II/.","Statistiques    إحصائيات"]
[null,"2.1  Type de Formation    نوع التكــــوين",null,null,"B T S     شهادة التقني العالي"]
[]
[null,"2.2  Niveau   المستــوى",null,"السنة الأولى"]
[]
[null,"2.3  Filière     الشعبة",null,"تقنو-تجاري  technico- commercial "]
[]
[]
[]
[]
[]
[]
[]
[]
[null,"2.4  Etudiants    الطلبة                    -                classes    الأقســــام"]
[]
[null,null,"Nombre de classes\nعدد الأقســــام",null,"Nombre d'étudiants     عدد الطلبـــة"]
[null,null,null,null,"Total    مجموع",null,"Filles    إنــاث"]
[null,null,{"$f":"IF(D13=\"السنة الأولى\",VLOOKUP(D15,'مسك BTS '!$B$13:$AY$22,2,0),VLOOKUP(D15,'مسك BTS '!$B$23:$AY$32,2,0))","v":0},null,{"$f":"IF(D13=\"السنة الأولى\",VLOOKUP(D15,'مسك BTS '!$B$13:$AY$22,49,0),VLOOKUP(D15,'مسك BTS '!$B$23:$AY$32,49,0))","v":0},null,{"$f":"IF(D13=\"السنة الأولى\",VLOOKUP(D15,'مسك BTS '!$B$13:$AY$22,50,0),VLOOKUP(D15,'مسك BTS '!$B$23:$AY$32,50,0))","v":0}]
[]
[]
[]
[]
[null,"2.5  Répartition des étudiants par type du bac et sexe                                        توزيع الطلبة حسب الجنس ونوع البكالوريا"]
[]
[]
[null,null,null,null,null,null,"Garçons\nذكــــور",null,"Filles\nإنـــــاث",null,"Total\nمجمـــوع"]
[null,"  Bac lettres et sciences humaines",null,"  بكالوريا آداب وعلوم انسانية",null,null,{"$f":"IF(D13=\"السنة الأولى\",VLOOKUP(D15,'مسك BTS '!$B$13:$AY$22,3,0),VLOOKUP(D15,'مسك BTS '!$B$23:$AY$32,3,0))","v":0},null,{"$f":"IF(D13=\"السنة الأولى\",VLOOKUP(D15,'مسك BTS '!$B$13:$AY$22,4,0),VLOOKUP(D15,'مسك BTS '!$B$23:$AY$32,4,0))","v":0},null,{"$f":"SUM(G37:J37)","v":0}]
[null,"  Bac Sciences Maths A",null,"  بكالوريا علوم رياضية أ",null,null,{"$f":"IF(D13=\"السنة الأولى\",VLOOKUP(D15,'مسك BTS '!$B$13:$AY$22,5,0),VLOOKUP(D15,'مسك BTS '!$B$23:$AY$32,5,0))","v":0},null,{"$f":"IF(D13=\"السنة الأولى\",VLOOKUP(D15,'مسك BTS '!$B$13:$AY$22,6,0),VLOOKUP(D15,'مسك BTS '!$B$23:$AY$32,6,0))","v":0},null,0]
[null,"  Bac Sciences Maths B",null,"بكالوريا علوم رياضية ب",null,null,{"$f":"IF(D13=\"السنة الأولى\",VLOOKUP(D15,'مسك BTS '!$B$13:$AY$22,7,0),VLOOKUP(D15,'مسك BTS '!$B$23:$AY$32,7,0))","v":0},null,{"$f":"IF(D13=\"السنة الأولى\",VLOOKUP(D15,'مسك BTS '!$B$13:$AY$22,8,0),VLOOKUP(D15,'مسك BTS '!$B$23:$AY$32,8,0))","v":0},null,0]
[null,"  Bac sciences expérimentales",null,"  بكالوريا علوم تجريبية",null,null,{"$f":"IF(D13=\"السنة الأولى\",VLOOKUP(D15,'مسك BTS '!$B$13:$AY$22,9,0),VLOOKUP(D15,'مسك BTS '!$B$23:$AY$32,9,0))","v":0},null,{"$f":"IF(D13=\"السنة الأولى\",VLOOKUP(D15,'مسك BTS '!$B$13:$AY$22,10,0),VLOOKUP(D15,'مسك BTS '!$B$23:$AY$32,10,0))","v":0},null,0]
[null,"  Bac technique",null,"  بكالوريا تقنية",null,null,{"$f":"IF(D13=\"السنة الأولى\",VLOOKUP(D15,'مسك BTS '!$B$13:$AY$22,11,0),VLOOKUP(D15,'مسك BTS '!$B$23:$AY$32,11,0))","v":0},null,{"$f":"IF(D13=\"السنة الأولى\",VLOOKUP(D15,'مسك BTS '!$B$13:$AY$22,12,0),VLOOKUP(D15,'مسك BTS '!$B$23:$AY$32,12,0))","v":0},null,0]
[null,"  Ensemble",null,"  المجمـــوع",null,null,{"$f":"SUM(G37:H41)","v":0},null,{"$f":"SUM(I37:J41)","v":0},null,0]
[]
[]
[]
[]
[]
[]
[]
[]
[null,"2.6  Répartition des étudiants par état de scolarité, âge et sexe                          توزيع الطلبة حسب حالة التمدرس والجنس والســن"]
[]
[null,"Age\nالسن",null,"Nouveaux    الجدد",null,null,"Redoublants    المكررون",null,null,"Ensemble    المجموع"]
[null,null,null,"Garçons\nذكــــور","Filles\nإناث","Total\nمجموع","Garçons\nذكــــور","Filles\nإناث","Total\nمجموع","Garçons\nذكــــور","Filles\nإناث","Total\nمجموع"]
[null,"ســـنة","16 ans",{"$f":"IF(D13=\"السنة الأولى\",VLOOKUP(D15,'مسك BTS '!$B$13:$AY$22,13,0),VLOOKUP(D15,'مسك BTS '!$B$23:$AY$32,13,0))","v":0},{"$f":"IF(D13=\"السنة الأولى\",VLOOKUP(D15,'مسك BTS '!$B$13:$AY$22,14,0),VLOOKUP(D15,'مسك BTS '!$B$23:$AY$32,14,0))","v":0},{"$f":"SUM(D55:E55)","v":0},{"$f":"IF(D13=\"السنة الأولى\",VLOOKUP(D15,'مسك BTS '!$B$13:$AY$22,15,0),VLOOKUP(D15,'مسك BTS '!$B$23:$AY$32,15,0))","v":0},{"$f":"IF(D13=\"السنة الأولى\",VLOOKUP(D15,'مسك BTS '!$B$13:$AY$22,16,0),VLOOKUP(D15,'مسك BTS '!$B$23:$AY$32,16,0))","v":0},{"$f":"SUM(G55:H55)","v":0},{"$f":"D55+G55","v":0},{"$f":"E55+H55","v":0},{"$f":"SUM(J55:K55)","v":0}]
[null,"ســـنة","17 ans",{"$f":"IF(D13=\"السنة الأولى\",VLOOKUP(D15,'مسك BTS '!$B$13:$AY$22,17,0),VLOOKUP(D15,'مسك BTS '!$B$23:$AY$32,17,0))","v":0},{"$f":"IF(D13=\"السنة الأولى\",VLOOKUP(D15,'مسك BTS '!$B$13:$AY$22,18,0),VLOOKUP(D15,'مسك BTS '!$B$23:$AY$32,18,0))","v":0},{"$f":"SUM(D56:E56)","v":0},{"$f":"IF(D13=\"السنة الأولى\",VLOOKUP(D15,'مسك BTS '!$B$13:$AY$22,19,0),VLOOKUP(D15,'مسك BTS '!$B$23:$AY$32,19,0))","v":0},{"$f":"IF(D13=\"السنة الأولى\",VLOOKUP(D15,'مسك BTS '!$B$13:$AY$22,20,0),VLOOKUP(D15,'مسك BTS '!$B$23:$AY$32,20,0))","v":0},{"$f":"SUM(G56:H56)","v":0},{"$f":"D56+G56","v":0},0,{"$f":"SUM(J56:K56)","v":0}]
[null,"ســـنة","18 ans",{"$f":"IF(D13=\"السنة الأولى\",VLOOKUP(D15,'مسك BTS '!$B$13:$AY$22,21,0),VLOOKUP(D15,'مسك BTS '!$B$23:$AY$32,21,0))","v":0},{"$f":"IF(D13=\"السنة الأولى\",VLOOKUP(D15,'مسك BTS '!$B$13:$AY$22,22,0),VLOOKUP(D15,'مسك BTS '!$B$23:$AY$32,22,0))","v":0},0,{"$f":"IF(D13=\"السنة الأولى\",VLOOKUP(D15,'مسك BTS '!$B$13:$AY$22,23,0),VLOOKUP(D15,'مسك BTS '!$B$23:$AY$32,23,0))","v":0},{"$f":"IF(D13=\"السنة الأولى\",VLOOKUP(D15,'مسك BTS '!$B$13:$AY$22,24,0),VLOOKUP(D15,'مسك BTS '!$B$23:$AY$32,24,0))","v":0},0,0,0,0]
[null,"ســـنة","19 ans",{"$f":"IF(D13=\"السنة الأولى\",VLOOKUP(D15,'مسك BTS '!$B$13:$AY$22,25,0),VLOOKUP(D15,'مسك BTS '!$B$23:$AY$32,25,0))","v":0},{"$f":"IF(D13=\"السنة الأولى\",VLOOKUP(D15,'مسك BTS '!$B$13:$AY$22,26,0),VLOOKUP(D15,'مسك BTS '!$B$23:$AY$32,26,0))","v":0},0,{"$f":"IF(D13=\"السنة الأولى\",VLOOKUP(D15,'مسك BTS '!$B$13:$AY$22,27,0),VLOOKUP(D15,'مسك BTS '!$B$23:$AY$32,27,0))","v":0},{"$f":"IF(D13=\"السنة الأولى\",VLOOKUP(D15,'مسك BTS '!$B$13:$AY$22,28,0),VLOOKUP(D15,'مسك BTS '!$B$23:$AY$32,28,0))","v":0},0,0,0,0]
[null,"ســـنة","20 ans",{"$f":"IF(D13=\"السنة الأولى\",VLOOKUP(D15,'مسك BTS '!$B$13:$AY$22,29,0),VLOOKUP(D15,'مسك BTS '!$B$23:$AY$32,29,0))","v":0},{"$f":"IF(D13=\"السنة الأولى\",VLOOKUP(D15,'مسك BTS '!$B$13:$AY$22,30,0),VLOOKUP(D15,'مسك BTS '!$B$23:$AY$32,30,0))","v":0},0,{"$f":"IF(D13=\"السنة الأولى\",VLOOKUP(D15,'مسك BTS '!$B$13:$AY$22,31,0),VLOOKUP(D15,'مسك BTS '!$B$23:$AY$32,31,0))","v":0},{"$f":"IF(D13=\"السنة الأولى\",VLOOKUP(D15,'مسك BTS '!$B$13:$AY$22,32,0),VLOOKUP(D15,'مسك BTS '!$B$23:$AY$32,32,0))","v":0},0,0,0,0]
[null,"ســـنة","21 ans",{"$f":"IF(D13=\"السنة الأولى\",VLOOKUP(D15,'مسك BTS '!$B$13:$AY$22,33,0),VLOOKUP(D15,'مسك BTS '!$B$23:$AY$32,33,0))","v":0},{"$f":"IF(D13=\"السنة الأولى\",VLOOKUP(D15,'مسك BTS '!$B$13:$AY$22,34,0),VLOOKUP(D15,'مسك BTS '!$B$23:$AY$32,34,0))","v":0},0,{"$f":"IF(D13=\"السنة الأولى\",VLOOKUP(D15,'مسك BTS '!$B$13:$AY$22,35,0),VLOOKUP(D15,'مسك BTS '!$B$23:$AY$32,35,0))","v":0},{"$f":"IF(D13=\"السنة الأولى\",VLOOKUP(D15,'مسك BTS '!$B$13:$AY$22,36,0),VLOOKUP(D15,'مسك BTS '!$B$23:$AY$32,36,0))","v":0},0,0,0,0]
[null,"ســـنة","22 ans",{"$f":"IF(D13=\"السنة الأولى\",VLOOKUP(D15,'مسك BTS '!$B$13:$AY$22,37,0),VLOOKUP(D15,'مسك BTS '!$B$23:$AY$32,37,0))","v":0},{"$f":"IF(D13=\"السنة الأولى\",VLOOKUP(D15,'مسك BTS '!$B$13:$AY$22,38,0),VLOOKUP(D15,'مسك BTS '!$B$23:$AY$32,38,0))","v":0},0,{"$f":"IF(D13=\"السنة الأولى\",VLOOKUP(D15,'مسك BTS '!$B$13:$AY$22,39,0),VLOOKUP(D15,'مسك BTS '!$B$23:$AY$32,39,0))","v":0},{"$f":"IF(D13=\"السنة الأولى\",VLOOKUP(D15,'مسك BTS '!$B$13:$AY$22,40,0),VLOOKUP(D15,'مسك BTS '!$B$23:$AY$32,40,0))","v":0},0,0,0,0]
[null,"ســـنة"," 23 ans",{"$f":"IF(D13=\"السنة الأولى\",VLOOKUP(D15,'مسك BTS '!$B$13:$AY$22,41,0),VLOOKUP(D15,'مسك BTS '!$B$23:$AY$32,41,0))","v":0},{"$f":"IF(D13=\"السنة الأولى\",VLOOKUP(D15,'مسك BTS '!$B$13:$AY$22,42,0),VLOOKUP(D15,'مسك BTS '!$B$23:$AY$32,42,0))","v":0},0,{"$f":"IF(D13=\"السنة الأولى\",VLOOKUP(D15,'مسك BTS '!$B$13:$AY$22,43,0),VLOOKUP(D15,'مسك BTS '!$B$23:$AY$32,43,0))","v":0},{"$f":"IF(D13=\"السنة الأولى\",VLOOKUP(D15,'مسك BTS '!$B$13:$AY$22,44,0),VLOOKUP(D15,'مسك BTS '!$B$23:$AY$32,44,0))","v":0},0,0,0,0]
[null,"Total",null,{"$f":"SUM(D55:D62)","v":0},{"$f":"SUM(E55:E62)","v":0},0,0,0,0,0,0,0]
[]
[]
[]
[]
[]
[]
[]
[]
[]
[]
[]
[]
[]
[]
[]
[]
[]
[]
[]
[]
[]
[]
[]
[]
[]
[]
[]
[]
[]
[]
[]
[]
[]
[]
[]
[]
[]
[]
[]
[null,"السنة الأولى"]
[null,"السنة الثانية "]
[]
[null,"البناء Bâtiment   "]
[null,"القالبية Mouliste   "]
[null,"الكهرباء بالتناوب Eléctrotechnique  "]
[null,"الإنتاجاتية  Productique   "]
[null,"الكهروحيليات و النظم الآلية   Electromécanique (sys. Automatisé)"]
[null,"الكهروبيات الصناعية Electronique indistruelle "]
[null,"النظم و الشبكات المعلوماتية Réseaux et Télécommunication    "]
[null,"المواد اللدنية و المركبة    Matières plastiques et composites"]
[null,"تقنو-تجاري  technico- commercial "]

{"sheet":"CPGE","index":14,"n_rows":97,"n_cols":12,"rows_kept":97,"cut":false,"hidden":false,"merged":[[52,9,52,11],[41,8,41,9],[41,10,41,11],[41,1,41,2],[41,3,41,5],[41,6,41,7],[50,1,50,12],[10,4,10,12],[14,3,14,12],[39,1,39,2],[39,3,39,5],[62,1,62,2],[39,8,39,9],[39,10,39,11],[40,8,40,9],[40,10,40,11],[38,1,38,2],[38,3,38,5],[38,6,38,7],[38,8,38,9],[38,10,38,11],[37,1,37,2],[37,3,37,5],[65,2,66,3],[65,4,65,7],[66,4,66,5],[66,6,66,7],[39,6,39,7],[40,1,40,2],[40,3,40,5],[40,6,40,7],[52,1,53,2],[52,3,52,5],[52,6,52,8],[37,6,37,7],[37,8,37,9],[37,10,37,11],[36,1,36,2],[36,3,36,5],[36,6,36,7],[36,8,36,9],[36,10,36,11],[27,2,27,3],[27,4,27,5],[27,6,27,7],[32,1,32,12],[35,6,35,7],[35,8,35,9],[35,10,35,11],[12,3,12,12],[25,2,26,3],[25,4,25,7],[26,4,26,5],[26,6,26,7],[0,0,0,6],[0,7,0,8],[0,10,0,11],[1,1,1,13],[9,6,9,7],[5,6,5,12],[5,3,5,4]]}
["Questionnaire  Q10   استمــــارة",null,null,null,null,null,null,"Public عمومي",null,null,"Privé خصوصي"]
[null,"Scolarité des étudiants du Post - Bac     تمدرس طلبة مابعد البكــالوريا "]
[]
[]
["I/."," IDENTIFICATION DE L'ÉTABLISSEMENT   تعريف المؤسســـة"]
[null,"1.1  Etablissement   المؤسســــة",null,{"$f":"استقبال!E9","v":"50745G"},null,null,{"$f":"استقبال!E6","v":"مؤسسة راسين"}]
[]
[]
[]
["II/.","Statistiques    إحصائيات"]
[null,"2.1  Type de Formation    نوع التكــــوين",null,null,"C P G E   الأقسام التحضيرية"]
[]
[null,"2.2  Niveau   المستــوى",null,"السنة الأولى"]
[]
[null,"2.3  Filière     الشعبة",null,"Mathématiques et physique "]
[]
[]
[]
[]
[]
[]
[]
[]
[null,"2.4  Etudiants    الطلبة                    -                classes    الأقســــام"]
[]
[null,null,"Nombre de classes\nعدد الأقســــام",null,"Nombre d'étudiants     عدد الطلبـــة"]
[null,null,null,null,"Total    مجموع",null,"Filles    إنــاث"]
[null,null,{"$f":"IF(D13=\"السنة الأولى\",VLOOKUP(D15,'مسك CPGE'!$B$12:$AY$21,2,0),VLOOKUP(D15,'مسك CPGE'!$B$22:$AY$31,2,0))","v":0},null,{"$f":"IF(D13=\"السنة الأولى\",VLOOKUP(D15,'مسك CPGE'!$B$12:$AY$21,49,0),VLOOKUP(D15,'مسك CPGE'!$B$22:$AY$31,49,0))","v":0},null,{"$f":"IF(D13=\"السنة الأولى\",VLOOKUP(D15,'مسك CPGE'!$B$12:$AY$21,50,0),VLOOKUP(D15,'مسك CPGE'!$B$22:$AY$31,50,0))","v":0}]
[]
[]
[]
[]
[null,"2.5  Répartition des étudiants par type du bac et sexe                                        توزيع الطلبة حسب الجنس ونوع البكالوريا"]
[]
[]
[null,null,null,null,null,null,"Garçons\nذكــــور",null,"Filles\nإنـــــاث",null,"Total\nمجمـــوع"]
[null,"  Bac lettres et sciences humaines",null,"  بكالوريا آداب وعلوم انسانية",null,null,{"$f":"IF(D13=\"السنة الأولى\",VLOOKUP(D15,'مسك CPGE'!$B$12:$AY$21,3,0),VLOOKUP(D15,'مسك CPGE'!$B$22:$AY$31,3,0))","v":0},null,{"$f":"IF(D13=\"السنة الأولى\",VLOOKUP(D15,'مسك CPGE'!$B$12:$AY$21,4,0),VLOOKUP(D15,'مسك CPGE'!$B$22:$AY$31,4,0))","v":0},null,{"$f":"SUM(G37:J37)","v":0}]
[null,"  Bac Sciences Maths A",null,"  بكالوريا علوم رياضية أ",null,null,{"$f":"IF(D13=\"السنة الأولى\",VLOOKUP(D15,'مسك CPGE'!$B$12:$AY$21,5,0),VLOOKUP(D15,'مسك CPGE'!$B$22:$AY$31,5,0))","v":0},null,{"$f":"IF(D13=\"السنة الأولى\",VLOOKUP(D15,'مسك CPGE'!$B$12:$AY$21,6,0),VLOOKUP(D15,'مسك CPGE'!$B$22:$AY$31,6,0))","v":0},null,0]
[null,"  Bac Sciences Maths B",null,"بكالوريا علوم رياضية ب",null,null,{"$f":"IF(D13=\"السنة الأولى\",VLOOKUP(D15,'مسك CPGE'!$B$12:$AY$21,7,0),VLOOKUP(D15,'مسك CPGE'!$B$22:$AY$31,7,0))","v":0},null,{"$f":"IF(D13=\"السنة الأولى\",VLOOKUP(D15,'مسك CPGE'!$B$12:$AY$21,8,0),VLOOKUP(D15,'مسك CPGE'!$B$22:$AY$31,8,0))","v":0},null,0]
[null,"  Bac sciences expérimentales",null,"  بكالوريا علوم تجريبية",null,null,{"$f":"IF(D13=\"السنة الأولى\",VLOOKUP(D15,'مسك CPGE'!$B$12:$AY$21,9,0),VLOOKUP(D15,'مسك CPGE'!$B$22:$AY$31,9,0))","v":0},null,{"$f":"IF(D13=\"السنة الأولى\",VLOOKUP(D15,'مسك CPGE'!$B$12:$AY$21,10,0),VLOOKUP(D15,'مسك CPGE'!$B$22:$AY$31,10,0))","v":0},null,0]
[null,"  Bac technique",null,"  بكالوريا تقنية",null,null,{"$f":"IF(D13=\"السنة الأولى\",VLOOKUP(D15,'مسك CPGE'!$B$12:$AY$21,11,0),VLOOKUP(D15,'مسك CPGE'!$B$22:$AY$31,11,0))","v":0},null,{"$f":"IF(D13=\"السنة الأولى\",VLOOKUP(D15,'مسك CPGE'!$B$12:$AY$21,12,0),VLOOKUP(D15,'مسك CPGE'!$B$22:$AY$31,12,0))","v":0},null,0]
[null,"  Ensemble",null,"  المجمـــوع",null,null,{"$f":"SUM(G37:H41)","v":0},null,{"$f":"SUM(I37:J41)","v":0},null,0]
[]
[]
[]
[]
[]
[]
[]
[]
[null,"2.6  Répartition des étudiants par état de scolarité, âge et sexe                          توزيع الطلبة حسب حالة التمدرس والجنس والســن"]
[]
[null,"Age\nالسن",null,"Nouveaux    الجدد",null,null,"Redoublants    المكررون",null,null,"Ensemble    المجموع"]
[null,null,null,"Garçons\nذكــــور","Filles\nإناث","Total\nمجموع","Garçons\nذكــــور","Filles\nإناث","Total\nمجموع","Garçons\nذكــــور","Filles\nإناث","Total\nمجموع"]
[null,"ســـنة","16 ans",{"$f":"IF(D13=\"السنة الأولى\",VLOOKUP(D15,'مسك CPGE'!$B$12:$AY$21,13,0),VLOOKUP(D15,'مسك CPGE'!$B$22:$AY$31,13,0))","v":0},{"$f":"IF(D13=\"السنة الأولى\",VLOOKUP(D15,'مسك CPGE'!$B$12:$AY$21,14,0),VLOOKUP(D15,'مسك CPGE'!$B$22:$AY$31,14,0))","v":0},{"$f":"SUM(D55:E55)","v":0},{"$f":"IF(D13=\"السنة الأولى\",VLOOKUP(D15,'مسك CPGE'!$B$12:$AY$21,15,0),VLOOKUP(D15,'مسك CPGE'!$B$22:$AY$31,15,0))","v":0},{"$f":"IF(D13=\"السنة الأولى\",VLOOKUP(D15,'مسك CPGE'!$B$12:$AY$21,16,0),VLOOKUP(D15,'مسك CPGE'!$B$22:$AY$31,16,0))","v":0},{"$f":"SUM(G55:H55)","v":0},{"$f":"D55+G55","v":0},{"$f":"E55+H55","v":0},{"$f":"SUM(J55:K55)","v":0}]
[null,"ســـنة","17 ans",{"$f":"IF(D13=\"السنة الأولى\",VLOOKUP(D15,'مسك CPGE'!$B$12:$AY$21,17,0),VLOOKUP(D15,'مسك CPGE'!$B$22:$AY$31,17,0))","v":0},{"$f":"IF(D13=\"السنة الأولى\",VLOOKUP(D15,'مسك CPGE'!$B$12:$AY$21,18,0),VLOOKUP(D15,'مسك CPGE'!$B$22:$AY$31,18,0))","v":0},{"$f":"SUM(D56:E56)","v":0},{"$f":"IF(D13=\"السنة الأولى\",VLOOKUP(D15,'مسك CPGE'!$B$12:$AY$21,19,0),VLOOKUP(D15,'مسك CPGE'!$B$22:$AY$31,19,0))","v":0},{"$f":"IF(D13=\"السنة الأولى\",VLOOKUP(D15,'مسك CPGE'!$B$12:$AY$21,20,0),VLOOKUP(D15,'مسك CPGE'!$B$22:$AY$31,20,0))","v":0},{"$f":"SUM(G56:H56)","v":0},{"$f":"D56+G56","v":0},{"$f":"E56+H56","v":0},{"$f":"SUM(J56:K56)","v":0}]
[null,"ســـنة","18 ans",{"$f":"IF(D13=\"السنة الأولى\",VLOOKUP(D15,'مسك CPGE'!$B$12:$AY$21,21,0),VLOOKUP(D15,'مسك CPGE'!$B$22:$AY$31,21,0))","v":0},{"$f":"IF(D13=\"السنة الأولى\",VLOOKUP(D15,'مسك CPGE'!$B$12:$AY$21,22,0),VLOOKUP(D15,'مسك CPGE'!$B$22:$AY$31,22,0))","v":0},0,{"$f":"IF(D13=\"السنة الأولى\",VLOOKUP(D15,'مسك CPGE'!$B$12:$AY$21,23,0),VLOOKUP(D15,'مسك CPGE'!$B$22:$AY$31,23,0))","v":0},{"$f":"IF(D13=\"السنة الأولى\",VLOOKUP(D15,'مسك CPGE'!$B$12:$AY$21,24,0),VLOOKUP(D15,'مسك CPGE'!$B$22:$AY$31,24,0))","v":0},0,0,0,0]
[null,"ســـنة","19 ans",{"$f":"IF(D13=\"السنة الأولى\",VLOOKUP(D15,'مسك CPGE'!$B$12:$AY$21,25,0),VLOOKUP(D15,'مسك CPGE'!$B$22:$AY$31,25,0))","v":0},{"$f":"IF(D13=\"السنة الأولى\",VLOOKUP(D15,'مسك CPGE'!$B$12:$AY$21,26,0),VLOOKUP(D15,'مسك CPGE'!$B$22:$AY$31,26,0))","v":0},0,{"$f":"IF(D13=\"السنة الأولى\",VLOOKUP(D15,'مسك CPGE'!$B$12:$AY$21,27,0),VLOOKUP(D15,'مسك CPGE'!$B$22:$AY$31,27,0))","v":0},{"$f":"IF(D13=\"السنة الأولى\",VLOOKUP(D15,'مسك CPGE'!$B$12:$AY$21,28,0),VLOOKUP(D15,'مسك CPGE'!$B$22:$AY$31,28,0))","v":0},0,0,0,0]
[null,"ســـنة","20 ans",{"$f":"IF(D13=\"السنة الأولى\",VLOOKUP(D15,'مسك CPGE'!$B$12:$AY$21,29,0),VLOOKUP(D15,'مسك CPGE'!$B$22:$AY$31,29,0))","v":0},{"$f":"IF(D13=\"السنة الأولى\",VLOOKUP(D15,'مسك CPGE'!$B$12:$AY$21,30,0),VLOOKUP(D15,'مسك CPGE'!$B$22:$AY$31,30,0))","v":0},0,{"$f":"IF(D13=\"السنة الأولى\",VLOOKUP(D15,'مسك CPGE'!$B$12:$AY$21,31,0),VLOOKUP(D15,'مسك CPGE'!$B$22:$AY$31,31,0))","v":0},{"$f":"IF(D13=\"السنة الأولى\",VLOOKUP(D15,'مسك CPGE'!$B$12:$AY$21,32,0),VLOOKUP(D15,'مسك CPGE'!$B$22:$AY$31,32,0))","v":0},0,0,0,0]
[null,"ســـنة","21 ans",{"$f":"IF(D13=\"السنة الأولى\",VLOOKUP(D15,'مسك CPGE'!$B$12:$AY$21,33,0),VLOOKUP(D15,'مسك CPGE'!$B$22:$AY$31,33,0))","v":0},{"$f":"IF(D13=\"السنة الأولى\",VLOOKUP(D15,'مسك CPGE'!$B$12:$AY$21,34,0),VLOOKUP(D15,'مسك CPGE'!$B$22:$AY$31,34,0))","v":0},0,{"$f":"IF(D13=\"السنة الأولى\",VLOOKUP(D15,'مسك CPGE'!$B$12:$AY$21,35,0),VLOOKUP(D15,'مسك CPGE'!$B$22:$AY$31,35,0))","v":0},{"$f":"IF(D13=\"السنة الأولى\",VLOOKUP(D15,'مسك CPGE'!$B$12:$AY$21,36,0),VLOOKUP(D15,'مسك CPGE'!$B$22:$AY$31,36,0))","v":0},0,0,0,0]
[null,"ســـنة","22 ans",{"$f":"IF(D13=\"السنة الأولى\",VLOOKUP(D15,'مسك CPGE'!$B$12:$AY$21,37,0),VLOOKUP(D15,'مسك CPGE'!$B$22:$AY$31,37,0))","v":0},{"$f":"IF(D13=\"السنة الأولى\",VLOOKUP(D15,'مسك CPGE'!$B$12:$AY$21,38,0),VLOOKUP(D15,'مسك CPGE'!$B$22:$AY$31,38,0))","v":0},0,{"$f":"IF(D13=\"السنة الأولى\",VLOOKUP(D15,'مسك CPGE'!$B$12:$AY$21,39,0),VLOOKUP(D15,'مسك CPGE'!$B$22:$AY$31,39,0))","v":0},{"$f":"IF(D13=\"السنة الأولى\",VLOOKUP(D15,'مسك CPGE'!$B$12:$AY$21,40,0),VLOOKUP(D15,'مسك CPGE'!$B$22:$AY$31,40,0))","v":0},0,0,0,0]
[null,"ســـنة"," 23 ans",{"$f":"IF(D13=\"السنة الأولى\",VLOOKUP(D15,'مسك CPGE'!$B$12:$AY$21,41,0),VLOOKUP(D15,'مسك CPGE'!$B$22:$AY$31,41,0))","v":0},{"$f":"IF(D13=\"السنة الأولى\",VLOOKUP(D15,'مسك CPGE'!$B$12:$AY$21,42,0),VLOOKUP(D15,'مسك CPGE'!$B$22:$AY$31,42,0))","v":0},0,{"$f":"IF(D13=\"السنة الأولى\",VLOOKUP(D15,'مسك CPGE'!$B$12:$AY$21,43,0),VLOOKUP(D15,'مسك CPGE'!$B$22:$AY$31,43,0))","v":0},{"$f":"IF(D13=\"السنة الأولى\",VLOOKUP(D15,'مسك CPGE'!$B$12:$AY$21,44,0),VLOOKUP(D15,'مسك CPGE'!$B$22:$AY$31,44,0))","v":0},0,0,0,0]
[null,"Total",null,{"$f":"SUM(D55:D62)","v":0},{"$f":"SUM(E55:E62)","v":0},0,0,0,0,0,0,0]
[]
[]
[]
[]
[]
[]
[]
[]
[]
[]
[]
[]
[]
[]
[]
[]
[]
[]
[]
[null,"السنة الأولى"]
[null,"السنة الثانية "]
[]
[]
[]
[]
[null,"Mathématiques"]
[null,"Biologie"]
[null,"Géologie"]
[null,"Sciences de l'ingenieur "]
[null," Economie et commerce"]
[null,"Technique et sciences industrielles"]
[null,"Biologie, physique, chimie et sc. De l'ingenieur"]
[null,"Mathématiques et physique "]
[null,"Physique et sc. De l'ingenieur"]

{"sheet":"Q 08 IMP","index":15,"n_rows":109,"n_cols":12,"rows_kept":109,"cut":false,"hidden":true,"merged":[[0,0,0,12],[1,0,1,12],[3,1,3,10],[4,1,4,2],[4,3,4,4],[4,6,4,12],[7,1,7,2],[8,1,8,2],[8,7,8,11],[13,1,13,11],[16,6,17,8],[16,9,17,11],[18,6,19,8],[18,9,19,11],[21,1,21,2],[21,3,21,5],[22,1,22,2],[22,3,22,5],[23,1,23,2],[23,3,23,5],[24,1,24,2],[24,3,24,5],[25,1,25,2],[25,3,25,5],[30,1,30,3],[26,1,26,2],[26,3,26,5],[27,1,27,2],[27,3,27,5],[28,1,28,3],[29,1,29,3]]}
["Questionnaire  Q08    استمـــــارة"]
["Bénéficiaires des cantines scolaires et des internats publics    المستفيدون من المطاعم المدرسية والداخليات بالعمومي"]
[]
["I/."," IDENTIFICATION DE L'ÉTABLISSEMENT   تعـــريف المؤسســــة"]
[null,"1.1  Etablissement       المؤسســـة",null,{"$f":"استقبال!E9","v":"50745G"},null,null,{"$f":"استقبال!E6","v":"مؤسسة راسين"}]
[]
[]
["II/.","Statistiques    إحصائيات"]
[null,"2.1  Formation           التكوين",null,null,null,null,null,"ج م التكنولوجي"]
[]
[]
[]
[]
[null,"2.2  Répartition des bénéficiaires                     توزيع المستفيدين"]
[]
[]
[null,null,null,null,null,null,"Total des bénéficiaires ",null,null,"dont bénéficiairesissus d'autres établissements "]
[]
[null,null,null,null,null,null,"مجموع المستفيدون ",null,null,"منهم المستفيدون المنتمون إلى مؤسسات أخرى"]
[]
[null,null,null,null,null,null,"Garçons\nذكــــور","Filles\nإنـــاث","Total\nمجموع","Garçons\nذكــــور","Filles\nإنـــاث","Total\nمجموع"]
[null,"Restauration",null,"الإطعام",null,null,{"$f":"VLOOKUP(H9,'مسك الداخلي'!$B$6:$AD$32,2,0)","v":0},{"$f":"VLOOKUP(H9,'مسك الداخلي'!$B$6:$AD$32,3,0)","v":0},{"$f":"SUM(G22:H22)","v":0},{"$f":"VLOOKUP(H9,'مسك الداخلي'!$B$6:$AD$32,4,0)","v":0},{"$f":"VLOOKUP(H9,'مسك الداخلي'!$B$6:$AD$32,5,0)","v":0},{"$f":"SUM(J22:K22)","v":0}]
[null,"Internes ",null,"الداخليون",null,null,{"$f":"VLOOKUP(H9,'مسك الداخلي'!$B$6:$AD$32,6,0)","v":0},{"$f":"VLOOKUP(H9,'مسك الداخلي'!$B$6:$AD$32,7,0)","v":0},{"$f":"SUM(G23:H23)","v":0},{"$f":"VLOOKUP(H9,'مسك الداخلي'!$B$6:$AD$32,8,0)","v":0},{"$f":"VLOOKUP(H9,'مسك الداخلي'!$B$6:$AD$32,9,0)","v":0},{"$f":"SUM(J23:K23)","v":0}]
[null,"Boursiers",null,"الممنوحون",null,null,{"$f":"VLOOKUP(H9,'مسك الداخلي'!$B$6:$AD$32,10,0)","v":0},{"$f":"VLOOKUP(H9,'مسك الداخلي'!$B$6:$AD$32,11,0)","v":0},0,{"$f":"VLOOKUP(H9,'مسك الداخلي'!$B$6:$AD$32,12,0)","v":0},{"$f":"VLOOKUP(H9,'مسك الداخلي'!$B$6:$AD$32,13,0)","v":0},0]
[null,"dont nouveaux  Boursiers",null,"الممنوحون الجدد",null,null,{"$f":"VLOOKUP(H9,'مسك الداخلي'!$B$6:$AD$32,14,0)","v":0},{"$f":"VLOOKUP(H9,'مسك الداخلي'!$B$6:$AD$32,15,0)","v":0},0,{"$f":"VLOOKUP(H9,'مسك الداخلي'!$B$6:$AD$32,16,0)","v":0},{"$f":"VLOOKUP(H9,'مسك الداخلي'!$B$6:$AD$32,17,0)","v":0},0]
[null,"dont nouveaux Boursiers issus du rural",null,"الممنوحون الجدد الوافدون من الوسط القروي",null,null,{"$f":"VLOOKUP(H9,'مسك الداخلي'!$B$6:$AD$32,18,0)","v":0},{"$f":"VLOOKUP(H9,'مسك الداخلي'!$B$6:$AD$32,19,0)","v":0},0,{"$f":"VLOOKUP(H9,'مسك الداخلي'!$B$6:$AD$32,20,0)","v":0},{"$f":"VLOOKUP(H9,'مسك الداخلي'!$B$6:$AD$32,21,0)","v":0},0]
[null,"1/2 Boursiers",null,"نصف الممنوحين",null,null,{"$f":"VLOOKUP(H9,'مسك الداخلي'!$B$6:$AD$32,22,0)","v":0},{"$f":"VLOOKUP(H9,'مسك الداخلي'!$B$6:$AD$32,23,0)","v":0},0,{"$f":"VLOOKUP(H9,'مسك الداخلي'!$B$6:$AD$32,24,0)","v":0},{"$f":"VLOOKUP(H9,'مسك الداخلي'!$B$6:$AD$32,25,0)","v":0},0]
[null,"Payants",null,"المؤدون",null,null,{"$f":"VLOOKUP(H9,'مسك الداخلي'!$B$6:$AD$32,26,0)","v":0},{"$f":"VLOOKUP(H9,'مسك الداخلي'!$B$6:$AD$32,27,0)","v":0},0,{"$f":"VLOOKUP(H9,'مسك الداخلي'!$B$6:$AD$32,28,0)","v":0},{"$f":"VLOOKUP(H9,'مسك الداخلي'!$B$6:$AD$32,29,0)","v":0},0]
[]
[]
[]
[]
[]
[]
[]
[]
[]
[]
[]
[]
[]
[]
[]
[]
[]
[]
[]
[]
[]
[]
[]
[]
[]
[]
[]
[]
[]
[]
[]
[]
[]
[]
[]
[]
[]
[]
[]
[]
[]
[]
[]
[]
[]
[]
[]
[]
[]
[]
[]
[]
[]
[]
[null,"السنة الأولى ث. إعدادي",1]
[null,"السنة الثانية ث. إعدادي",2]
[null,"السنة الثالثة ث. إعدادي",3]
[null,"ج م الأدبي",4]
[null,"ج م العلمي",5]
[null,"ج م التكنولوجي",6]
[null,"ج م أصيل",7]
[null,"س 1 الآداب و العلوم الإنسانية",8]
[null,"س 1 العلوم التجريبية",9]
[null,"س 1 العلوم الرياضية",10]
[null,"س 1 العلوم الإقتصادية و التدبير",11]
[null,"س 1 العلوم و التكنولوجيات الكهربائية",12]
[null,"س 1 العلوم و التكنولوجيات الميكانيكية",13]
[null,"س 1 اللغة العربية",14]
[null,"س 2 الآداب ",15]
[null,"س 2 العلوم الإنسانية",16]
[null,"س 2 علوم الحياة والأرض",17]
[null,"س 2 العلوم الفيزيائية",18]
[null,"مجموع س2 علوم تجريبية",19]
[null,"س 2علوم التدبير المحاسباتي",20]
[null,"س 2 العلوم الإقتصادية",21]
[null,"س 2علوم رياضية ا",22]
[null,"س 2 علوم رياضية ب",23]
[null,"س 2 العلوم و التكنولوجيات الكهربائية",24]
[null,"س 2 العلوم و التكنولوجيات الميكانيكية",25]
[null,"س 2 اللغة العربية",26]
[null,"المجموع العام"]

{"sheet":"الموضفون","index":16,"n_rows":32,"n_cols":13,"rows_kept":32,"cut":false,"hidden":false,"merged":[[22,3,23,3],[3,1,3,3],[3,4,3,5],[3,7,3,10],[6,3,6,5],[6,9,6,11],[8,5,8,6],[9,5,9,6],[10,5,10,6],[15,3,15,5],[20,3,20,4],[21,3,21,4],[24,3,25,3],[26,3,26,4],[27,3,27,4],[30,9,30,12],[31,9,31,12]]}
[null,"                                ",null,null,"Questionnaire  Q12/2",null,null,null,"Fiche Personnel (Privé)    ",null,null,null," بطاقة الموظفين (خصوصي)"]
[]
[]
[null,"Etablissement  المؤسسة ",null,null,{"$f":"+استقبال!E9","v":"50745G"},null,null,{"$f":"+استقبال!E6","v":"مؤسسة راسين"}]
[]
[]
[null,null,null,"I/. PERSONNEL ADMINISTRATIF",null,null,null,"هيأة الإدارة",null,"II/. PERSONNEL DE SERVICE",null,null,"هيأة الخدمات"]
[]
[null,null,null,null,"Total","Dont femmes",null,null,null,null,"Total","Dont femmes"]
[null,null,null,null,"المجموع","الإناث منهم",null,null,null,null,"المجموع","الإناث منهم"]
[]
[]
[]
[]
[]
[null,null,null,"III/. PERSONNEL ENSEIGNANT",null,null,null,null,null,null,null,null,"هيأة التدريس"]
[]
[]
[null,null,null,null,null,null,null,"Préscolaire","Primaire","Sec Collégial","Sec Qualifiant","CPGE","Total"]
[null,null,null,null,null,null,null,"أولي","ابتدائي","ث. إعدادي","ث. تأهيلي","أقسام تحضيرية","المجموع"]
[null,null,null,"Permanants",null,"Total","المجموع",null,null,null,null,null,{"$f":"SUM(H21:L21)","v":0}]
[null,null,null,"دائمين",null,"Femmes","الإناث",null,null,null,null,null,0]
[null,null,null,"Vacataires","Total","Total","المجموع",null,null,null,null,null,0]
[null,null,null,null,"المجموع","Femmes","الإناث",null,null,null,null,null,0]
[null,null,null,"غير دائمين","Dont Public","Total","المجموع",null,null,null,null,null,0]
[null,null,null,null,"العمومي منهم","Femmes","الإناث",null,null,null,null,null,0]
[null,null,null,"Total",null,"Total","المجموع",{"$f":"H21+H23","v":0},0,0,0,0,0]
[null,null,null,"المجموع",null,"Femmes","الإناث",0,0,0,0,0,0]
[]
[]
[null,null,null,null,null,null,null,null,null,"Cachet et Signature du chef d'établissement"]
[null,null,null,null,null,null,null,null,null,"خاتم وتوقيع السيد(ة) رئيس(ة) المؤسسة"]

{"sheet":"الأجانب","index":17,"n_rows":86,"n_cols":13,"rows_kept":86,"cut":false,"hidden":false,"merged":[[11,1,11,3],[11,4,11,5],[11,6,11,7],[11,8,11,9],[11,10,11,11],[11,12,11,14],[0,0,0,4],[1,0,1,4],[2,0,3,14],[4,0,4,14],[7,2,7,8],[7,10,7,11],[7,12,7,14],[13,1,13,3],[13,4,13,5],[13,6,13,7],[13,8,13,9],[13,10,13,11],[13,12,13,14],[12,1,12,3],[12,4,12,5],[12,6,12,7],[12,8,12,9],[12,10,12,11],[12,12,12,14],[15,1,15,3],[15,4,15,5],[15,6,15,7],[15,8,15,9],[15,10,15,11],[15,12,15,14],[14,1,14,3],[14,4,14,5],[14,6,14,7],[14,8,14,9],[14,10,14,11],[14,12,14,14],[17,1,17,3],[17,4,17,5],[17,6,17,7],[17,8,17,9],[17,10,17,11],[17,12,17,14],[16,1,16,3],[16,4,16,5],[16,6,16,7],[16,8,16,9],[16,10,16,11],[16,12,16,14],[19,1,19,3],[19,4,19,5],[19,6,19,7],[19,8,19,9],[19,10,19,11],[19,12,19,14],[18,1,18,3],[18,4,18,5],[18,6,18,7],[18,8,18,9],[18,10,18,11],[18,12,18,14],[21,1,21,3],[21,4,21,5],[21,6,21,7],[21,8,21,9],[21,10,21,11],[21,12,21,14],[20,1,20,3],[20,4,20,5],[20,6,20,7],[20,8,20,9],[20,10,20,11],[20,12,20,14],[23,1,23,3],[23,4,23,5],[23,6,23,7],[23,8,23,9],[23,10,23,11],[23,12,23,14],[22,1,22,3],[22,4,22,5],[22,6,22,7],[22,8,22,9],[22,10,22,11],[22,12,22,14],[25,1,25,3],[25,4,25,5],[25,6,25,7],[25,8,25,9],[25,10,25,11],[25,12,25,14],[24,1,24,3],[24,4,24,5],[24,6,24,7],[24,8,24,9],[24,10,24,11],[24,12,24,14],[27,1,27,3],[27,4,27,5],[27,6,27,7],[27,8,27,9],[27,10,27,11],[27,12,27,14],[26,1,26,3],[26,4,26,5],[26,6,26,7],[26,8,26,9],[26,10,26,11],[26,12,26,14],[29,1,29,3],[29,4,29,5],[29,6,29,7],[29,8,29,9],[29,10,29,11],[29,12,29,14],[28,1,28,3],[28,4,28,5],[28,6,28,7],[28,8,28,9],[28,10,28,11],[28,12,28,14],[31,1,31,3],[31,4,31,5],[31,6,31,7],[31,8,31,9],[31,10,31,11],[31,12,31,14],[30,1,30,3],[30,4,30,5],[30,6,30,7],[30,8,30,9],[30,10,30,11],[30,12,30,14],[33,1,33,3],[33,4,33,5],[33,6,33,7],[33,8,33,9],[33,10,33,11],[33,12,33,14],[32,1,32,3],[32,4,32,5],[32,6,32,7],[32,8,32,9],[32,10,32,11],[32,12,32,14],[35,1,35,3],[35,4,35,5],[35,6,35,7],[35,8,35,9],[35,10,35,11],[35,12,35,14],[34,1,34,3],[34,4,34,5],[34,6,34,7],[34,8,34,9],[34,10,34,11],[34,12,34,14],[37,1,37,3],[37,4,37,5],[37,6,37,7],[37,8,37,9],[37,10,37,11],[37,12,37,14],[36,1,36,3],[36,4,36,5],[36,6,36,7],[36,8,36,9],[36,10,36,11],[36,12,36,14],[39,1,39,3],[39,4,39,5],[39,6,39,7],[39,8,39,9],[39,10,39,11],[39,12,39,14],[38,1,38,3],[38,4,38,5],[38,6,38,7],[38,8,38,9],[38,10,38,11],[38,12,38,14],[44,3,44,4],[44,9,44,12],[41,1,41,3],[41,4,41,5],[41,6,41,7],[41,8,41,9],[41,10,41,11],[41,12,41,14],[40,1,40,3],[40,4,40,5],[40,6,40,7],[40,8,40,9],[40,10,40,11],[40,12,40,14]]}
["الأكاديمية الجهوية للتربية والتكوين ",null,null,null,null,null,null,null,null,null,"المديرية الإقليمية بالفداء مرس السلطان"]
["لجهة الدار البيضاء سطات"]
["لائحة التلاميذ الأجانب"]
[]
["الموسم الدراسي : 2017/2016"]
[]
[]
["المؤسسة :",null,{"$f":"استقبال!E6","v":"مؤسسة راسين"},null,null,null,null,null,null,null,"الرمز :",null,{"$f":"استقبال!E9","v":"50745G"}]
[]
[]
[]
["ر.ت","الإسم الكامل للتلميذ",null,null,"تاريخ الإزدياد",null,"الجنسية",null,"المستوى الدراسي",null,"داخلي /خارجي",null,"العنوان"]
[1]
[2]
[3]
[4]
[5]
[6]
[7]
[8]
[9]
[10]
[11]
[12]
[13]
[14]
[15]
[16]
[17]
[18]
[19]
[20]
[21]
[22]
[23]
[24]
[25]
[26]
[27]
[28]
[29]
[30]
[]
[]
[null,"الدار البيضاء في : ",null,{"$f":"TODAY()","v":"2016-11-29"},null,null,null,null,null,"توقيع السيد (ة) المدير (ة) :"]
[]
[]
[]
[]
[]
[]
[]
[]
[]
[]
[]
[]
[]
[]
[]
[]
[]
[]
[]
[]
[]
[]
[]
[]
[]
[]
[]
[]
[]
[]
[]
[]
[]
[]
[]
[]
[]
[]
[null,null,null,null,null,"الجذع المشترك",null,"داخلي"]
[null,null,null,null,null,"السنة الأولى",null,"خارجي"]
[null,null,null,null,null,"السنة الثانية "]

{"sheet":"بطاقة المؤسسة","index":18,"n_rows":74,"n_cols":23,"rows_kept":74,"cut":false,"hidden":false,"merged":[[45,1,45,4],[38,1,38,4],[55,1,55,4],[56,0,56,4],[39,1,39,4],[43,1,43,4],[49,1,49,4],[48,1,48,4],[52,1,52,4],[53,1,53,4],[39,0,55,0],[54,1,54,4],[42,1,42,4],[50,1,50,4],[46,1,46,4],[47,1,47,4],[51,1,51,4],[28,1,28,4],[37,1,37,4],[33,1,33,4],[32,1,32,4],[31,1,31,4],[41,1,41,4],[40,1,40,4],[44,1,44,4],[15,10,15,21],[16,5,16,6],[16,7,16,8],[16,9,17,9],[16,10,16,11],[16,12,16,13],[16,14,16,15],[16,16,16,17],[16,20,16,21],[16,18,16,19],[34,1,34,4],[35,1,35,4],[36,1,36,4],[1,0,1,21],[4,2,4,9],[4,15,4,17],[10,2,10,3],[10,4,10,5],[10,6,10,7],[10,10,10,11],[10,12,10,13],[10,14,10,15],[10,16,10,17],[10,18,10,19],[10,20,10,21],[15,0,17,4],[15,5,15,9],[20,1,20,4],[29,1,29,4],[30,1,30,4],[18,0,25,0],[18,1,18,4],[19,1,19,4],[21,1,21,4],[24,1,24,4],[25,1,25,4],[22,1,22,4],[23,1,23,4],[26,0,38,0],[26,1,26,4],[27,1,27,4]]}
["المديرية الإقليمية بالفداء - مرس السلطان ",null,null,null,null,null,null,null,null,null,"بطاقة المؤسسة",null,null,null,null,null,null,null,"نونبر 2016"]
["التعليم الثانوي التأهيلي"]
[]
[]
["المؤسسة :",null,{"$f":"'مسك السن- الجنس'!E2","v":"مؤسسة راسين"},null,null,null,null,null,null,null,null,null,null,"الرمز :",null,{"$f":"'مسك السن- الجنس'!Q2","v":"50745G"}]
[]
[]
[]
[]
[null,null,null,null,"العاملون بالمؤسسة :",null,null,null,null,null,null,null,null,null,null,"الحجرات : "]
[null,null,"هيئة الأساتذة",null,"هيئة الإدارة",null,"الأعوان",null,null,null,"التعليم العام",null,"العلمية",null,"المختصة",null,"أغراض أخرى",null,"المغلقة",null,"المجموع"]
[null,null,"المجموع ","الإناث","المجموع ","الإناث","المجموع ","الإناث",null,null,"صالحة","غ صالحة","صالحة","غ صالحة","صالحة","غ صالحة","صالحة","غ صالحة","صالحة","غ صالحة","صالحة","غ صالحة"]
[null,null,{"$f":"+الموضفون!K27","v":0},{"$f":"+الموضفون!K28","v":0},{"$f":"+الموضفون!E11","v":0},{"$f":"+الموضفون!F11","v":0},{"$f":"+الموضفون!K11","v":0},{"$f":"+الموضفون!L11","v":0},null,null,{"$f":"'Q03-qualif imp'!E38","v":0},{"$f":"'Q03-qualif imp'!E39","v":0},{"$f":"'Q03-qualif imp'!F38+'Q03-qualif imp'!G38","v":0},{"$f":"'Q03-qualif imp'!F39+'Q03-qualif imp'!G39","v":0},{"$f":"'Q03-qualif imp'!J38+'Q03-qualif imp'!K38+'Q03-qualif imp'!L38","v":0},{"$f":"'Q03-qualif imp'!J39+'Q03-qualif imp'!K39+'Q03-qualif imp'!L39","v":0},{"$f":"'Q03-qualif imp'!M43","v":0},{"$f":"'Q03-qualif imp'!M44","v":0},{"$f":"'Q03-qualif imp'!M47","v":0},{"$f":"'Q03-qualif imp'!M48","v":0},{"$f":"S13+Q13+O13+M13+K13","v":0},{"$f":"T13+R13+P13+N13+L13","v":0}]
[]
[]
["المستويات والمسالك",null,null,null,null,"التلامــيـــــذ والفصول",null,null,null,null,"اللغة الأجنبية الثانية والإعلاميات"]
[null,null,null,null,null,"الجــــدد ",null,"مجموع التلاميذ",null,"الفصــــول","الأنجليزية",null,"الاسبانية",null,"الألمانية",null,"الإيطالية",null,"المجموع",null,"الإعلاميات"]
[null,null,null,null,null,"المجموع","الإناث  ","المجموع","الإناث  ",null,"الفصول","التلاميذ","الفصول","التلاميذ","الفصول","التلاميذ","الفصول","التلاميذ","الفصول","التلاميذ","الفصول","التلاميذ"," "]
["سلك الجذوع المشتركة","ج م الأدبي",null,null,null,{"$f":"VLOOKUP(B19,'مسك السن- الجنس'!$A$8:$AM$46,36,0)","v":0},{"$f":"VLOOKUP(B19,'مسك السن- الجنس'!$A$8:$AM$46,37,0)","v":0},{"$f":"VLOOKUP(B19,'مسك السن- الجنس'!$A$8:$AM$46,36,0)+VLOOKUP(B19,'مسك السن- الجنس'!$A$8:$AM$46,38,0)","v":0},{"$f":"VLOOKUP(B19,'مسك السن- الجنس'!$A$8:$AM$46,37,0)+VLOOKUP(B19,'مسك السن- الجنس'!$A$8:$AM$46,39,0)","v":0},{"$f":"+VLOOKUP(B19,'مسك التفويج- اللغات'!$A$5:$Y$43,2,0)","v":0},{"$f":"+VLOOKUP(B19,'مسك التفويج- اللغات'!$A$5:$Y$43,11,0)","v":0},{"$f":"+VLOOKUP(B19,'مسك التفويج- اللغات'!$A$5:$Y$43,12,0)+VLOOKUP(B19,'مسك التفويج- اللغات'!$A$5:$Y$43,13,0)","v":0},{"$f":"+VLOOKUP(B19,'مسك التفويج- اللغات'!$A$5:$Y$43,14,0)","v":0},{"$f":"+VLOOKUP(B19,'مسك التفويج- اللغات'!$A$5:$Y$43,15,0)+VLOOKUP(B19,'مسك التفويج- اللغات'!$A$5:$Y$43,16,0)","v":0},{"$f":"+VLOOKUP(B19,'مسك التفويج- اللغات'!$A$5:$Y$43,17,0)","v":0},{"$f":"+VLOOKUP(B19,'مسك التفويج- اللغات'!$A$5:$Y$43,18,0)+VLOOKUP(B19,'مسك التفويج- اللغات'!$A$5:$Y$43,19,0)","v":0},{"$f":"+VLOOKUP(B19,'مسك التفويج- اللغات'!$A$5:$Y$43,20,0)","v":0},{"$f":"+VLOOKUP(B19,'مسك التفويج- اللغات'!$A$5:$Y$43,21,0)+VLOOKUP(B19,'مسك التفويج- اللغات'!$A$5:$Y$43,22,0)","v":0},{"$f":"SUM(Q19,O19,M19,K19)","v":0},{"$f":"SUM(R19,P19,N19,L19)","v":0},{"$f":"+VLOOKUP(B19,'مسك التفويج- اللغات'!$A$5:$Y$43,23,0)","v":0},{"$f":"+VLOOKUP(B19,'مسك التفويج- اللغات'!$A$5:$Y$43,24,0)+VLOOKUP(B19,'مسك التفويج- اللغات'!$A$5:$Y$43,25,0)","v":0}]
[null,"ج م العلمي",null,null,null,{"$f":"VLOOKUP(B20,'مسك السن- الجنس'!$A$8:$AM$46,36,0)","v":0},{"$f":"VLOOKUP(B20,'مسك السن- الجنس'!$A$8:$AM$46,37,0)","v":0},{"$f":"VLOOKUP(B20,'مسك السن- الجنس'!$A$8:$AM$46,36,0)+VLOOKUP(B20,'مسك السن- الجنس'!$A$8:$AM$46,38,0)","v":0},{"$f":"VLOOKUP(B20,'مسك السن- الجنس'!$A$8:$AM$46,37,0)+VLOOKUP(B20,'مسك السن- الجنس'!$A$8:$AM$46,39,0)","v":0},{"$f":"+VLOOKUP(B20,'مسك التفويج- اللغات'!$A$5:$Y$43,2,0)","v":0},{"$f":"+VLOOKUP(B20,'مسك التفويج- اللغات'!$A$5:$Y$43,11,0)","v":0},{"$f":"+VLOOKUP(B20,'مسك التفويج- اللغات'!$A$5:$Y$43,12,0)+VLOOKUP(B20,'مسك التفويج- اللغات'!$A$5:$Y$43,13,0)","v":0},{"$f":"+VLOOKUP(B20,'مسك التفويج- اللغات'!$A$5:$Y$43,14,0)","v":0},{"$f":"+VLOOKUP(B20,'مسك التفويج- اللغات'!$A$5:$Y$43,15,0)+VLOOKUP(B20,'مسك التفويج- اللغات'!$A$5:$Y$43,16,0)","v":0},{"$f":"+VLOOKUP(B20,'مسك التفويج- اللغات'!$A$5:$Y$43,17,0)","v":0},{"$f":"+VLOOKUP(B20,'مسك التفويج- اللغات'!$A$5:$Y$43,18,0)+VLOOKUP(B20,'مسك التفويج- اللغات'!$A$5:$Y$43,19,0)","v":0},{"$f":"+VLOOKUP(B20,'مسك التفويج- اللغات'!$A$5:$Y$43,20,0)","v":0},{"$f":"+VLOOKUP(B20,'مسك التفويج- اللغات'!$A$5:$Y$43,21,0)+VLOOKUP(B20,'مسك التفويج- اللغات'!$A$5:$Y$43,22,0)","v":0},{"$f":"SUM(Q20,O20,M20,K20)","v":0},0,{"$f":"+VLOOKUP(B20,'مسك التفويج- اللغات'!$A$5:$Y$43,23,0)","v":0},{"$f":"+VLOOKUP(B20,'مسك التفويج- اللغات'!$A$5:$Y$43,24,0)+VLOOKUP(B20,'مسك التفويج- اللغات'!$A$5:$Y$43,25,0)","v":0}]
[null,"ج م العلمي خيار فرنسية",null,null,null,{"$f":"VLOOKUP(B21,'مسك السن- الجنس'!$A$8:$AM$46,36,0)","v":0},{"$f":"VLOOKUP(B21,'مسك السن- الجنس'!$A$8:$AM$46,37,0)","v":0},{"$f":"VLOOKUP(B21,'مسك السن- الجنس'!$A$8:$AM$46,36,0)+VLOOKUP(B21,'مسك السن- الجنس'!$A$8:$AM$46,38,0)","v":0},{"$f":"VLOOKUP(B21,'مسك السن- الجنس'!$A$8:$AM$46,37,0)+VLOOKUP(B21,'مسك السن- الجنس'!$A$8:$AM$46,39,0)","v":0},{"$f":"+VLOOKUP(B21,'مسك التفويج- اللغات'!$A$5:$Y$43,2,0)","v":0},{"$f":"+VLOOKUP(B21,'مسك التفويج- اللغات'!$A$5:$Y$43,11,0)","v":0},{"$f":"+VLOOKUP(B21,'مسك التفويج- اللغات'!$A$5:$Y$43,12,0)+VLOOKUP(B21,'مسك التفويج- اللغات'!$A$5:$Y$43,13,0)","v":0},{"$f":"+VLOOKUP(B21,'مسك التفويج- اللغات'!$A$5:$Y$43,14,0)","v":0},{"$f":"+VLOOKUP(B21,'مسك التفويج- اللغات'!$A$5:$Y$43,15,0)+VLOOKUP(B21,'مسك التفويج- اللغات'!$A$5:$Y$43,16,0)","v":0},{"$f":"+VLOOKUP(B21,'مسك التفويج- اللغات'!$A$5:$Y$43,17,0)","v":0},{"$f":"+VLOOKUP(B21,'مسك التفويج- اللغات'!$A$5:$Y$43,18,0)+VLOOKUP(B21,'مسك التفويج- اللغات'!$A$5:$Y$43,19,0)","v":0},{"$f":"+VLOOKUP(B21,'مسك التفويج- اللغات'!$A$5:$Y$43,20,0)","v":0},{"$f":"+VLOOKUP(B21,'مسك التفويج- اللغات'!$A$5:$Y$43,21,0)+VLOOKUP(B21,'مسك التفويج- اللغات'!$A$5:$Y$43,22,0)","v":0},0,0,{"$f":"+VLOOKUP(B21,'مسك التفويج- اللغات'!$A$5:$Y$43,23,0)","v":0},{"$f":"+VLOOKUP(B21,'مسك التفويج- اللغات'!$A$5:$Y$43,24,0)+VLOOKUP(B21,'مسك التفويج- اللغات'!$A$5:$Y$43,25,0)","v":0}]
[null,"ج م التكنولوجي",null,null,null,{"$f":"VLOOKUP(B22,'مسك السن- الجنس'!$A$8:$AM$46,36,0)","v":0},{"$f":"VLOOKUP(B22,'مسك السن- الجنس'!$A$8:$AM$46,37,0)","v":0},{"$f":"VLOOKUP(B22,'مسك السن- الجنس'!$A$8:$AM$46,36,0)+VLOOKUP(B22,'مسك السن- الجنس'!$A$8:$AM$46,38,0)","v":0},{"$f":"VLOOKUP(B22,'مسك السن- الجنس'!$A$8:$AM$46,37,0)+VLOOKUP(B22,'مسك السن- الجنس'!$A$8:$AM$46,39,0)","v":0},{"$f":"+VLOOKUP(B22,'مسك التفويج- اللغات'!$A$5:$Y$43,2,0)","v":0},{"$f":"+VLOOKUP(B22,'مسك التفويج- اللغات'!$A$5:$Y$43,11,0)","v":0},{"$f":"+VLOOKUP(B22,'مسك التفويج- اللغات'!$A$5:$Y$43,12,0)+VLOOKUP(B22,'مسك التفويج- اللغات'!$A$5:$Y$43,13,0)","v":0},{"$f":"+VLOOKUP(B22,'مسك التفويج- اللغات'!$A$5:$Y$43,14,0)","v":0},{"$f":"+VLOOKUP(B22,'مسك التفويج- اللغات'!$A$5:$Y$43,15,0)+VLOOKUP(B22,'مسك التفويج- اللغات'!$A$5:$Y$43,16,0)","v":0},{"$f":"+VLOOKUP(B22,'مسك التفويج- اللغات'!$A$5:$Y$43,17,0)","v":0},{"$f":"+VLOOKUP(B22,'مسك التفويج- اللغات'!$A$5:$Y$43,18,0)+VLOOKUP(B22,'مسك التفويج- اللغات'!$A$5:$Y$43,19,0)","v":0},{"$f":"+VLOOKUP(B22,'مسك التفويج- اللغات'!$A$5:$Y$43,20,0)","v":0},{"$f":"+VLOOKUP(B22,'مسك التفويج- اللغات'!$A$5:$Y$43,21,0)+VLOOKUP(B22,'مسك التفويج- اللغات'!$A$5:$Y$43,22,0)","v":0},0,0,{"$f":"+VLOOKUP(B22,'مسك التفويج- اللغات'!$A$5:$Y$43,23,0)","v":0},{"$f":"+VLOOKUP(B22,'مسك التفويج- اللغات'!$A$5:$Y$43,24,0)+VLOOKUP(B22,'مسك التفويج- اللغات'!$A$5:$Y$43,25,0)","v":0}]
[null,"ج م أصيل",null,null,null,{"$f":"VLOOKUP(B23,'مسك السن- الجنس'!$A$8:$AM$46,36,0)","v":0},{"$f":"VLOOKUP(B23,'مسك السن- الجنس'!$A$8:$AM$46,37,0)","v":0},{"$f":"VLOOKUP(B23,'مسك السن- الجنس'!$A$8:$AM$46,36,0)+VLOOKUP(B23,'مسك السن- الجنس'!$A$8:$AM$46,38,0)","v":0},{"$f":"VLOOKUP(B23,'مسك السن- الجنس'!$A$8:$AM$46,37,0)+VLOOKUP(B23,'مسك السن- الجنس'!$A$8:$AM$46,39,0)","v":0},{"$f":"+VLOOKUP(B23,'مسك التفويج- اللغات'!$A$5:$Y$43,2,0)","v":0},{"$f":"+VLOOKUP(B23,'مسك التفويج- اللغات'!$A$5:$Y$43,11,0)","v":0},{"$f":"+VLOOKUP(B23,'مسك التفويج- اللغات'!$A$5:$Y$43,12,0)+VLOOKUP(B23,'مسك التفويج- اللغات'!$A$5:$Y$43,13,0)","v":0},{"$f":"+VLOOKUP(B23,'مسك التفويج- اللغات'!$A$5:$Y$43,14,0)","v":0},{"$f":"+VLOOKUP(B23,'مسك التفويج- اللغات'!$A$5:$Y$43,15,0)+VLOOKUP(B23,'مسك التفويج- اللغات'!$A$5:$Y$43,16,0)","v":0},{"$f":"+VLOOKUP(B23,'مسك التفويج- اللغات'!$A$5:$Y$43,17,0)","v":0},{"$f":"+VLOOKUP(B23,'مسك التفويج- اللغات'!$A$5:$Y$43,18,0)+VLOOKUP(B23,'مسك التفويج- اللغات'!$A$5:$Y$43,19,0)","v":0},{"$f":"+VLOOKUP(B23,'مسك التفويج- اللغات'!$A$5:$Y$43,20,0)","v":0},{"$f":"+VLOOKUP(B23,'مسك التفويج- اللغات'!$A$5:$Y$43,21,0)+VLOOKUP(B23,'مسك التفويج- اللغات'!$A$5:$Y$43,22,0)","v":0},0,0,{"$f":"+VLOOKUP(B23,'مسك التفويج- اللغات'!$A$5:$Y$43,23,0)","v":0},{"$f":"+VLOOKUP(B23,'مسك التفويج- اللغات'!$A$5:$Y$43,24,0)+VLOOKUP(B23,'مسك التفويج- اللغات'!$A$5:$Y$43,25,0)","v":0}]
[null,"ج م صناعي",null,null,null,{"$f":"VLOOKUP(B24,'مسك السن- الجنس'!$A$8:$AM$46,36,0)","v":0},{"$f":"VLOOKUP(B24,'مسك السن- الجنس'!$A$8:$AM$46,37,0)","v":0},{"$f":"VLOOKUP(B24,'مسك السن- الجنس'!$A$8:$AM$46,36,0)+VLOOKUP(B24,'مسك السن- الجنس'!$A$8:$AM$46,38,0)","v":0},{"$f":"VLOOKUP(B24,'مسك السن- الجنس'!$A$8:$AM$46,37,0)+VLOOKUP(B24,'مسك السن- الجنس'!$A$8:$AM$46,39,0)","v":0},{"$f":"+VLOOKUP(B24,'مسك التفويج- اللغات'!$A$5:$Y$43,2,0)","v":0},{"$f":"+VLOOKUP(B24,'مسك التفويج- اللغات'!$A$5:$Y$43,11,0)","v":0},{"$f":"+VLOOKUP(B24,'مسك التفويج- اللغات'!$A$5:$Y$43,12,0)+VLOOKUP(B24,'مسك التفويج- اللغات'!$A$5:$Y$43,13,0)","v":0},{"$f":"+VLOOKUP(B24,'مسك التفويج- اللغات'!$A$5:$Y$43,14,0)","v":0},{"$f":"+VLOOKUP(B24,'مسك التفويج- اللغات'!$A$5:$Y$43,15,0)+VLOOKUP(B24,'مسك التفويج- اللغات'!$A$5:$Y$43,16,0)","v":0},{"$f":"+VLOOKUP(B24,'مسك التفويج- اللغات'!$A$5:$Y$43,17,0)","v":0},{"$f":"+VLOOKUP(B24,'مسك التفويج- اللغات'!$A$5:$Y$43,18,0)+VLOOKUP(B24,'مسك التفويج- اللغات'!$A$5:$Y$43,19,0)","v":0},{"$f":"+VLOOKUP(B24,'مسك التفويج- اللغات'!$A$5:$Y$43,20,0)","v":0},{"$f":"+VLOOKUP(B24,'مسك التفويج- اللغات'!$A$5:$Y$43,21,0)+VLOOKUP(B24,'مسك التفويج- اللغات'!$A$5:$Y$43,22,0)","v":0},0,0,{"$f":"+VLOOKUP(B24,'مسك التفويج- اللغات'!$A$5:$Y$43,23,0)","v":0},{"$f":"+VLOOKUP(B24,'مسك التفويج- اللغات'!$A$5:$Y$43,24,0)+VLOOKUP(B24,'مسك التفويج- اللغات'!$A$5:$Y$43,25,0)","v":0}]
[null,"ج م خدماتي",null,null,null,{"$f":"VLOOKUP(B25,'مسك السن- الجنس'!$A$8:$AM$46,36,0)","v":0},{"$f":"VLOOKUP(B25,'مسك السن- الجنس'!$A$8:$AM$46,37,0)","v":0},{"$f":"VLOOKUP(B25,'مسك السن- الجنس'!$A$8:$AM$46,36,0)+VLOOKUP(B25,'مسك السن- الجنس'!$A$8:$AM$46,38,0)","v":0},{"$f":"VLOOKUP(B25,'مسك السن- الجنس'!$A$8:$AM$46,37,0)+VLOOKUP(B25,'مسك السن- الجنس'!$A$8:$AM$46,39,0)","v":0},{"$f":"+VLOOKUP(B25,'مسك التفويج- اللغات'!$A$5:$Y$43,2,0)","v":0},{"$f":"+VLOOKUP(B25,'مسك التفويج- اللغات'!$A$5:$Y$43,11,0)","v":0},{"$f":"+VLOOKUP(B25,'مسك التفويج- اللغات'!$A$5:$Y$43,12,0)+VLOOKUP(B25,'مسك التفويج- اللغات'!$A$5:$Y$43,13,0)","v":0},{"$f":"+VLOOKUP(B25,'مسك التفويج- اللغات'!$A$5:$Y$43,14,0)","v":0},{"$f":"+VLOOKUP(B25,'مسك التفويج- اللغات'!$A$5:$Y$43,15,0)+VLOOKUP(B25,'مسك التفويج- اللغات'!$A$5:$Y$43,16,0)","v":0},{"$f":"+VLOOKUP(B25,'مسك التفويج- اللغات'!$A$5:$Y$43,17,0)","v":0},{"$f":"+VLOOKUP(B25,'مسك التفويج- اللغات'!$A$5:$Y$43,18,0)+VLOOKUP(B25,'مسك التفويج- اللغات'!$A$5:$Y$43,19,0)","v":0},{"$f":"+VLOOKUP(B25,'مسك التفويج- اللغات'!$A$5:$Y$43,20,0)","v":0},{"$f":"+VLOOKUP(B25,'مسك التفويج- اللغات'!$A$5:$Y$43,21,0)+VLOOKUP(B25,'مسك التفويج- اللغات'!$A$5:$Y$43,22,0)","v":0},0,0,{"$f":"+VLOOKUP(B25,'مسك التفويج- اللغات'!$A$5:$Y$43,23,0)","v":0},{"$f":"+VLOOKUP(B25,'مسك التفويج- اللغات'!$A$5:$Y$43,24,0)+VLOOKUP(B25,'مسك التفويج- اللغات'!$A$5:$Y$43,25,0)","v":0}]
[null,"مجموع الجذوع المشتركة",null,null,null,{"$f":"SUM(F19:F25)","v":0},0,0,0,0,0,0,{"$f":"SUM(M19:M25)","v":0},0,0,0,0,0,0,0,{"$f":"Q26+O26+M26+K26","v":0},{"$f":"R26+P26+N26+L26","v":0}]
["السنة الأولى من سلك البكالوريا","س 1 الآداب و العلوم الإنسانية",null,null,null,{"$f":"VLOOKUP(B27,'مسك السن- الجنس'!$A$8:$AM$46,36,0)","v":0},{"$f":"VLOOKUP(B27,'مسك السن- الجنس'!$A$8:$AM$46,37,0)","v":0},{"$f":"VLOOKUP(B27,'مسك السن- الجنس'!$A$8:$AM$46,36,0)+VLOOKUP(B27,'مسك السن- الجنس'!$A$8:$AM$46,38,0)","v":0},{"$f":"VLOOKUP(B27,'مسك السن- الجنس'!$A$8:$AM$46,37,0)+VLOOKUP(B27,'مسك السن- الجنس'!$A$8:$AM$46,39,0)","v":0},{"$f":"+VLOOKUP(B27,'مسك التفويج- اللغات'!$A$5:$Y$43,2,0)","v":0},{"$f":"+VLOOKUP(B27,'مسك التفويج- اللغات'!$A$5:$Y$43,11,0)","v":0},{"$f":"+VLOOKUP(B27,'مسك التفويج- اللغات'!$A$5:$Y$43,12,0)+VLOOKUP(B27,'مسك التفويج- اللغات'!$A$5:$Y$43,13,0)","v":0},{"$f":"+VLOOKUP(B27,'مسك التفويج- اللغات'!$A$5:$Y$43,14,0)","v":0},{"$f":"+VLOOKUP(B27,'مسك التفويج- اللغات'!$A$5:$Y$43,15,0)+VLOOKUP(B27,'مسك التفويج- اللغات'!$A$5:$Y$43,16,0)","v":0},{"$f":"+VLOOKUP(B27,'مسك التفويج- اللغات'!$A$5:$Y$43,17,0)","v":0},{"$f":"+VLOOKUP(B27,'مسك التفويج- اللغات'!$A$5:$Y$43,18,0)+VLOOKUP(B27,'مسك التفويج- اللغات'!$A$5:$Y$43,19,0)","v":0},{"$f":"+VLOOKUP(B27,'مسك التفويج- اللغات'!$A$5:$Y$43,20,0)","v":0},{"$f":"+VLOOKUP(B27,'مسك التفويج- اللغات'!$A$5:$Y$43,21,0)+VLOOKUP(B27,'مسك التفويج- اللغات'!$A$5:$Y$43,22,0)","v":0},{"$f":"SUM(Q27,O27,M27,K27)","v":0},{"$f":"SUM(R27,P27,N27,L27)","v":0},{"$f":"+VLOOKUP(B27,'مسك التفويج- اللغات'!$A$5:$Y$43,23,0)","v":0},{"$f":"+VLOOKUP(B27,'مسك التفويج- اللغات'!$A$5:$Y$43,24,0)+VLOOKUP(B27,'مسك التفويج- اللغات'!$A$5:$Y$43,25,0)","v":0}]
[null,"س 1 العلوم التجريبية",null,null,null,{"$f":"VLOOKUP(B28,'مسك السن- الجنس'!$A$8:$AM$46,36,0)","v":0},{"$f":"VLOOKUP(B28,'مسك السن- الجنس'!$A$8:$AM$46,37,0)","v":0},{"$f":"VLOOKUP(B28,'مسك السن- الجنس'!$A$8:$AM$46,36,0)+VLOOKUP(B28,'مسك السن- الجنس'!$A$8:$AM$46,38,0)","v":0},{"$f":"VLOOKUP(B28,'مسك السن- الجنس'!$A$8:$AM$46,37,0)+VLOOKUP(B28,'مسك السن- الجنس'!$A$8:$AM$46,39,0)","v":0},{"$f":"+VLOOKUP(B28,'مسك التفويج- اللغات'!$A$5:$Y$43,2,0)","v":0},{"$f":"+VLOOKUP(B28,'مسك التفويج- اللغات'!$A$5:$Y$43,11,0)","v":0},{"$f":"+VLOOKUP(B28,'مسك التفويج- اللغات'!$A$5:$Y$43,12,0)+VLOOKUP(B28,'مسك التفويج- اللغات'!$A$5:$Y$43,13,0)","v":0},{"$f":"+VLOOKUP(B28,'مسك التفويج- اللغات'!$A$5:$Y$43,14,0)","v":0},{"$f":"+VLOOKUP(B28,'مسك التفويج- اللغات'!$A$5:$Y$43,15,0)+VLOOKUP(B28,'مسك التفويج- اللغات'!$A$5:$Y$43,16,0)","v":0},{"$f":"+VLOOKUP(B28,'مسك التفويج- اللغات'!$A$5:$Y$43,17,0)","v":0},{"$f":"+VLOOKUP(B28,'مسك التفويج- اللغات'!$A$5:$Y$43,18,0)+VLOOKUP(B28,'مسك التفويج- اللغات'!$A$5:$Y$43,19,0)","v":0},{"$f":"+VLOOKUP(B28,'مسك التفويج- اللغات'!$A$5:$Y$43,20,0)","v":0},{"$f":"+VLOOKUP(B28,'مسك التفويج- اللغات'!$A$5:$Y$43,21,0)+VLOOKUP(B28,'مسك التفويج- اللغات'!$A$5:$Y$43,22,0)","v":0},0,0,{"$f":"+VLOOKUP(B28,'مسك التفويج- اللغات'!$A$5:$Y$43,23,0)","v":0},{"$f":"+VLOOKUP(B28,'مسك التفويج- اللغات'!$A$5:$Y$43,24,0)+VLOOKUP(B28,'مسك التفويج- اللغات'!$A$5:$Y$43,25,0)","v":0}]
[null,"س 1 العلوم الرياضية",null,null,null,{"$f":"VLOOKUP(B29,'مسك السن- الجنس'!$A$8:$AM$46,36,0)","v":0},{"$f":"VLOOKUP(B29,'مسك السن- الجنس'!$A$8:$AM$46,37,0)","v":0},{"$f":"VLOOKUP(B29,'مسك السن- الجنس'!$A$8:$AM$46,36,0)+VLOOKUP(B29,'مسك السن- الجنس'!$A$8:$AM$46,38,0)","v":0},{"$f":"VLOOKUP(B29,'مسك السن- الجنس'!$A$8:$AM$46,37,0)+VLOOKUP(B29,'مسك السن- الجنس'!$A$8:$AM$46,39,0)","v":0},{"$f":"+VLOOKUP(B29,'مسك التفويج- اللغات'!$A$5:$Y$43,2,0)","v":0},{"$f":"+VLOOKUP(B29,'مسك التفويج- اللغات'!$A$5:$Y$43,11,0)","v":0},{"$f":"+VLOOKUP(B29,'مسك التفويج- اللغات'!$A$5:$Y$43,12,0)+VLOOKUP(B29,'مسك التفويج- اللغات'!$A$5:$Y$43,13,0)","v":0},{"$f":"+VLOOKUP(B29,'مسك التفويج- اللغات'!$A$5:$Y$43,14,0)","v":0},{"$f":"+VLOOKUP(B29,'مسك التفويج- اللغات'!$A$5:$Y$43,15,0)+VLOOKUP(B29,'مسك التفويج- اللغات'!$A$5:$Y$43,16,0)","v":0},{"$f":"+VLOOKUP(B29,'مسك التفويج- اللغات'!$A$5:$Y$43,17,0)","v":0},{"$f":"+VLOOKUP(B29,'مسك التفويج- اللغات'!$A$5:$Y$43,18,0)+VLOOKUP(B29,'مسك التفويج- اللغات'!$A$5:$Y$43,19,0)","v":0},{"$f":"+VLOOKUP(B29,'مسك التفويج- اللغات'!$A$5:$Y$43,20,0)","v":0},{"$f":"+VLOOKUP(B29,'مسك التفويج- اللغات'!$A$5:$Y$43,21,0)+VLOOKUP(B29,'مسك التفويج- اللغات'!$A$5:$Y$43,22,0)","v":0},0,0,{"$f":"+VLOOKUP(B29,'مسك التفويج- اللغات'!$A$5:$Y$43,23,0)","v":0},{"$f":"+VLOOKUP(B29,'مسك التفويج- اللغات'!$A$5:$Y$43,24,0)+VLOOKUP(B29,'مسك التفويج- اللغات'!$A$5:$Y$43,25,0)","v":0}]
[null,"س 1 العلوم التجريبية خ فرنسية",null,null,null,{"$f":"VLOOKUP(B30,'مسك السن- الجنس'!$A$8:$AM$46,36,0)","v":0},{"$f":"VLOOKUP(B30,'مسك السن- الجنس'!$A$8:$AM$46,37,0)","v":0},{"$f":"VLOOKUP(B30,'مسك السن- الجنس'!$A$8:$AM$46,36,0)+VLOOKUP(B30,'مسك السن- الجنس'!$A$8:$AM$46,38,0)","v":0},{"$f":"VLOOKUP(B30,'مسك السن- الجنس'!$A$8:$AM$46,37,0)+VLOOKUP(B30,'مسك السن- الجنس'!$A$8:$AM$46,39,0)","v":0},{"$f":"+VLOOKUP(B30,'مسك التفويج- اللغات'!$A$5:$Y$43,2,0)","v":0},{"$f":"+VLOOKUP(B30,'مسك التفويج- اللغات'!$A$5:$Y$43,11,0)","v":0},{"$f":"+VLOOKUP(B30,'مسك التفويج- اللغات'!$A$5:$Y$43,12,0)+VLOOKUP(B30,'مسك التفويج- اللغات'!$A$5:$Y$43,13,0)","v":0},{"$f":"+VLOOKUP(B30,'مسك التفويج- اللغات'!$A$5:$Y$43,14,0)","v":0},{"$f":"+VLOOKUP(B30,'مسك التفويج- اللغات'!$A$5:$Y$43,15,0)+VLOOKUP(B30,'مسك التفويج- اللغات'!$A$5:$Y$43,16,0)","v":0},{"$f":"+VLOOKUP(B30,'مسك التفويج- اللغات'!$A$5:$Y$43,17,0)","v":0},{"$f":"+VLOOKUP(B30,'مسك التفويج- اللغات'!$A$5:$Y$43,18,0)+VLOOKUP(B30,'مسك التفويج- اللغات'!$A$5:$Y$43,19,0)","v":0},{"$f":"+VLOOKUP(B30,'مسك التفويج- اللغات'!$A$5:$Y$43,20,0)","v":0},{"$f":"+VLOOKUP(B30,'مسك التفويج- اللغات'!$A$5:$Y$43,21,0)+VLOOKUP(B30,'مسك التفويج- اللغات'!$A$5:$Y$43,22,0)","v":0},0,0,{"$f":"+VLOOKUP(B30,'مسك التفويج- اللغات'!$A$5:$Y$43,23,0)","v":0},{"$f":"+VLOOKUP(B30,'مسك التفويج- اللغات'!$A$5:$Y$43,24,0)+VLOOKUP(B30,'مسك التفويج- اللغات'!$A$5:$Y$43,25,0)","v":0}]
[null,"س 1 العلوم الرياضية خ فرنسية",null,null,null,{"$f":"VLOOKUP(B31,'مسك السن- الجنس'!$A$8:$AM$46,36,0)","v":0},{"$f":"VLOOKUP(B31,'مسك السن- الجنس'!$A$8:$AM$46,37,0)","v":0},{"$f":"VLOOKUP(B31,'مسك السن- الجنس'!$A$8:$AM$46,36,0)+VLOOKUP(B31,'مسك السن- الجنس'!$A$8:$AM$46,38,0)","v":0},{"$f":"VLOOKUP(B31,'مسك السن- الجنس'!$A$8:$AM$46,37,0)+VLOOKUP(B31,'مسك السن- الجنس'!$A$8:$AM$46,39,0)","v":0},{"$f":"+VLOOKUP(B31,'مسك التفويج- اللغات'!$A$5:$Y$43,2,0)","v":0},{"$f":"+VLOOKUP(B31,'مسك التفويج- اللغات'!$A$5:$Y$43,11,0)","v":0},{"$f":"+VLOOKUP(B31,'مسك التفويج- اللغات'!$A$5:$Y$43,12,0)+VLOOKUP(B31,'مسك التفويج- اللغات'!$A$5:$Y$43,13,0)","v":0},{"$f":"+VLOOKUP(B31,'مسك التفويج- اللغات'!$A$5:$Y$43,14,0)","v":0},{"$f":"+VLOOKUP(B31,'مسك التفويج- اللغات'!$A$5:$Y$43,15,0)+VLOOKUP(B31,'مسك التفويج- اللغات'!$A$5:$Y$43,16,0)","v":0},{"$f":"+VLOOKUP(B31,'مسك التفويج- اللغات'!$A$5:$Y$43,17,0)","v":0},{"$f":"+VLOOKUP(B31,'مسك التفويج- اللغات'!$A$5:$Y$43,18,0)+VLOOKUP(B31,'مسك التفويج- اللغات'!$A$5:$Y$43,19,0)","v":0},{"$f":"+VLOOKUP(B31,'مسك التفويج- اللغات'!$A$5:$Y$43,20,0)","v":0},{"$f":"+VLOOKUP(B31,'مسك التفويج- اللغات'!$A$5:$Y$43,21,0)+VLOOKUP(B31,'مسك التفويج- اللغات'!$A$5:$Y$43,22,0)","v":0},0,0,{"$f":"+VLOOKUP(B31,'مسك التفويج- اللغات'!$A$5:$Y$43,23,0)","v":0},{"$f":"+VLOOKUP(B31,'مسك التفويج- اللغات'!$A$5:$Y$43,24,0)+VLOOKUP(B31,'مسك التفويج- اللغات'!$A$5:$Y$43,25,0)","v":0}]
[null,"س 1 العلوم الإقتصادية و التدبير",null,null,null,{"$f":"VLOOKUP(B32,'مسك السن- الجنس'!$A$8:$AM$46,36,0)","v":0},{"$f":"VLOOKUP(B32,'مسك السن- الجنس'!$A$8:$AM$46,37,0)","v":0},{"$f":"VLOOKUP(B32,'مسك السن- الجنس'!$A$8:$AM$46,36,0)+VLOOKUP(B32,'مسك السن- الجنس'!$A$8:$AM$46,38,0)","v":0},{"$f":"VLOOKUP(B32,'مسك السن- الجنس'!$A$8:$AM$46,37,0)+VLOOKUP(B32,'مسك السن- الجنس'!$A$8:$AM$46,39,0)","v":0},{"$f":"+VLOOKUP(B32,'مسك التفويج- اللغات'!$A$5:$Y$43,2,0)","v":0},{"$f":"+VLOOKUP(B32,'مسك التفويج- اللغات'!$A$5:$Y$43,11,0)","v":0},{"$f":"+VLOOKUP(B32,'مسك التفويج- اللغات'!$A$5:$Y$43,12,0)+VLOOKUP(B32,'مسك التفويج- اللغات'!$A$5:$Y$43,13,0)","v":0},{"$f":"+VLOOKUP(B32,'مسك التفويج- اللغات'!$A$5:$Y$43,14,0)","v":0},{"$f":"+VLOOKUP(B32,'مسك التفويج- اللغات'!$A$5:$Y$43,15,0)+VLOOKUP(B32,'مسك التفويج- اللغات'!$A$5:$Y$43,16,0)","v":0},{"$f":"+VLOOKUP(B32,'مسك التفويج- اللغات'!$A$5:$Y$43,17,0)","v":0},{"$f":"+VLOOKUP(B32,'مسك التفويج- اللغات'!$A$5:$Y$43,18,0)+VLOOKUP(B32,'مسك التفويج- اللغات'!$A$5:$Y$43,19,0)","v":0},{"$f":"+VLOOKUP(B32,'مسك التفويج- اللغات'!$A$5:$Y$43,20,0)","v":0},{"$f":"+VLOOKUP(B32,'مسك التفويج- اللغات'!$A$5:$Y$43,21,0)+VLOOKUP(B32,'مسك التفويج- اللغات'!$A$5:$Y$43,22,0)","v":0},0,0,{"$f":"+VLOOKUP(B32,'مسك التفويج- اللغات'!$A$5:$Y$43,23,0)","v":0},{"$f":"+VLOOKUP(B32,'مسك التفويج- اللغات'!$A$5:$Y$43,24,0)+VLOOKUP(B32,'مسك التفويج- اللغات'!$A$5:$Y$43,25,0)","v":0}]
[null,"س 1 العلوم و التكنولوجيات الكهربائية",null,null,null,{"$f":"VLOOKUP(B33,'مسك السن- الجنس'!$A$8:$AM$46,36,0)","v":0},{"$f":"VLOOKUP(B33,'مسك السن- الجنس'!$A$8:$AM$46,37,0)","v":0},{"$f":"VLOOKUP(B33,'مسك السن- الجنس'!$A$8:$AM$46,36,0)+VLOOKUP(B33,'مسك السن- الجنس'!$A$8:$AM$46,38,0)","v":0},{"$f":"VLOOKUP(B33,'مسك السن- الجنس'!$A$8:$AM$46,37,0)+VLOOKUP(B33,'مسك السن- الجنس'!$A$8:$AM$46,39,0)","v":0},{"$f":"+VLOOKUP(B33,'مسك التفويج- اللغات'!$A$5:$Y$43,2,0)","v":0},{"$f":"+VLOOKUP(B33,'مسك التفويج- اللغات'!$A$5:$Y$43,11,0)","v":0},{"$f":"+VLOOKUP(B33,'مسك التفويج- اللغات'!$A$5:$Y$43,12,0)+VLOOKUP(B33,'مسك التفويج- اللغات'!$A$5:$Y$43,13,0)","v":0},{"$f":"+VLOOKUP(B33,'مسك التفويج- اللغات'!$A$5:$Y$43,14,0)","v":0},{"$f":"+VLOOKUP(B33,'مسك التفويج- اللغات'!$A$5:$Y$43,15,0)+VLOOKUP(B33,'مسك التفويج- اللغات'!$A$5:$Y$43,16,0)","v":0},{"$f":"+VLOOKUP(B33,'مسك التفويج- اللغات'!$A$5:$Y$43,17,0)","v":0},{"$f":"+VLOOKUP(B33,'مسك التفويج- اللغات'!$A$5:$Y$43,18,0)+VLOOKUP(B33,'مسك التفويج- اللغات'!$A$5:$Y$43,19,0)","v":0},{"$f":"+VLOOKUP(B33,'مسك التفويج- اللغات'!$A$5:$Y$43,20,0)","v":0},{"$f":"+VLOOKUP(B33,'مسك التفويج- اللغات'!$A$5:$Y$43,21,0)+VLOOKUP(B33,'مسك التفويج- اللغات'!$A$5:$Y$43,22,0)","v":0},0,0,{"$f":"+VLOOKUP(B33,'مسك التفويج- اللغات'!$A$5:$Y$43,23,0)","v":0},{"$f":"+VLOOKUP(B33,'مسك التفويج- اللغات'!$A$5:$Y$43,24,0)+VLOOKUP(B33,'مسك التفويج- اللغات'!$A$5:$Y$43,25,0)","v":0}]
[null,"س 1 العلوم و التكنولوجيات الميكانيكية",null,null,null,{"$f":"VLOOKUP(B34,'مسك السن- الجنس'!$A$8:$AM$46,36,0)","v":0},{"$f":"VLOOKUP(B34,'مسك السن- الجنس'!$A$8:$AM$46,37,0)","v":0},{"$f":"VLOOKUP(B34,'مسك السن- الجنس'!$A$8:$AM$46,36,0)+VLOOKUP(B34,'مسك السن- الجنس'!$A$8:$AM$46,38,0)","v":0},{"$f":"VLOOKUP(B34,'مسك السن- الجنس'!$A$8:$AM$46,37,0)+VLOOKUP(B34,'مسك السن- الجنس'!$A$8:$AM$46,39,0)","v":0},{"$f":"+VLOOKUP(B34,'مسك التفويج- اللغات'!$A$5:$Y$43,2,0)","v":0},{"$f":"+VLOOKUP(B34,'مسك التفويج- اللغات'!$A$5:$Y$43,11,0)","v":0},{"$f":"+VLOOKUP(B34,'مسك التفويج- اللغات'!$A$5:$Y$43,12,0)+VLOOKUP(B34,'مسك التفويج- اللغات'!$A$5:$Y$43,13,0)","v":0},{"$f":"+VLOOKUP(B34,'مسك التفويج- اللغات'!$A$5:$Y$43,14,0)","v":0},{"$f":"+VLOOKUP(B34,'مسك التفويج- اللغات'!$A$5:$Y$43,15,0)+VLOOKUP(B34,'مسك التفويج- اللغات'!$A$5:$Y$43,16,0)","v":0},{"$f":"+VLOOKUP(B34,'مسك التفويج- اللغات'!$A$5:$Y$43,17,0)","v":0},{"$f":"+VLOOKUP(B34,'مسك التفويج- اللغات'!$A$5:$Y$43,18,0)+VLOOKUP(B34,'مسك التفويج- اللغات'!$A$5:$Y$43,19,0)","v":0},{"$f":"+VLOOKUP(B34,'مسك التفويج- اللغات'!$A$5:$Y$43,20,0)","v":0},{"$f":"+VLOOKUP(B34,'مسك التفويج- اللغات'!$A$5:$Y$43,21,0)+VLOOKUP(B34,'مسك التفويج- اللغات'!$A$5:$Y$43,22,0)","v":0},0,0,{"$f":"+VLOOKUP(B34,'مسك التفويج- اللغات'!$A$5:$Y$43,23,0)","v":0},{"$f":"+VLOOKUP(B34,'مسك التفويج- اللغات'!$A$5:$Y$43,24,0)+VLOOKUP(B34,'مسك التفويج- اللغات'!$A$5:$Y$43,25,0)","v":0}]
[null,"س 1 اللغة العربية",null,null,null,{"$f":"VLOOKUP(B35,'مسك السن- الجنس'!$A$8:$AM$46,36,0)","v":0},{"$f":"VLOOKUP(B35,'مسك السن- الجنس'!$A$8:$AM$46,37,0)","v":0},{"$f":"VLOOKUP(B35,'مسك السن- الجنس'!$A$8:$AM$46,36,0)+VLOOKUP(B35,'مسك السن- الجنس'!$A$8:$AM$46,38,0)","v":0},{"$f":"VLOOKUP(B35,'مسك السن- الجنس'!$A$8:$AM$46,37,0)+VLOOKUP(B35,'مسك السن- الجنس'!$A$8:$AM$46,39,0)","v":0},{"$f":"+VLOOKUP(B35,'مسك التفويج- اللغات'!$A$5:$Y$43,2,0)","v":0},{"$f":"+VLOOKUP(B35,'مسك التفويج- اللغات'!$A$5:$Y$43,11,0)","v":0},{"$f":"+VLOOKUP(B35,'مسك التفويج- اللغات'!$A$5:$Y$43,12,0)+VLOOKUP(B35,'مسك التفويج- اللغات'!$A$5:$Y$43,13,0)","v":0},{"$f":"+VLOOKUP(B35,'مسك التفويج- اللغات'!$A$5:$Y$43,14,0)","v":0},{"$f":"+VLOOKUP(B35,'مسك التفويج- اللغات'!$A$5:$Y$43,15,0)+VLOOKUP(B35,'مسك التفويج- اللغات'!$A$5:$Y$43,16,0)","v":0},{"$f":"+VLOOKUP(B35,'مسك التفويج- اللغات'!$A$5:$Y$43,17,0)","v":0},{"$f":"+VLOOKUP(B35,'مسك التفويج- اللغات'!$A$5:$Y$43,18,0)+VLOOKUP(B35,'مسك التفويج- اللغات'!$A$5:$Y$43,19,0)","v":0},{"$f":"+VLOOKUP(B35,'مسك التفويج- اللغات'!$A$5:$Y$43,20,0)","v":0},{"$f":"+VLOOKUP(B35,'مسك التفويج- اللغات'!$A$5:$Y$43,21,0)+VLOOKUP(B35,'مسك التفويج- اللغات'!$A$5:$Y$43,22,0)","v":0},0,0,{"$f":"+VLOOKUP(B35,'مسك التفويج- اللغات'!$A$5:$Y$43,23,0)","v":0},{"$f":"+VLOOKUP(B35,'مسك التفويج- اللغات'!$A$5:$Y$43,24,0)+VLOOKUP(B35,'مسك التفويج- اللغات'!$A$5:$Y$43,25,0)","v":0}]
[null,"س 1 مهنية - صيانة المركبات المتحركة-السيارات-",null,null,null,{"$f":"VLOOKUP(B36,'مسك السن- الجنس'!$A$8:$AM$46,36,0)","v":0},{"$f":"VLOOKUP(B36,'مسك السن- الجنس'!$A$8:$AM$46,37,0)","v":0},{"$f":"VLOOKUP(B36,'مسك السن- الجنس'!$A$8:$AM$46,36,0)+VLOOKUP(B36,'مسك السن- الجنس'!$A$8:$AM$46,38,0)","v":0},{"$f":"VLOOKUP(B36,'مسك السن- الجنس'!$A$8:$AM$46,37,0)+VLOOKUP(B36,'مسك السن- الجنس'!$A$8:$AM$46,39,0)","v":0},{"$f":"+VLOOKUP(B36,'مسك التفويج- اللغات'!$A$5:$Y$43,2,0)","v":0},{"$f":"+VLOOKUP(B36,'مسك التفويج- اللغات'!$A$5:$Y$43,11,0)","v":0},{"$f":"+VLOOKUP(B36,'مسك التفويج- اللغات'!$A$5:$Y$43,12,0)+VLOOKUP(B36,'مسك التفويج- اللغات'!$A$5:$Y$43,13,0)","v":0},{"$f":"+VLOOKUP(B36,'مسك التفويج- اللغات'!$A$5:$Y$43,14,0)","v":0},{"$f":"+VLOOKUP(B36,'مسك التفويج- اللغات'!$A$5:$Y$43,15,0)+VLOOKUP(B36,'مسك التفويج- اللغات'!$A$5:$Y$43,16,0)","v":0},{"$f":"+VLOOKUP(B36,'مسك التفويج- اللغات'!$A$5:$Y$43,17,0)","v":0},{"$f":"+VLOOKUP(B36,'مسك التفويج- اللغات'!$A$5:$Y$43,18,0)+VLOOKUP(B36,'مسك التفويج- اللغات'!$A$5:$Y$43,19,0)","v":0},{"$f":"+VLOOKUP(B36,'مسك التفويج- اللغات'!$A$5:$Y$43,20,0)","v":0},{"$f":"+VLOOKUP(B36,'مسك التفويج- اللغات'!$A$5:$Y$43,21,0)+VLOOKUP(B36,'مسك التفويج- اللغات'!$A$5:$Y$43,22,0)","v":0},0,0,{"$f":"+VLOOKUP(B36,'مسك التفويج- اللغات'!$A$5:$Y$43,23,0)","v":0},{"$f":"+VLOOKUP(B36,'مسك التفويج- اللغات'!$A$5:$Y$43,24,0)+VLOOKUP(B36,'مسك التفويج- اللغات'!$A$5:$Y$43,25,0)","v":0}]
[null,"س 1 مهنية - فنون الطبخ",null,null,null,{"$f":"VLOOKUP(B37,'مسك السن- الجنس'!$A$8:$AM$46,36,0)","v":0},{"$f":"VLOOKUP(B37,'مسك السن- الجنس'!$A$8:$AM$46,37,0)","v":0},{"$f":"VLOOKUP(B37,'مسك السن- الجنس'!$A$8:$AM$46,36,0)+VLOOKUP(B37,'مسك السن- الجنس'!$A$8:$AM$46,38,0)","v":0},{"$f":"VLOOKUP(B37,'مسك السن- الجنس'!$A$8:$AM$46,37,0)+VLOOKUP(B37,'مسك السن- الجنس'!$A$8:$AM$46,39,0)","v":0},{"$f":"+VLOOKUP(B37,'مسك التفويج- اللغات'!$A$5:$Y$43,2,0)","v":0},{"$f":"+VLOOKUP(B37,'مسك التفويج- اللغات'!$A$5:$Y$43,11,0)","v":0},{"$f":"+VLOOKUP(B37,'مسك التفويج- اللغات'!$A$5:$Y$43,12,0)+VLOOKUP(B37,'مسك التفويج- اللغات'!$A$5:$Y$43,13,0)","v":0},{"$f":"+VLOOKUP(B37,'مسك التفويج- اللغات'!$A$5:$Y$43,14,0)","v":0},{"$f":"+VLOOKUP(B37,'مسك التفويج- اللغات'!$A$5:$Y$43,15,0)+VLOOKUP(B37,'مسك التفويج- اللغات'!$A$5:$Y$43,16,0)","v":0},{"$f":"+VLOOKUP(B37,'مسك التفويج- اللغات'!$A$5:$Y$43,17,0)","v":0},{"$f":"+VLOOKUP(B37,'مسك التفويج- اللغات'!$A$5:$Y$43,18,0)+VLOOKUP(B37,'مسك التفويج- اللغات'!$A$5:$Y$43,19,0)","v":0},{"$f":"+VLOOKUP(B37,'مسك التفويج- اللغات'!$A$5:$Y$43,20,0)","v":0},{"$f":"+VLOOKUP(B37,'مسك التفويج- اللغات'!$A$5:$Y$43,21,0)+VLOOKUP(B37,'مسك التفويج- اللغات'!$A$5:$Y$43,22,0)","v":0},0,0,{"$f":"+VLOOKUP(B37,'مسك التفويج- اللغات'!$A$5:$Y$43,23,0)","v":0},{"$f":"+VLOOKUP(B37,'مسك التفويج- اللغات'!$A$5:$Y$43,24,0)+VLOOKUP(B37,'مسك التفويج- اللغات'!$A$5:$Y$43,25,0)","v":0}]
[null,"س 1 مهنية - تجارة",null,null,null,{"$f":"VLOOKUP(B38,'مسك السن- الجنس'!$A$8:$AM$46,36,0)","v":0},{"$f":"VLOOKUP(B38,'مسك السن- الجنس'!$A$8:$AM$46,37,0)","v":0},{"$f":"VLOOKUP(B38,'مسك السن- الجنس'!$A$8:$AM$46,36,0)+VLOOKUP(B38,'مسك السن- الجنس'!$A$8:$AM$46,38,0)","v":0},{"$f":"VLOOKUP(B38,'مسك السن- الجنس'!$A$8:$AM$46,37,0)+VLOOKUP(B38,'مسك السن- الجنس'!$A$8:$AM$46,39,0)","v":0},{"$f":"+VLOOKUP(B38,'مسك التفويج- اللغات'!$A$5:$Y$43,2,0)","v":0},{"$f":"+VLOOKUP(B38,'مسك التفويج- اللغات'!$A$5:$Y$43,11,0)","v":0},{"$f":"+VLOOKUP(B38,'مسك التفويج- اللغات'!$A$5:$Y$43,12,0)+VLOOKUP(B38,'مسك التفويج- اللغات'!$A$5:$Y$43,13,0)","v":0},{"$f":"+VLOOKUP(B38,'مسك التفويج- اللغات'!$A$5:$Y$43,14,0)","v":0},{"$f":"+VLOOKUP(B38,'مسك التفويج- اللغات'!$A$5:$Y$43,15,0)+VLOOKUP(B38,'مسك التفويج- اللغات'!$A$5:$Y$43,16,0)","v":0},{"$f":"+VLOOKUP(B38,'مسك التفويج- اللغات'!$A$5:$Y$43,17,0)","v":0},{"$f":"+VLOOKUP(B38,'مسك التفويج- اللغات'!$A$5:$Y$43,18,0)+VLOOKUP(B38,'مسك التفويج- اللغات'!$A$5:$Y$43,19,0)","v":0},{"$f":"+VLOOKUP(B38,'مسك التفويج- اللغات'!$A$5:$Y$43,20,0)","v":0},{"$f":"+VLOOKUP(B38,'مسك التفويج- اللغات'!$A$5:$Y$43,21,0)+VLOOKUP(B38,'مسك التفويج- اللغات'!$A$5:$Y$43,22,0)","v":0},0,0,{"$f":"+VLOOKUP(B38,'مسك التفويج- اللغات'!$A$5:$Y$43,23,0)","v":0},{"$f":"+VLOOKUP(B38,'مسك التفويج- اللغات'!$A$5:$Y$43,24,0)+VLOOKUP(B38,'مسك التفويج- اللغات'!$A$5:$Y$43,25,0)","v":0}]
[null,"مجموع السنة الأولى",null,null,null,{"$f":"SUM(F27:F38)","v":0},{"$f":"SUM(G27:G38)","v":0},0,0,0,0,0,0,0,0,0,0,0,0,0,0,0]
["السنة الثانية من سلك البكالوريا","س 2 الآداب ",null,null,null,{"$f":"VLOOKUP(B40,'مسك السن- الجنس'!$A$8:$AM$46,36,0)","v":0},{"$f":"VLOOKUP(B40,'مسك السن- الجنس'!$A$8:$AM$46,37,0)","v":0},{"$f":"VLOOKUP(B40,'مسك السن- الجنس'!$A$8:$AM$46,36,0)+VLOOKUP(B40,'مسك السن- الجنس'!$A$8:$AM$46,38,0)","v":0},{"$f":"VLOOKUP(B40,'مسك السن- الجنس'!$A$8:$AM$46,37,0)+VLOOKUP(B40,'مسك السن- الجنس'!$A$8:$AM$46,39,0)","v":0},{"$f":"+VLOOKUP(B40,'مسك التفويج- اللغات'!$A$5:$Y$43,2,0)","v":0},{"$f":"+VLOOKUP(B40,'مسك التفويج- اللغات'!$A$5:$Y$43,11,0)","v":0},{"$f":"+VLOOKUP(B40,'مسك التفويج- اللغات'!$A$5:$Y$43,12,0)+VLOOKUP(B40,'مسك التفويج- اللغات'!$A$5:$Y$43,13,0)","v":0},{"$f":"+VLOOKUP(B40,'مسك التفويج- اللغات'!$A$5:$Y$43,14,0)","v":0},{"$f":"+VLOOKUP(B40,'مسك التفويج- اللغات'!$A$5:$Y$43,15,0)+VLOOKUP(B40,'مسك التفويج- اللغات'!$A$5:$Y$43,16,0)","v":0},{"$f":"+VLOOKUP(B40,'مسك التفويج- اللغات'!$A$5:$Y$43,17,0)","v":0},{"$f":"+VLOOKUP(B40,'مسك التفويج- اللغات'!$A$5:$Y$43,18,0)+VLOOKUP(B40,'مسك التفويج- اللغات'!$A$5:$Y$43,19,0)","v":0},{"$f":"+VLOOKUP(B40,'مسك التفويج- اللغات'!$A$5:$Y$43,20,0)","v":0},{"$f":"+VLOOKUP(B40,'مسك التفويج- اللغات'!$A$5:$Y$43,21,0)+VLOOKUP(B40,'مسك التفويج- اللغات'!$A$5:$Y$43,22,0)","v":0},{"$f":"SUM(Q40,O40,M40,K40)","v":0},{"$f":"SUM(R40,P40,N40,L40)","v":0},{"$f":"+VLOOKUP(B40,'مسك التفويج- اللغات'!$A$5:$Y$43,23,0)","v":0},{"$f":"+VLOOKUP(B40,'مسك التفويج- اللغات'!$A$5:$Y$43,24,0)+VLOOKUP(B40,'مسك التفويج- اللغات'!$A$5:$Y$43,25,0)","v":0}]
[null,"س 2 الآداب خيار فرنسية",null,null,null,{"$f":"VLOOKUP(B41,'مسك السن- الجنس'!$A$8:$AM$46,36,0)","v":0},{"$f":"VLOOKUP(B41,'مسك السن- الجنس'!$A$8:$AM$46,37,0)","v":0},{"$f":"VLOOKUP(B41,'مسك السن- الجنس'!$A$8:$AM$46,36,0)+VLOOKUP(B41,'مسك السن- الجنس'!$A$8:$AM$46,38,0)","v":0},{"$f":"VLOOKUP(B41,'مسك السن- الجنس'!$A$8:$AM$46,37,0)+VLOOKUP(B41,'مسك السن- الجنس'!$A$8:$AM$46,39,0)","v":0},{"$f":"+VLOOKUP(B41,'مسك التفويج- اللغات'!$A$5:$Y$43,2,0)","v":0},{"$f":"+VLOOKUP(B41,'مسك التفويج- اللغات'!$A$5:$Y$43,11,0)","v":0},{"$f":"+VLOOKUP(B41,'مسك التفويج- اللغات'!$A$5:$Y$43,12,0)+VLOOKUP(B41,'مسك التفويج- اللغات'!$A$5:$Y$43,13,0)","v":0},{"$f":"+VLOOKUP(B41,'مسك التفويج- اللغات'!$A$5:$Y$43,14,0)","v":0},{"$f":"+VLOOKUP(B41,'مسك التفويج- اللغات'!$A$5:$Y$43,15,0)+VLOOKUP(B41,'مسك التفويج- اللغات'!$A$5:$Y$43,16,0)","v":0},{"$f":"+VLOOKUP(B41,'مسك التفويج- اللغات'!$A$5:$Y$43,17,0)","v":0},{"$f":"+VLOOKUP(B41,'مسك التفويج- اللغات'!$A$5:$Y$43,18,0)+VLOOKUP(B41,'مسك التفويج- اللغات'!$A$5:$Y$43,19,0)","v":0},{"$f":"+VLOOKUP(B41,'مسك التفويج- اللغات'!$A$5:$Y$43,20,0)","v":0},{"$f":"+VLOOKUP(B41,'مسك التفويج- اللغات'!$A$5:$Y$43,21,0)+VLOOKUP(B41,'مسك التفويج- اللغات'!$A$5:$Y$43,22,0)","v":0},0,0,{"$f":"+VLOOKUP(B41,'مسك التفويج- اللغات'!$A$5:$Y$43,23,0)","v":0},{"$f":"+VLOOKUP(B41,'مسك التفويج- اللغات'!$A$5:$Y$43,24,0)+VLOOKUP(B41,'مسك التفويج- اللغات'!$A$5:$Y$43,25,0)","v":0}]
[null,"س 2 العلوم الإنسانية",null,null,null,{"$f":"VLOOKUP(B42,'مسك السن- الجنس'!$A$8:$AM$46,36,0)","v":0},{"$f":"VLOOKUP(B42,'مسك السن- الجنس'!$A$8:$AM$46,37,0)","v":0},{"$f":"VLOOKUP(B42,'مسك السن- الجنس'!$A$8:$AM$46,36,0)+VLOOKUP(B42,'مسك السن- الجنس'!$A$8:$AM$46,38,0)","v":0},{"$f":"VLOOKUP(B42,'مسك السن- الجنس'!$A$8:$AM$46,37,0)+VLOOKUP(B42,'مسك السن- الجنس'!$A$8:$AM$46,39,0)","v":0},{"$f":"+VLOOKUP(B42,'مسك التفويج- اللغات'!$A$5:$Y$43,2,0)","v":0},{"$f":"+VLOOKUP(B42,'مسك التفويج- اللغات'!$A$5:$Y$43,11,0)","v":0},{"$f":"+VLOOKUP(B42,'مسك التفويج- اللغات'!$A$5:$Y$43,12,0)+VLOOKUP(B42,'مسك التفويج- اللغات'!$A$5:$Y$43,13,0)","v":0},{"$f":"+VLOOKUP(B42,'مسك التفويج- اللغات'!$A$5:$Y$43,14,0)","v":0},{"$f":"+VLOOKUP(B42,'مسك التفويج- اللغات'!$A$5:$Y$43,15,0)+VLOOKUP(B42,'مسك التفويج- اللغات'!$A$5:$Y$43,16,0)","v":0},{"$f":"+VLOOKUP(B42,'مسك التفويج- اللغات'!$A$5:$Y$43,17,0)","v":0},{"$f":"+VLOOKUP(B42,'مسك التفويج- اللغات'!$A$5:$Y$43,18,0)+VLOOKUP(B42,'مسك التفويج- اللغات'!$A$5:$Y$43,19,0)","v":0},{"$f":"+VLOOKUP(B42,'مسك التفويج- اللغات'!$A$5:$Y$43,20,0)","v":0},{"$f":"+VLOOKUP(B42,'مسك التفويج- اللغات'!$A$5:$Y$43,21,0)+VLOOKUP(B42,'مسك التفويج- اللغات'!$A$5:$Y$43,22,0)","v":0},0,0,{"$f":"+VLOOKUP(B42,'مسك التفويج- اللغات'!$A$5:$Y$43,23,0)","v":0},{"$f":"+VLOOKUP(B42,'مسك التفويج- اللغات'!$A$5:$Y$43,24,0)+VLOOKUP(B42,'مسك التفويج- اللغات'!$A$5:$Y$43,25,0)","v":0}]
[null,"س 2 علوم الحياة والأرض",null,null,null,{"$f":"VLOOKUP(B43,'مسك السن- الجنس'!$A$8:$AM$46,36,0)","v":0},{"$f":"VLOOKUP(B43,'مسك السن- الجنس'!$A$8:$AM$46,37,0)","v":0},{"$f":"VLOOKUP(B43,'مسك السن- الجنس'!$A$8:$AM$46,36,0)+VLOOKUP(B43,'مسك السن- الجنس'!$A$8:$AM$46,38,0)","v":0},{"$f":"VLOOKUP(B43,'مسك السن- الجنس'!$A$8:$AM$46,37,0)+VLOOKUP(B43,'مسك السن- الجنس'!$A$8:$AM$46,39,0)","v":0},{"$f":"+VLOOKUP(B43,'مسك التفويج- اللغات'!$A$5:$Y$43,2,0)","v":0},{"$f":"+VLOOKUP(B43,'مسك التفويج- اللغات'!$A$5:$Y$43,11,0)","v":0},{"$f":"+VLOOKUP(B43,'مسك التفويج- اللغات'!$A$5:$Y$43,12,0)+VLOOKUP(B43,'مسك التفويج- اللغات'!$A$5:$Y$43,13,0)","v":0},{"$f":"+VLOOKUP(B43,'مسك التفويج- اللغات'!$A$5:$Y$43,14,0)","v":0},{"$f":"+VLOOKUP(B43,'مسك التفويج- اللغات'!$A$5:$Y$43,15,0)+VLOOKUP(B43,'مسك التفويج- اللغات'!$A$5:$Y$43,16,0)","v":0},{"$f":"+VLOOKUP(B43,'مسك التفويج- اللغات'!$A$5:$Y$43,17,0)","v":0},{"$f":"+VLOOKUP(B43,'مسك التفويج- اللغات'!$A$5:$Y$43,18,0)+VLOOKUP(B43,'مسك التفويج- اللغات'!$A$5:$Y$43,19,0)","v":0},{"$f":"+VLOOKUP(B43,'مسك التفويج- اللغات'!$A$5:$Y$43,20,0)","v":0},{"$f":"+VLOOKUP(B43,'مسك التفويج- اللغات'!$A$5:$Y$43,21,0)+VLOOKUP(B43,'مسك التفويج- اللغات'!$A$5:$Y$43,22,0)","v":0},0,0,{"$f":"+VLOOKUP(B43,'مسك التفويج- اللغات'!$A$5:$Y$43,23,0)","v":0},{"$f":"+VLOOKUP(B43,'مسك التفويج- اللغات'!$A$5:$Y$43,24,0)+VLOOKUP(B43,'مسك التفويج- اللغات'!$A$5:$Y$43,25,0)","v":0}]
[null,"س 2 العلوم الفيزيائية",null,null,null,{"$f":"VLOOKUP(B44,'مسك السن- الجنس'!$A$8:$AM$46,36,0)","v":0},{"$f":"VLOOKUP(B44,'مسك السن- الجنس'!$A$8:$AM$46,37,0)","v":0},{"$f":"VLOOKUP(B44,'مسك السن- الجنس'!$A$8:$AM$46,36,0)+VLOOKUP(B44,'مسك السن- الجنس'!$A$8:$AM$46,38,0)","v":0},{"$f":"VLOOKUP(B44,'مسك السن- الجنس'!$A$8:$AM$46,37,0)+VLOOKUP(B44,'مسك السن- الجنس'!$A$8:$AM$46,39,0)","v":0},{"$f":"+VLOOKUP(B44,'مسك التفويج- اللغات'!$A$5:$Y$43,2,0)","v":0},{"$f":"+VLOOKUP(B44,'مسك التفويج- اللغات'!$A$5:$Y$43,11,0)","v":0},{"$f":"+VLOOKUP(B44,'مسك التفويج- اللغات'!$A$5:$Y$43,12,0)+VLOOKUP(B44,'مسك التفويج- اللغات'!$A$5:$Y$43,13,0)","v":0},{"$f":"+VLOOKUP(B44,'مسك التفويج- اللغات'!$A$5:$Y$43,14,0)","v":0},{"$f":"+VLOOKUP(B44,'مسك التفويج- اللغات'!$A$5:$Y$43,15,0)+VLOOKUP(B44,'مسك التفويج- اللغات'!$A$5:$Y$43,16,0)","v":0},{"$f":"+VLOOKUP(B44,'مسك التفويج- اللغات'!$A$5:$Y$43,17,0)","v":0},{"$f":"+VLOOKUP(B44,'مسك التفويج- اللغات'!$A$5:$Y$43,18,0)+VLOOKUP(B44,'مسك التفويج- اللغات'!$A$5:$Y$43,19,0)","v":0},{"$f":"+VLOOKUP(B44,'مسك التفويج- اللغات'!$A$5:$Y$43,20,0)","v":0},{"$f":"+VLOOKUP(B44,'مسك التفويج- اللغات'!$A$5:$Y$43,21,0)+VLOOKUP(B44,'مسك التفويج- اللغات'!$A$5:$Y$43,22,0)","v":0},0,0,{"$f":"+VLOOKUP(B44,'مسك التفويج- اللغات'!$A$5:$Y$43,23,0)","v":0},{"$f":"+VLOOKUP(B44,'مسك التفويج- اللغات'!$A$5:$Y$43,24,0)+VLOOKUP(B44,'مسك التفويج- اللغات'!$A$5:$Y$43,25,0)","v":0}]
[null,"س 2 علوم الحياة والأرض خ فرنسية",null,null,null,{"$f":"VLOOKUP(B45,'مسك السن- الجنس'!$A$8:$AM$46,36,0)","v":0},{"$f":"VLOOKUP(B45,'مسك السن- الجنس'!$A$8:$AM$46,37,0)","v":0},{"$f":"VLOOKUP(B45,'مسك السن- الجنس'!$A$8:$AM$46,36,0)+VLOOKUP(B45,'مسك السن- الجنس'!$A$8:$AM$46,38,0)","v":0},{"$f":"VLOOKUP(B45,'مسك السن- الجنس'!$A$8:$AM$46,37,0)+VLOOKUP(B45,'مسك السن- الجنس'!$A$8:$AM$46,39,0)","v":0},{"$f":"+VLOOKUP(B45,'مسك التفويج- اللغات'!$A$5:$Y$43,2,0)","v":0},{"$f":"+VLOOKUP(B45,'مسك التفويج- اللغات'!$A$5:$Y$43,11,0)","v":0},{"$f":"+VLOOKUP(B45,'مسك التفويج- اللغات'!$A$5:$Y$43,12,0)+VLOOKUP(B45,'مسك التفويج- اللغات'!$A$5:$Y$43,13,0)","v":0},{"$f":"+VLOOKUP(B45,'مسك التفويج- اللغات'!$A$5:$Y$43,14,0)","v":0},{"$f":"+VLOOKUP(B45,'مسك التفويج- اللغات'!$A$5:$Y$43,15,0)+VLOOKUP(B45,'مسك التفويج- اللغات'!$A$5:$Y$43,16,0)","v":0},{"$f":"+VLOOKUP(B45,'مسك التفويج- اللغات'!$A$5:$Y$43,17,0)","v":0},{"$f":"+VLOOKUP(B45,'مسك التفويج- اللغات'!$A$5:$Y$43,18,0)+VLOOKUP(B45,'مسك التفويج- اللغات'!$A$5:$Y$43,19,0)","v":0},{"$f":"+VLOOKUP(B45,'مسك التفويج- اللغات'!$A$5:$Y$43,20,0)","v":0},{"$f":"+VLOOKUP(B45,'مسك التفويج- اللغات'!$A$5:$Y$43,21,0)+VLOOKUP(B45,'مسك التفويج- اللغات'!$A$5:$Y$43,22,0)","v":0},0,0,{"$f":"+VLOOKUP(B45,'مسك التفويج- اللغات'!$A$5:$Y$43,23,0)","v":0},{"$f":"+VLOOKUP(B45,'مسك التفويج- اللغات'!$A$5:$Y$43,24,0)+VLOOKUP(B45,'مسك التفويج- اللغات'!$A$5:$Y$43,25,0)","v":0}]
[null,"س 2 العلوم الفيزيائية خ فرنسية",null,null,null,{"$f":"VLOOKUP(B46,'مسك السن- الجنس'!$A$8:$AM$46,36,0)","v":0},{"$f":"VLOOKUP(B46,'مسك السن- الجنس'!$A$8:$AM$46,37,0)","v":0},{"$f":"VLOOKUP(B46,'مسك السن- الجنس'!$A$8:$AM$46,36,0)+VLOOKUP(B46,'مسك السن- الجنس'!$A$8:$AM$46,38,0)","v":0},{"$f":"VLOOKUP(B46,'مسك السن- الجنس'!$A$8:$AM$46,37,0)+VLOOKUP(B46,'مسك السن- الجنس'!$A$8:$AM$46,39,0)","v":0},{"$f":"+VLOOKUP(B46,'مسك التفويج- اللغات'!$A$5:$Y$43,2,0)","v":0},{"$f":"+VLOOKUP(B46,'مسك التفويج- اللغات'!$A$5:$Y$43,11,0)","v":0},{"$f":"+VLOOKUP(B46,'مسك التفويج- اللغات'!$A$5:$Y$43,12,0)+VLOOKUP(B46,'مسك التفويج- اللغات'!$A$5:$Y$43,13,0)","v":0},{"$f":"+VLOOKUP(B46,'مسك التفويج- اللغات'!$A$5:$Y$43,14,0)","v":0},{"$f":"+VLOOKUP(B46,'مسك التفويج- اللغات'!$A$5:$Y$43,15,0)+VLOOKUP(B46,'مسك التفويج- اللغات'!$A$5:$Y$43,16,0)","v":0},{"$f":"+VLOOKUP(B46,'مسك التفويج- اللغات'!$A$5:$Y$43,17,0)","v":0},{"$f":"+VLOOKUP(B46,'مسك التفويج- اللغات'!$A$5:$Y$43,18,0)+VLOOKUP(B46,'مسك التفويج- اللغات'!$A$5:$Y$43,19,0)","v":0},{"$f":"+VLOOKUP(B46,'مسك التفويج- اللغات'!$A$5:$Y$43,20,0)","v":0},{"$f":"+VLOOKUP(B46,'مسك التفويج- اللغات'!$A$5:$Y$43,21,0)+VLOOKUP(B46,'مسك التفويج- اللغات'!$A$5:$Y$43,22,0)","v":0},0,0,{"$f":"+VLOOKUP(B46,'مسك التفويج- اللغات'!$A$5:$Y$43,23,0)","v":0},{"$f":"+VLOOKUP(B46,'مسك التفويج- اللغات'!$A$5:$Y$43,24,0)+VLOOKUP(B46,'مسك التفويج- اللغات'!$A$5:$Y$43,25,0)","v":0}]
[null,"س 2علوم التدبير المحاسباتي",null,null,null,{"$f":"VLOOKUP(B47,'مسك السن- الجنس'!$A$8:$AM$46,36,0)","v":0},{"$f":"VLOOKUP(B47,'مسك السن- الجنس'!$A$8:$AM$46,37,0)","v":0},{"$f":"VLOOKUP(B47,'مسك السن- الجنس'!$A$8:$AM$46,36,0)+VLOOKUP(B47,'مسك السن- الجنس'!$A$8:$AM$46,38,0)","v":0},{"$f":"VLOOKUP(B47,'مسك السن- الجنس'!$A$8:$AM$46,37,0)+VLOOKUP(B47,'مسك السن- الجنس'!$A$8:$AM$46,39,0)","v":0},{"$f":"+VLOOKUP(B47,'مسك التفويج- اللغات'!$A$5:$Y$43,2,0)","v":0},{"$f":"+VLOOKUP(B47,'مسك التفويج- اللغات'!$A$5:$Y$43,11,0)","v":0},{"$f":"+VLOOKUP(B47,'مسك التفويج- اللغات'!$A$5:$Y$43,12,0)+VLOOKUP(B47,'مسك التفويج- اللغات'!$A$5:$Y$43,13,0)","v":0},{"$f":"+VLOOKUP(B47,'مسك التفويج- اللغات'!$A$5:$Y$43,14,0)","v":0},{"$f":"+VLOOKUP(B47,'مسك التفويج- اللغات'!$A$5:$Y$43,15,0)+VLOOKUP(B47,'مسك التفويج- اللغات'!$A$5:$Y$43,16,0)","v":0},{"$f":"+VLOOKUP(B47,'مسك التفويج- اللغات'!$A$5:$Y$43,17,0)","v":0},{"$f":"+VLOOKUP(B47,'مسك التفويج- اللغات'!$A$5:$Y$43,18,0)+VLOOKUP(B47,'مسك التفويج- اللغات'!$A$5:$Y$43,19,0)","v":0},{"$f":"+VLOOKUP(B47,'مسك التفويج- اللغات'!$A$5:$Y$43,20,0)","v":0},{"$f":"+VLOOKUP(B47,'مسك التفويج- اللغات'!$A$5:$Y$43,21,0)+VLOOKUP(B47,'مسك التفويج- اللغات'!$A$5:$Y$43,22,0)","v":0},0,0,{"$f":"+VLOOKUP(B47,'مسك التفويج- اللغات'!$A$5:$Y$43,23,0)","v":0},{"$f":"+VLOOKUP(B47,'مسك التفويج- اللغات'!$A$5:$Y$43,24,0)+VLOOKUP(B47,'مسك التفويج- اللغات'!$A$5:$Y$43,25,0)","v":0}]
[null,"س 2 العلوم الإقتصادية",null,null,null,{"$f":"VLOOKUP(B48,'مسك السن- الجنس'!$A$8:$AM$46,36,0)","v":0},{"$f":"VLOOKUP(B48,'مسك السن- الجنس'!$A$8:$AM$46,37,0)","v":0},{"$f":"VLOOKUP(B48,'مسك السن- الجنس'!$A$8:$AM$46,36,0)+VLOOKUP(B48,'مسك السن- الجنس'!$A$8:$AM$46,38,0)","v":0},{"$f":"VLOOKUP(B48,'مسك السن- الجنس'!$A$8:$AM$46,37,0)+VLOOKUP(B48,'مسك السن- الجنس'!$A$8:$AM$46,39,0)","v":0},{"$f":"+VLOOKUP(B48,'مسك التفويج- اللغات'!$A$5:$Y$43,2,0)","v":0},{"$f":"+VLOOKUP(B48,'مسك التفويج- اللغات'!$A$5:$Y$43,11,0)","v":0},{"$f":"+VLOOKUP(B48,'مسك التفويج- اللغات'!$A$5:$Y$43,12,0)+VLOOKUP(B48,'مسك التفويج- اللغات'!$A$5:$Y$43,13,0)","v":0},{"$f":"+VLOOKUP(B48,'مسك التفويج- اللغات'!$A$5:$Y$43,14,0)","v":0},{"$f":"+VLOOKUP(B48,'مسك التفويج- اللغات'!$A$5:$Y$43,15,0)+VLOOKUP(B48,'مسك التفويج- اللغات'!$A$5:$Y$43,16,0)","v":0},{"$f":"+VLOOKUP(B48,'مسك التفويج- اللغات'!$A$5:$Y$43,17,0)","v":0},{"$f":"+VLOOKUP(B48,'مسك التفويج- اللغات'!$A$5:$Y$43,18,0)+VLOOKUP(B48,'مسك التفويج- اللغات'!$A$5:$Y$43,19,0)","v":0},{"$f":"+VLOOKUP(B48,'مسك التفويج- اللغات'!$A$5:$Y$43,20,0)","v":0},{"$f":"+VLOOKUP(B48,'مسك التفويج- اللغات'!$A$5:$Y$43,21,0)+VLOOKUP(B48,'مسك التفويج- اللغات'!$A$5:$Y$43,22,0)","v":0},0,0,{"$f":"+VLOOKUP(B48,'مسك التفويج- اللغات'!$A$5:$Y$43,23,0)","v":0},{"$f":"+VLOOKUP(B48,'مسك التفويج- اللغات'!$A$5:$Y$43,24,0)+VLOOKUP(B48,'مسك التفويج- اللغات'!$A$5:$Y$43,25,0)","v":0}]
[null,"س 2علوم رياضية ا",null,null,null,{"$f":"VLOOKUP(B49,'مسك السن- الجنس'!$A$8:$AM$46,36,0)","v":0},{"$f":"VLOOKUP(B49,'مسك السن- الجنس'!$A$8:$AM$46,37,0)","v":0},{"$f":"VLOOKUP(B49,'مسك السن- الجنس'!$A$8:$AM$46,36,0)+VLOOKUP(B49,'مسك السن- الجنس'!$A$8:$AM$46,38,0)","v":0},{"$f":"VLOOKUP(B49,'مسك السن- الجنس'!$A$8:$AM$46,37,0)+VLOOKUP(B49,'مسك السن- الجنس'!$A$8:$AM$46,39,0)","v":0},{"$f":"+VLOOKUP(B49,'مسك التفويج- اللغات'!$A$5:$Y$43,2,0)","v":0},{"$f":"+VLOOKUP(B49,'مسك التفويج- اللغات'!$A$5:$Y$43,11,0)","v":0},{"$f":"+VLOOKUP(B49,'مسك التفويج- اللغات'!$A$5:$Y$43,12,0)+VLOOKUP(B49,'مسك التفويج- اللغات'!$A$5:$Y$43,13,0)","v":0},{"$f":"+VLOOKUP(B49,'مسك التفويج- اللغات'!$A$5:$Y$43,14,0)","v":0},{"$f":"+VLOOKUP(B49,'مسك التفويج- اللغات'!$A$5:$Y$43,15,0)+VLOOKUP(B49,'مسك التفويج- اللغات'!$A$5:$Y$43,16,0)","v":0},{"$f":"+VLOOKUP(B49,'مسك التفويج- اللغات'!$A$5:$Y$43,17,0)","v":0},{"$f":"+VLOOKUP(B49,'مسك التفويج- اللغات'!$A$5:$Y$43,18,0)+VLOOKUP(B49,'مسك التفويج- اللغات'!$A$5:$Y$43,19,0)","v":0},{"$f":"+VLOOKUP(B49,'مسك التفويج- اللغات'!$A$5:$Y$43,20,0)","v":0},{"$f":"+VLOOKUP(B49,'مسك التفويج- اللغات'!$A$5:$Y$43,21,0)+VLOOKUP(B49,'مسك التفويج- اللغات'!$A$5:$Y$43,22,0)","v":0},0,0,{"$f":"+VLOOKUP(B49,'مسك التفويج- اللغات'!$A$5:$Y$43,23,0)","v":0},{"$f":"+VLOOKUP(B49,'مسك التفويج- اللغات'!$A$5:$Y$43,24,0)+VLOOKUP(B49,'مسك التفويج- اللغات'!$A$5:$Y$43,25,0)","v":0}]
[null,"س 2 علوم رياضية ب",null,null,null,{"$f":"VLOOKUP(B50,'مسك السن- الجنس'!$A$8:$AM$46,36,0)","v":0},{"$f":"VLOOKUP(B50,'مسك السن- الجنس'!$A$8:$AM$46,37,0)","v":0},{"$f":"VLOOKUP(B50,'مسك السن- الجنس'!$A$8:$AM$46,36,0)+VLOOKUP(B50,'مسك السن- الجنس'!$A$8:$AM$46,38,0)","v":0},{"$f":"VLOOKUP(B50,'مسك السن- الجنس'!$A$8:$AM$46,37,0)+VLOOKUP(B50,'مسك السن- الجنس'!$A$8:$AM$46,39,0)","v":0},{"$f":"+VLOOKUP(B50,'مسك التفويج- اللغات'!$A$5:$Y$43,2,0)","v":0},{"$f":"+VLOOKUP(B50,'مسك التفويج- اللغات'!$A$5:$Y$43,11,0)","v":0},{"$f":"+VLOOKUP(B50,'مسك التفويج- اللغات'!$A$5:$Y$43,12,0)+VLOOKUP(B50,'مسك التفويج- اللغات'!$A$5:$Y$43,13,0)","v":0},{"$f":"+VLOOKUP(B50,'مسك التفويج- اللغات'!$A$5:$Y$43,14,0)","v":0},{"$f":"+VLOOKUP(B50,'مسك التفويج- اللغات'!$A$5:$Y$43,15,0)+VLOOKUP(B50,'مسك التفويج- اللغات'!$A$5:$Y$43,16,0)","v":0},{"$f":"+VLOOKUP(B50,'مسك التفويج- اللغات'!$A$5:$Y$43,17,0)","v":0},{"$f":"+VLOOKUP(B50,'مسك التفويج- اللغات'!$A$5:$Y$43,18,0)+VLOOKUP(B50,'مسك التفويج- اللغات'!$A$5:$Y$43,19,0)","v":0},{"$f":"+VLOOKUP(B50,'مسك التفويج- اللغات'!$A$5:$Y$43,20,0)","v":0},{"$f":"+VLOOKUP(B50,'مسك التفويج- اللغات'!$A$5:$Y$43,21,0)+VLOOKUP(B50,'مسك التفويج- اللغات'!$A$5:$Y$43,22,0)","v":0},0,0,{"$f":"+VLOOKUP(B50,'مسك التفويج- اللغات'!$A$5:$Y$43,23,0)","v":0},{"$f":"+VLOOKUP(B50,'مسك التفويج- اللغات'!$A$5:$Y$43,24,0)+VLOOKUP(B50,'مسك التفويج- اللغات'!$A$5:$Y$43,25,0)","v":0}]
[null,"س 2علوم رياضية ا خ فرنسية",null,null,null,{"$f":"VLOOKUP(B51,'مسك السن- الجنس'!$A$8:$AM$46,36,0)","v":0},{"$f":"VLOOKUP(B51,'مسك السن- الجنس'!$A$8:$AM$46,37,0)","v":0},{"$f":"VLOOKUP(B51,'مسك السن- الجنس'!$A$8:$AM$46,36,0)+VLOOKUP(B51,'مسك السن- الجنس'!$A$8:$AM$46,38,0)","v":0},{"$f":"VLOOKUP(B51,'مسك السن- الجنس'!$A$8:$AM$46,37,0)+VLOOKUP(B51,'مسك السن- الجنس'!$A$8:$AM$46,39,0)","v":0},{"$f":"+VLOOKUP(B51,'مسك التفويج- اللغات'!$A$5:$Y$43,2,0)","v":0},{"$f":"+VLOOKUP(B51,'مسك التفويج- اللغات'!$A$5:$Y$43,11,0)","v":0},{"$f":"+VLOOKUP(B51,'مسك التفويج- اللغات'!$A$5:$Y$43,12,0)+VLOOKUP(B51,'مسك التفويج- اللغات'!$A$5:$Y$43,13,0)","v":0},{"$f":"+VLOOKUP(B51,'مسك التفويج- اللغات'!$A$5:$Y$43,14,0)","v":0},{"$f":"+VLOOKUP(B51,'مسك التفويج- اللغات'!$A$5:$Y$43,15,0)+VLOOKUP(B51,'مسك التفويج- اللغات'!$A$5:$Y$43,16,0)","v":0},{"$f":"+VLOOKUP(B51,'مسك التفويج- اللغات'!$A$5:$Y$43,17,0)","v":0},{"$f":"+VLOOKUP(B51,'مسك التفويج- اللغات'!$A$5:$Y$43,18,0)+VLOOKUP(B51,'مسك التفويج- اللغات'!$A$5:$Y$43,19,0)","v":0},{"$f":"+VLOOKUP(B51,'مسك التفويج- اللغات'!$A$5:$Y$43,20,0)","v":0},{"$f":"+VLOOKUP(B51,'مسك التفويج- اللغات'!$A$5:$Y$43,21,0)+VLOOKUP(B51,'مسك التفويج- اللغات'!$A$5:$Y$43,22,0)","v":0},0,0,{"$f":"+VLOOKUP(B51,'مسك التفويج- اللغات'!$A$5:$Y$43,23,0)","v":0},{"$f":"+VLOOKUP(B51,'مسك التفويج- اللغات'!$A$5:$Y$43,24,0)+VLOOKUP(B51,'مسك التفويج- اللغات'!$A$5:$Y$43,25,0)","v":0}]
[null,"س 2 علوم رياضية ب خ فرنسية",null,null,null,{"$f":"VLOOKUP(B52,'مسك السن- الجنس'!$A$8:$AM$46,36,0)","v":0},{"$f":"VLOOKUP(B52,'مسك السن- الجنس'!$A$8:$AM$46,37,0)","v":0},{"$f":"VLOOKUP(B52,'مسك السن- الجنس'!$A$8:$AM$46,36,0)+VLOOKUP(B52,'مسك السن- الجنس'!$A$8:$AM$46,38,0)","v":0},{"$f":"VLOOKUP(B52,'مسك السن- الجنس'!$A$8:$AM$46,37,0)+VLOOKUP(B52,'مسك السن- الجنس'!$A$8:$AM$46,39,0)","v":0},{"$f":"+VLOOKUP(B52,'مسك التفويج- اللغات'!$A$5:$Y$43,2,0)","v":0},{"$f":"+VLOOKUP(B52,'مسك التفويج- اللغات'!$A$5:$Y$43,11,0)","v":0},{"$f":"+VLOOKUP(B52,'مسك التفويج- اللغات'!$A$5:$Y$43,12,0)+VLOOKUP(B52,'مسك التفويج- اللغات'!$A$5:$Y$43,13,0)","v":0},{"$f":"+VLOOKUP(B52,'مسك التفويج- اللغات'!$A$5:$Y$43,14,0)","v":0},{"$f":"+VLOOKUP(B52,'مسك التفويج- اللغات'!$A$5:$Y$43,15,0)+VLOOKUP(B52,'مسك التفويج- اللغات'!$A$5:$Y$43,16,0)","v":0},{"$f":"+VLOOKUP(B52,'مسك التفويج- اللغات'!$A$5:$Y$43,17,0)","v":0},{"$f":"+VLOOKUP(B52,'مسك التفويج- اللغات'!$A$5:$Y$43,18,0)+VLOOKUP(B52,'مسك التفويج- اللغات'!$A$5:$Y$43,19,0)","v":0},{"$f":"+VLOOKUP(B52,'مسك التفويج- اللغات'!$A$5:$Y$43,20,0)","v":0},{"$f":"+VLOOKUP(B52,'مسك التفويج- اللغات'!$A$5:$Y$43,21,0)+VLOOKUP(B52,'مسك التفويج- اللغات'!$A$5:$Y$43,22,0)","v":0},0,0,{"$f":"+VLOOKUP(B52,'مسك التفويج- اللغات'!$A$5:$Y$43,23,0)","v":0},{"$f":"+VLOOKUP(B52,'مسك التفويج- اللغات'!$A$5:$Y$43,24,0)+VLOOKUP(B52,'مسك التفويج- اللغات'!$A$5:$Y$43,25,0)","v":0}]
[null,"س 2 العلوم و التكنولوجيات الكهربائية",null,null,null,{"$f":"VLOOKUP(B53,'مسك السن- الجنس'!$A$8:$AM$46,36,0)","v":0},{"$f":"VLOOKUP(B53,'مسك السن- الجنس'!$A$8:$AM$46,37,0)","v":0},{"$f":"VLOOKUP(B53,'مسك السن- الجنس'!$A$8:$AM$46,36,0)+VLOOKUP(B53,'مسك السن- الجنس'!$A$8:$AM$46,38,0)","v":0},{"$f":"VLOOKUP(B53,'مسك السن- الجنس'!$A$8:$AM$46,37,0)+VLOOKUP(B53,'مسك السن- الجنس'!$A$8:$AM$46,39,0)","v":0},{"$f":"+VLOOKUP(B53,'مسك التفويج- اللغات'!$A$5:$Y$43,2,0)","v":0},{"$f":"+VLOOKUP(B53,'مسك التفويج- اللغات'!$A$5:$Y$43,11,0)","v":0},{"$f":"+VLOOKUP(B53,'مسك التفويج- اللغات'!$A$5:$Y$43,12,0)+VLOOKUP(B53,'مسك التفويج- اللغات'!$A$5:$Y$43,13,0)","v":0},{"$f":"+VLOOKUP(B53,'مسك التفويج- اللغات'!$A$5:$Y$43,14,0)","v":0},{"$f":"+VLOOKUP(B53,'مسك التفويج- اللغات'!$A$5:$Y$43,15,0)+VLOOKUP(B53,'مسك التفويج- اللغات'!$A$5:$Y$43,16,0)","v":0},{"$f":"+VLOOKUP(B53,'مسك التفويج- اللغات'!$A$5:$Y$43,17,0)","v":0},{"$f":"+VLOOKUP(B53,'مسك التفويج- اللغات'!$A$5:$Y$43,18,0)+VLOOKUP(B53,'مسك التفويج- اللغات'!$A$5:$Y$43,19,0)","v":0},{"$f":"+VLOOKUP(B53,'مسك التفويج- اللغات'!$A$5:$Y$43,20,0)","v":0},{"$f":"+VLOOKUP(B53,'مسك التفويج- اللغات'!$A$5:$Y$43,21,0)+VLOOKUP(B53,'مسك التفويج- اللغات'!$A$5:$Y$43,22,0)","v":0},0,0,{"$f":"+VLOOKUP(B53,'مسك التفويج- اللغات'!$A$5:$Y$43,23,0)","v":0},{"$f":"+VLOOKUP(B53,'مسك التفويج- اللغات'!$A$5:$Y$43,24,0)+VLOOKUP(B53,'مسك التفويج- اللغات'!$A$5:$Y$43,25,0)","v":0}]
[null,"س 2 العلوم و التكنولوجيات الميكانيكية",null,null,null,{"$f":"VLOOKUP(B54,'مسك السن- الجنس'!$A$8:$AM$46,36,0)","v":0},{"$f":"VLOOKUP(B54,'مسك السن- الجنس'!$A$8:$AM$46,37,0)","v":0},{"$f":"VLOOKUP(B54,'مسك السن- الجنس'!$A$8:$AM$46,36,0)+VLOOKUP(B54,'مسك السن- الجنس'!$A$8:$AM$46,38,0)","v":0},{"$f":"VLOOKUP(B54,'مسك السن- الجنس'!$A$8:$AM$46,37,0)+VLOOKUP(B54,'مسك السن- الجنس'!$A$8:$AM$46,39,0)","v":0},{"$f":"+VLOOKUP(B54,'مسك التفويج- اللغات'!$A$5:$Y$43,2,0)","v":0},{"$f":"+VLOOKUP(B54,'مسك التفويج- اللغات'!$A$5:$Y$43,11,0)","v":0},{"$f":"+VLOOKUP(B54,'مسك التفويج- اللغات'!$A$5:$Y$43,12,0)+VLOOKUP(B54,'مسك التفويج- اللغات'!$A$5:$Y$43,13,0)","v":0},{"$f":"+VLOOKUP(B54,'مسك التفويج- اللغات'!$A$5:$Y$43,14,0)","v":0},{"$f":"+VLOOKUP(B54,'مسك التفويج- اللغات'!$A$5:$Y$43,15,0)+VLOOKUP(B54,'مسك التفويج- اللغات'!$A$5:$Y$43,16,0)","v":0},{"$f":"+VLOOKUP(B54,'مسك التفويج- اللغات'!$A$5:$Y$43,17,0)","v":0},{"$f":"+VLOOKUP(B54,'مسك التفويج- اللغات'!$A$5:$Y$43,18,0)+VLOOKUP(B54,'مسك التفويج- اللغات'!$A$5:$Y$43,19,0)","v":0},{"$f":"+VLOOKUP(B54,'مسك التفويج- اللغات'!$A$5:$Y$43,20,0)","v":0},{"$f":"+VLOOKUP(B54,'مسك التفويج- اللغات'!$A$5:$Y$43,21,0)+VLOOKUP(B54,'مسك التفويج- اللغات'!$A$5:$Y$43,22,0)","v":0},0,0,{"$f":"+VLOOKUP(B54,'مسك التفويج- اللغات'!$A$5:$Y$43,23,0)","v":0},{"$f":"+VLOOKUP(B54,'مسك التفويج- اللغات'!$A$5:$Y$43,24,0)+VLOOKUP(B54,'مسك التفويج- اللغات'!$A$5:$Y$43,25,0)","v":0}]
[null,"س 2 اللغة العربية",null,null,null,{"$f":"VLOOKUP(B55,'مسك السن- الجنس'!$A$8:$AM$46,36,0)","v":0},{"$f":"VLOOKUP(B55,'مسك السن- الجنس'!$A$8:$AM$46,37,0)","v":0},{"$f":"VLOOKUP(B55,'مسك السن- الجنس'!$A$8:$AM$46,36,0)+VLOOKUP(B55,'مسك السن- الجنس'!$A$8:$AM$46,38,0)","v":0},{"$f":"VLOOKUP(B55,'مسك السن- الجنس'!$A$8:$AM$46,37,0)+VLOOKUP(B55,'مسك السن- الجنس'!$A$8:$AM$46,39,0)","v":0},{"$f":"+VLOOKUP(B55,'مسك التفويج- اللغات'!$A$5:$Y$43,2,0)","v":0},{"$f":"+VLOOKUP(B55,'مسك التفويج- اللغات'!$A$5:$Y$43,11,0)","v":0},{"$f":"+VLOOKUP(B55,'مسك التفويج- اللغات'!$A$5:$Y$43,12,0)+VLOOKUP(B55,'مسك التفويج- اللغات'!$A$5:$Y$43,13,0)","v":0},{"$f":"+VLOOKUP(B55,'مسك التفويج- اللغات'!$A$5:$Y$43,14,0)","v":0},{"$f":"+VLOOKUP(B55,'مسك التفويج- اللغات'!$A$5:$Y$43,15,0)+VLOOKUP(B55,'مسك التفويج- اللغات'!$A$5:$Y$43,16,0)","v":0},{"$f":"+VLOOKUP(B55,'مسك التفويج- اللغات'!$A$5:$Y$43,17,0)","v":0},{"$f":"+VLOOKUP(B55,'مسك التفويج- اللغات'!$A$5:$Y$43,18,0)+VLOOKUP(B55,'مسك التفويج- اللغات'!$A$5:$Y$43,19,0)","v":0},{"$f":"+VLOOKUP(B55,'مسك التفويج- اللغات'!$A$5:$Y$43,20,0)","v":0},{"$f":"+VLOOKUP(B55,'مسك التفويج- اللغات'!$A$5:$Y$43,21,0)+VLOOKUP(B55,'مسك التفويج- اللغات'!$A$5:$Y$43,22,0)","v":0},0,0,{"$f":"+VLOOKUP(B55,'مسك التفويج- اللغات'!$A$5:$Y$43,23,0)","v":0},{"$f":"+VLOOKUP(B55,'مسك التفويج- اللغات'!$A$5:$Y$43,24,0)+VLOOKUP(B55,'مسك التفويج- اللغات'!$A$5:$Y$43,25,0)","v":0}]
[null,"مجموع السنة الثانية",null,null,null,{"$f":"SUM(F40:F55)","v":0},{"$f":"SUM(G40:G55)","v":0},0,0,0,0,0,0,0,0,0,0,0,0,0,0,0]
["المجموع العام",null,null,null,null,{"$f":"F26+F39+F56","v":0},0,0,0,0,0,0,0,0,0,0,0,0,0,0,0,0]
[]
[null,null,null,null,null,null,null,null,null,null,null,null,null,null,null,null,null,"خاتم وتوقيع السيد (ة) المدير (ة):"]
[]
[]
[]
[]
[]
[]
[]
[]
[]
[]
[]
[]
[]
[]
[null,null,null,null,null,null,null,null,null,null,null,null," "]

{"sheet":"بطاقة إجمالية","index":19,"n_rows":61,"n_cols":40,"rows_kept":61,"cut":false,"hidden":false,"merged":[[58,31,58,34],[60,27,60,36],[61,27,61,36],[58,8,58,13],[58,14,58,16],[58,17,58,19],[58,20,58,22],[58,23,58,25],[58,26,58,28],[56,26,56,28],[56,31,56,33],[57,8,57,13],[57,14,57,16],[57,17,57,19],[57,20,57,22],[57,23,57,25],[57,26,57,28],[57,31,57,34],[55,14,55,16],[55,17,55,19],[55,20,55,22],[55,23,55,25],[55,26,55,28],[56,8,56,13],[56,14,56,16],[56,17,56,19],[56,20,56,22],[56,23,56,25],[52,26,52,28],[52,29,52,31],[52,32,52,34],[52,35,52,38],[54,10,54,13],[54,14,54,16],[54,17,54,19],[54,20,54,22],[54,23,54,25],[54,26,54,28],[51,26,51,28],[51,29,51,31],[51,32,51,34],[51,35,51,38],[52,5,52,9],[52,10,52,13],[52,14,52,16],[52,17,52,19],[52,20,52,22],[52,23,52,25],[50,26,50,28],[50,29,50,31],[50,32,50,34],[50,35,50,38],[51,5,51,9],[51,10,51,13],[51,14,51,16],[51,17,51,19],[51,20,51,22],[51,23,51,25],[50,5,50,9],[50,10,50,13],[50,14,50,16],[50,17,50,19],[50,20,50,22],[50,23,50,25],[48,35,48,37],[49,10,49,13],[49,14,49,16],[49,17,49,19],[49,20,49,22],[49,23,49,25],[49,26,49,28],[49,29,49,31],[49,32,49,34],[49,35,49,37],[46,32,46,34],[46,35,46,38],[48,10,48,13],[48,14,48,16],[48,17,48,19],[48,20,48,22],[48,23,48,25],[48,26,48,28],[48,29,48,31],[48,32,48,34],[45,32,45,34],[45,35,45,38],[46,5,46,9],[46,10,46,13],[46,14,46,16],[46,17,46,19],[46,20,46,22],[46,23,46,25],[46,26,46,28],[46,29,46,31],[44,32,44,34],[44,35,44,38],[45,5,45,9],[45,10,45,13],[45,14,45,16],[45,17,45,19],[45,20,45,22],[45,23,45,25],[45,26,45,28],[45,29,45,31],[43,32,43,34],[43,35,43,37],[44,5,44,9],[44,10,44,13],[44,14,44,16],[44,17,44,19],[44,20,44,22],[44,23,44,25],[44,26,44,28],[44,29,44,31],[42,29,42,31],[42,32,42,34],[42,35,42,37],[43,10,43,13],[43,14,43,16],[43,17,43,19],[43,20,43,22],[43,23,43,25],[43,26,43,28],[43,29,43,31],[42,10,42,13],[42,14,42,16],[42,17,42,19],[42,20,42,22],[42,23,42,25],[42,26,42,28],[39,39,39,41],[40,8,40,13],[40,14,40,16],[40,17,40,19],[40,20,40,22],[40,23,40,25],[40,26,40,28],[40,29,40,31],[40,39,40,41],[38,26,38,28],[38,29,38,31],[38,39,38,41],[39,8,39,13],[39,14,39,16],[39,17,39,19],[39,20,39,22],[39,23,39,25],[39,26,39,28],[39,29,39,31],[37,14,37,16],[37,17,37,19],[37,20,37,22],[37,23,37,25],[37,26,37,28],[38,8,38,13],[38,14,38,16],[38,17,38,19],[38,20,38,22],[38,23,38,25],[34,39,34,41],[35,10,35,15],[36,14,36,16],[36,17,36,19],[36,20,36,22],[36,23,36,25],[36,26,36,28],[34,5,34,14],[34,15,34,17],[34,18,34,20],[34,21,34,23],[34,24,34,26],[34,27,34,36],[32,27,32,36],[32,39,32,41],[33,5,33,14],[33,15,33,17],[33,18,33,20],[33,21,33,23],[33,24,33,26],[33,27,33,36],[33,39,33,41],[31,15,31,17],[31,18,31,20],[31,21,31,23],[31,24,31,26],[32,5,32,14],[32,15,32,17],[32,18,32,20],[32,21,32,23],[32,24,32,26],[28,26,28,28],[28,29,28,31],[28,32,28,36],[28,39,28,41],[29,9,29,15],[30,15,30,17],[30,18,30,20],[30,21,30,23],[30,24,30,26],[27,26,27,28],[27,29,27,31],[27,32,27,36],[27,39,27,41],[28,5,28,9],[28,10,28,13],[28,14,28,17],[28,18,28,19],[28,20,28,22],[28,23,28,25],[26,26,26,28],[26,29,26,31],[26,32,26,36],[26,39,26,41],[27,5,27,9],[27,10,27,13],[27,14,27,17],[27,18,27,19],[27,20,27,22],[27,23,27,25],[26,5,26,9],[26,10,26,13],[26,14,26,17],[26,18,26,19],[26,20,26,22],[26,23,26,25],[24,26,24,28],[24,29,24,31],[25,10,25,13],[25,14,25,17],[25,18,25,19],[25,20,25,22],[25,23,25,25],[25,26,25,28],[25,29,25,31],[23,6,23,9],[24,10,24,13],[24,14,24,17],[24,18,24,19],[24,20,24,22],[24,23,24,25],[22,5,22,16],[22,17,22,19],[22,20,22,22],[22,23,22,25],[22,26,22,27],[22,32,22,34],[21,5,21,16],[21,17,21,19],[21,20,21,22],[21,23,21,25],[21,26,21,27],[21,32,21,34],[20,5,20,16],[20,17,20,19],[20,20,20,22],[20,23,20,25],[20,26,20,27],[20,32,20,34],[17,8,17,11],[18,17,18,19],[18,20,18,22],[18,23,18,25],[18,26,18,28],[19,17,19,19],[19,20,19,22],[19,23,19,25],[19,26,19,28],[16,5,16,16],[16,17,16,19],[16,20,16,22],[16,23,16,25],[16,26,16,27],[16,32,16,34],[15,5,15,16],[15,17,15,19],[15,20,15,22],[15,23,15,25],[15,26,15,27],[15,32,15,34],[14,5,14,16],[14,17,14,19],[14,20,14,22],[14,23,14,25],[14,26,14,27],[14,32,14,34],[12,17,12,19],[12,20,12,22],[12,23,12,25],[12,26,12,28],[13,17,13,19],[13,20,13,22],[13,23,13,25],[13,26,13,28],[7,0,7,6],[7,7,7,14],[7,25,7,31],[7,32,7,43],[9,0,9,43],[11,6,11,10],[0,0,0,6],[0,8,5,35],[0,36,0,43],[1,0,1,6],[1,36,1,43],[2,36,2,43],[3,36,3,43],[4,36,4,43]]}
["DIRECTION PROVINCIALE",null,null,null,null,null,null,null,"بطاقة المؤسسة\n2016/2017\n   FICHE  ETABLISSEMENT",null,null,null,null,null,null,null,null,null,null,null,null,null,null,null,null,null,null,null,null,null,null,null,null,null,null,null,"المديرية الإقليمية"]
["AL FIDA MERS SULTAN",null,null,null,null,null,null,null,null,null,null,null,null,null,null,null,null,null,null,null,null,null,null,null,null,null,null,null,null,null,null,null,null,null,null,null,"الفداء مرس السلطان"]
[]
[]
[]
[]
[]
["Code Etablissement   رمز المؤسسة ",null,null,null,null,null,null,{"$f":"+استقبال!E9","v":"50745G"},null,null,null,null,null,null,null,null,null,null,null,null,null,null,null,null,null,{"$f":"استقبال!E6","v":"مؤسسة راسين"},null,null,null,null,null,null,"               اسم المؤسسة:"]
[]
["NIVEAUX AUTORISES  &  NOMBRES  ELEVES/CLASSES                       المستويا ت وأعداد التلاميذ والأقسام"]
[]
[null,null,null,"Maternelle",null,null,"الحضانة"]
[null,null,null,null,null,null,null,null,null,null,null,null,null,null,null,null,null,"الأول",null,null,"الثاني",null,null,"المجموع"]
[null,null,null,null,null,null,null,null,null,null,null,null,null,null,null,null,null,"1°année",null,null,"2°année",null,null,"Total"]
[null,null,null,null,null,"Nbre Classes",null,null,null,null,null,null,null,null,null,null,null,null,null,null,null,null,null,{"$f":"SUM(R15:W15)","v":0},null,null,"عدد الأقسام",null,null,null,null,null,"الحجرات"]
[null,null,null,null,null,"Nbre Elèves",null,null,null,null,null,null,null,null,null,null,null,null,null,null,null,null,null,{"$f":"SUM(R16:W16)","v":0},null,null,"عدد التلاميذ",null,null,null,null,null,"المربون"]
[null,null,null,null,null,"Dont filles",null,null,null,null,null,null,null,null,null,null,null,null,null,null,null,null,null,0,null,null,"الإناث منهم",null,null,null,null,null,"الإناث منهم"]
[null,null,null,"Jardin d'enfants",null,null,null,null,"الروض"]
[null,null,null,null,null,null,null,null,null,null,null,null,null,null,null,null,null,"الأول",null,null,"الثاني",null,null,"المجموع"]
[null,null,null,null,null,null,null,null,null,null,null,null,null,null,null,null,null,"1°année",null,null,"2°année",null,null,"Total"]
[null,null,null,null,null,"Nbre Classes",null,null,null,null,null,null,null,null,null,null,null,null,null,null,null,null,null,{"$f":"SUM(R21:W21)","v":0},null,null,"عدد الأقسام",null,null,null,null,null,"الحجرات:"]
[null,null,null,null,null,"Nbre Elèves",null,null,null,null,null,null,null,null,null,null,null,null,null,null,null,null,null,{"$f":"SUM(R22:W22)","v":0},null,null,"عدد التلاميذ",null,null,null,null,null,"المربون:"]
[null,null,null,null,null,"Dont filles",null,null,null,null,null,null,null,null,null,null,null,null,null,null,null,null,null,0,null,null,"الإناث منهم",null,null,null,null,null,"الإناث منهم"]
[null,null,null,"Primaire",null,null,"الابتذائي"]
[null,null,null,null,null,null,null,null,null,null,"الأول",null,null,null,"الثاني",null,null,null,"الثالث",null,"الرابع",null,null,"الخامس",null,null,"السادس",null,null,"المجموع"]
[null,null,null,null,null,null,null,null,null,null,"1°année",null,null,null,"2°année",null,null,null,"3°année",null,"4°année",null,null,"5°année",null,null,"6°année",null,null,"Total"]
[null,null,null,null,null,"Nbre Classes",null,null,null,null,null,null,null,null,null,null,null,null,null,null,null,null,null,null,null,null,null,null,null,{"$f":"SUM(K27:AC27)","v":0},null,null,"عدد الأقسام",null,null,null,null,null,null,"الحجرات:"]
[null,null,null,null,null,"Nbre Elèves",null,null,null,null,null,null,null,null,null,null,null,null,null,null,null,null,null,null,null,null,null,null,null,{"$f":"SUM(K28:AC28)","v":0},null,null,"عدد التلاميذ",null,null,null,null,null,null,"الأساتذة:"]
[null,null,null,null,null,"Dont filles",null,null,null,null,null,null,null,null,null,null,null,null,null,null,null,null,null,null,null,null,null,null,null,0,null,null,"الإناث منهم",null,null,null,null,null,null,"الإناث منهم"]
[null,null,null,"Secondaire Collégial",null,null,null,null,null,"الثانوي الإعدادي"]
[null,null,null,null,null,null,null,null,null,null,null,null,null,null,null,"الأولى إعدادي",null,null,"الثانية إعدادي",null,null,"الثالثة إعدادي",null,null,"المجموع"]
[null,null,null,null,null,null,null,null,null,null,null,null,null,null,null,"1°année",null,null,"2°année",null,null,"3°année",null,null,"Total"]
[null,null,null,null,null,"Nbre Classes",null,null,null,null,null,null,null,null,null,null,null,null,null,null,null,null,null,null,{"$f":"SUM(P33:X33)","v":0},null,null,"عدد الأقسام",null,null,null,null,null,null,null,null,null,null,null,"الحجرات:"]
[null,null,null,null,null,"Nbre Elèves",null,null,null,null,null,null,null,null,null,null,null,null,null,null,null,null,null,null,{"$f":"SUM(P34:X34)","v":0},null,null,"عدد التلاميذ",null,null,null,null,null,null,null,null,null,null,null,"الأساتذة:"]
[null,null,null,null,null,"Dont filles",null,null,null,null,null,null,null,null,null,null,null,null,null,null,null,null,null,null,0,null,null,"الإناث منهم",null,null,null,null,null,null,null,null,null,null,null,"الإناث منهم"]
[null,null,null,"Secondaire Qualifiant",null,null,null,null,null,null,"الثانوي التأهيلي"]
[null,null,null,null,null,null,null,null,null,null,null,null,null,null,"ج م أدبي",null,null,"1با أدب ع إنسانية",null,null,"2با أدب ",null,null,"2با علوم إنسانية",null,null,"المجموع"]
[null,null,null,null,null,null,null,null,null,null,null,null,null,null,"TC Let",null,null,"1°Let et S Humaines",null,null,"2°Let",null,null,"2° S Humaines",null,null,"Total"]
[null,null,null,null,null,null,null,null,"Nbre Classes",null,null,null,null,null,null,null,null,null,null,null,null,null,null,null,null,null,{"$f":"SUM(O39:Z39)","v":0},null,null,"عدد الأقسام",null,null,null,null,null,null,null,null,null,"الحجرات:"]
[null,null,null,null,null,null,null,null,"Nbre Elèves",null,null,null,null,null,null,null,null,null,null,null,null,null,null,null,null,null,{"$f":"SUM(O40:Z40)","v":0},null,null,"عدد التلاميذ",null,null,null,null,null,null,null,null,null,"الأساتذة:"]
[null,null,null,null,null,null,null,null,"Dont filles",null,null,null,null,null,null,null,null,null,null,null,null,null,null,null,null,null,0,null,null,"الإناث منهم",null,null,null,null,null,null,null,null,null,"الإناث منهم"]
[]
[null,null,null,null,null,null,null,null,null,null,"ج م علمي",null,null,null,"1با ع تج",null,null,"2با ع فز",null,null,"2با ع ح وأرض",null,null,"1با ع رياضية",null,null,"2با ع رياضية أ",null,null,"2با ع رياضية ب ",null,null,"المجموع"]
[null,null,null,null,null,null,null,null,null,null,null,null,null,null,null,null,null,null,null,null,null,null,null,null,null,null,null,null,null,null,null,null,"Total"]
[null,null,null,null,null,"Nbre Classes",null,null,null,null,null,null,null,null,null,null,null,null,null,null,null,null,null,null,null,null,null,null,null,null,null,null,{"$f":"SUM(K45:AF45)","v":0},null,null,"عدد الأقسام"]
[null,null,null,null,null,"Nbre Elèves",null,null,null,null,null,null,null,null,null,null,null,null,null,null,null,null,null,null,null,null,null,null,null,null,null,null,{"$f":"SUM(K46:AF46)","v":0},null,null,"عدد التلاميذ"]
[null,null,null,null,null,"Dont filles",null,null,null,null,null,null,null,null,null,null,null,null,null,null,null,null,null,null,null,null,null,null,null,null,null,null,0,null,null,"الإناث منهم"]
[]
[null,null,null,null,null,null,null,null,null,null,"ج م علمي ",null,null,null,"1با ع تج",null,null,"2با ع فز",null,null,"2با ع ح وأرض",null,null,"1با ع رياضية",null,null,"2با ع رياضية أ",null,null,"2با ع رياضية ب ",null,null,"المجموع"]
[null,null,null,null,null,null,null,null,null,null,"خ فرنسية",null,null,null,"خ فرنسية",null,null,"خ فرنسية",null,null,"خ فرنسية",null,null,"خ فرنسية",null,null,"خ فرنسية",null,null,"خ فرنسية",null,null,"Total"]
[null,null,null,null,null,"Nbre Classes",null,null,null,null,null,null,null,null,null,null,null,null,null,null,null,null,null,null,null,null,null,null,null,null,null,null,{"$f":"SUM(K51:AF51)","v":0},null,null,"عدد الأقسام"]
[null,null,null,null,null,"Nbre Elèves",null,null,null,null,null,null,null,null,null,null,null,null,null,null,null,null,null,null,null,null,null,null,null,null,null,null,{"$f":"SUM(K52:AF52)","v":0},null,null,"عدد التلاميذ"]
[null,null,null,null,null,"Dont filles",null,null,null,null,null,null,null,null,null,null,null,null,null,null,null,null,null,null,null,null,null,null,null,null,null,null,0,null,null,"الإناث منهم"]
[]
[null,null,null,null,null,null,null,null,null,null,null,null,null,null,"ج تكنولوجي",null,null,"1با ع إقتصاد وتدبير",null,null,"2با ع إقتصادية",null,null,"2با تسيير محاسباتي",null,null,"المجموع"]
[null,null,null,null,null,null,null,null,null,null,null,null,null,null,"TC Tec",null,null,"1°SC Eco et Gestion",null,null,"2°Sc Eco",null,null,"2° Gestion compt",null,null,"Total"]
[null,null,null,null,null,null,null,null,"Nbre Classes",null,null,null,null,null,null,null,null,null,null,null,null,null,null,null,null,null,{"$f":"SUM(O57:Z57)","v":0},null,null,null,null,"عدد الأقسام"]
[null,null,null,null,null,null,null,null,"Nbre Elèves",null,null,null,null,null,null,null,null,null,null,null,null,null,null,null,null,null,{"$f":"SUM(O58:Z58)","v":0},null,null,null,null,"عدد التلاميذ"]
[null,null,null,null,null,null,null,null,"Dont filles",null,null,null,null,null,null,null,null,null,null,null,null,null,null,null,null,null,0,null,null,null,null,"الإناث منهم"]
[]
[null,null,null,null,null,null,null,null,null,null,null,null,null,null,null,null,null,null,null,null,null,null,null,null,null,null,null,"توقيع السيد (ة) مدير (ة) المؤسسة :"]

{"sheet":"TS Ens COl+Qualif+CPGE+BTS","index":20,"n_rows":30,"n_cols":12,"rows_kept":30,"cut":false,"hidden":true,"merged":[[8,3,8,9],[10,4,10,9],[15,4,15,9],[17,4,17,9],[19,4,19,6]]}
[" Questionnaire  Q11/2",null,null,"Fiche Personnel (Public)                      (عمومي)   بطاقة الموظف  "]
[" Réservé au personnel des établissements scolaires       خاص بأطر المؤسسات التعليمية"]
[null,null,"Tableau de service de l'enseignant au collégial, qualifiant, CPGE et BTS"]
["Identification de l'enseignant"]
[null,"ر . ب . و","CIN "]
[]
[null,"رقم التأجير","PPR "]
[]
[null,"الإسم والنسب","Nom et Prénom"]
["Identification de l'Etablissement "]
["المؤسسة","Etablissement (Code Gresa et nom de l'établissement)"]
[]
["Renseignement sur type d'affectation, cycle, matière enseignée, classe et horaire"]
[null,"نوع التعيين","Type d'affectation (P ou F)",null,null,"(P: تعيين أصلي ; F: تكليف )"]
[]
[null,"السلك","Cycle (code et intitulé)"]
[]
[null,"المادة المدرسة","Matière enseignée"]
[]
[null,"عدد الأقسام","Nombre de classe",null,"Total Horaire d'enseignement",null,null,null,null,null,"مجموع ساعة التدريس"]
[]
["Répartition des niveaux par jour et horaire"]
[null,null,"N° Horaire",1,2,3,4,1,5,6,7,8]
["N° Jour","Jour",null,"8h-9h","9h-10h","10h-11h","11h-12h",null,"14h-15h","15h-16h","16h-17h","17h-18h"]
[1,"Lundi الإثنين","Niveau Enseigné   المستوى المدرس"]
[2,"Mardi  الثلاثاء","Niveau Enseigné   المستوى المدرس"]
[3,"Mercredi  الأربعاء","Niveau Enseigné   المستوى المدرس"]
[4,"Jeudi  الخميس","Niveau Enseigné   المستوى المدرس"]
[5,"Vendredi  الجمعة","Niveau Enseigné   المستوى المدرس"]
[6,"Samedi  السبت","Niveau Enseigné   المستوى المدرس"]